Workbook

Sheet Main
E2: CQG S&P 500® and Nasdaq 100® Performance Dashboard | Y2: =RTD("cqg.rtd", ,"SystemInfo", "Linetime") -> 42779.62003
B4: Description | F4: Net | G4: % Net | I4: Open | J4: High | K4: Low | L4: 5-minute Charts | R4: Description | U4: Last | V4: Net | W4: % Net | Y4: Open | Z4: High | AA4: Low
F5: Change | G5: Change | U5: Price | V5: Change | W5: Change
A6: =Symbols!C5 -> X.US.SPC | B6: =RTD("cqg.rtd",,"ContractData",A6,"LongDescription",,"T")&" ("&RIGHT(A6,LEN(A6)-5)&")" -> S&P 500 (SPC) | E6: =IFERROR(RTD("cqg.rtd", ,"ContractData",A6, "LastTrade",, "T"),"") -> 2328.94 | F6: =IFERROR(RTD("cqg.rtd", ,"ContractData",A6, "NetChange",, "T"),"") -> 12.67 | G6: =IFERROR(RTD("cqg.rtd", ,"ContractData",A6, "PerCentNetLastTrade",, "T")/100,"") -> 0.005543802081 | H6: =G6 -> 0.005543802081 | I6: =IFERROR(RTD("cqg.rtd", ,"ContractData",A6, "Open",, "T"),"") -> 2321.72 | J6: =IFERROR(RTD("cqg.rtd", ,"ContractData",A6, "High",, "T"),"") -> 2331.58 | K6: =IFERROR(RTD("cqg.rtd", ,"ContractData",A6, "Low",, "T"),"") -> 2321.42 | L6: =B6 -> S&P 500 (SPC) | R6: =IFERROR(RTD("cqg.rtd", ,"ContractData",AB6, "LongDescription",, "T"),"")&" ("&RIGHT(AB6,LEN(AB6)-5)&")" -> NASDAQ Composite Index (NQCOMP) | U6: =IFERROR(RTD("cqg.rtd", ,"ContractData",AB6, "LastTrade",, "T"),"") -> 5764.32 | V6: =IFERROR(RTD("cqg.rtd", ,"ContractData",AB6, "NetChange",, "T"),"") -> 30.19 | W6: =IFERROR(RTD("cqg.rtd", ,"ContractData",AB6, "PerCentNetLastTrade",, "T")/100,"") -> 0.005264966089 | X6: =W6 -> 0.005264966089 | Y6: =IFERROR(RTD("cqg.rtd", ,"ContractData",AB6, "Open",, "T"),"") -> 5753.19 | Z6: =IFERROR(RTD("cqg.rtd", ,"ContractData",AB6, "High",, "T"),"") -> 5770.99 | AA6: =IFERROR(RTD("cqg.rtd", ,"ContractData",AB6, "Low",, "T"),"") -> 5751.92 | AB6: =Symbols!H5 -> X.US.NQCOMP
A7: =Symbols!C6 -> X.US.DJI | B7: =RTD("cqg.rtd",,"ContractData",A7,"LongDescription",,"T")&" ("&RIGHT(A7,LEN(A7)-5)&")" -> DJ Industrial Average (DJI) | E7: =IFERROR(RTD("cqg.rtd", ,"ContractData",A7, "LastTrade",, "T"),"") -> 20415.9 | F7: =IFERROR(RTD("cqg.rtd", ,"ContractData",A7, "NetChange",, "T"),"") -> 145.8 | G7: =IFERROR(RTD("cqg.rtd", ,"ContractData",A7, "PerCentNetLastTrade",, "T")/100,"") -> 0.007232612868 | H7: 0.007232612868 | I7: =IFERROR(RTD("cqg.rtd", ,"ContractData",A7, "Open",, "T"),"") -> 20338.5 | J7: =IFERROR(RTD("cqg.rtd", ,"ContractData",A7, "High",, "T"),"") -> 20441.4 | K7: =IFERROR(RTD("cqg.rtd", ,"ContractData",A7, "Low",, "T"),"") -> 20322.9 | R7: =IFERROR(RTD("cqg.rtd", ,"ContractData",AB7, "LongDescription",, "T"),"")&" ("&RIGHT(AB7,LEN(AB7)-5)&")" -> NASDAQ-100 Index (NDX) | U7: =IFERROR(RTD("cqg.rtd", ,"ContractData",AB7, "LastTrade",, "T"),"") -> 5257.24 | V7: =IFERROR(RTD("cqg.rtd", ,"ContractData",AB7, "NetChange",, "T"),"") -> 30.55 | W7: =IFERROR(RTD("cqg.rtd", ,"ContractData",AB7, "PerCentNetLastTrade",, "T")/100,"") -> 0.005844999416 | X7: 0.005844999416 | Y7: =IFERROR(RTD("cqg.rtd", ,"ContractData",AB7, "Open",, "T"),"") -> 5242.49 | Z7: =IFERROR(RTD("cqg.rtd", ,"ContractData",AB7, "High",, "T"),"") -> 5262.42 | AA7: =IFERROR(RTD("cqg.rtd", ,"ContractData",AB7, "Low",, "T"),"") -> 5241 | AB7: =Symbols!H6 -> X.US.NDX
A8: =Symbols!C7 -> S.US.XLF | B8: =RTD("cqg.rtd",,"ContractData",A8,"LongDescription",,"T")&" ("&RIGHT(A8,LEN(A8)-5)&")" -> Financial Select Sector SPDR (XLF) | E8: =IFERROR(RTD("cqg.rtd", ,"ContractData",A8, "LastTrade",, "T"),"") -> 24.07 | F8: =IFERROR(RTD("cqg.rtd", ,"ContractData",A8, "NetChange",, "T"),"") -> 0.29 | G8: =IFERROR(RTD("cqg.rtd", ,"ContractData",A8, "PerCentNetLastTrade",, "T")/100,"") -> 0.01219512195 | H8: 0.01219512195 | I8: =IFERROR(RTD("cqg.rtd", ,"ContractData",A8, "Open",, "T"),"") -> 23.93 | J8: =IFERROR(RTD("cqg.rtd", ,"ContractData",A8, "High",, "T"),"") -> 24.16 | K8: =IFERROR(RTD("cqg.rtd", ,"ContractData",A8, "Low",, "T"),"") -> 23.89 | R8: =IFERROR(RTD("cqg.rtd", ,"ContractData",AB8, "LongDescription",, "T"),"")&" ("&RIGHT(AB8,LEN(AB8)-5)&")" -> NASDAQ Financial 100 (IXF) | U8: =IFERROR(RTD("cqg.rtd", ,"ContractData",AB8, "LastTrade",, "T"),"") -> 4094.37 | V8: =IFERROR(RTD("cqg.rtd", ,"ContractData",AB8, "NetChange",, "T"),"") -> 39.2 | W8: =IFERROR(RTD("cqg.rtd", ,"ContractData",AB8, "PerCentNetLastTrade",, "T")/100,"") -> 0.009666672421 | X8: 0.009666672421 | Y8: =IFERROR(RTD("cqg.rtd", ,"ContractData",AB8, "Open",, "T"),"") -> 4074.74 | Z8: =IFERROR(RTD("cqg.rtd", ,"ContractData",AB8, "High",, "T"),"") -> 4107.18 | AA8: =IFERROR(RTD("cqg.rtd", ,"ContractData",AB8, "Low",, "T"),"") -> 4074.18 | AB8: =Symbols!H7 -> X.US.IXF
A9: =Symbols!C8 -> X.US.BTK | B9: =RTD("cqg.rtd",,"ContractData",A9,"LongDescription",,"T")&" ("&RIGHT(A9,LEN(A9)-5)&")" -> Biotechnology Index (BTK) | E9: =IFERROR(RTD("cqg.rtd", ,"ContractData",A9, "LastTrade",, "T"),"") -> 3365.55 | F9: =IFERROR(RTD("cqg.rtd", ,"ContractData",A9, "NetChange",, "T"),"") -> 28.53 | G9: =IFERROR(RTD("cqg.rtd", ,"ContractData",A9, "PerCentNetLastTrade",, "T")/100,"") -> 0.008549544204 | H9: 0.008549544204 | I9: =IFERROR(RTD("cqg.rtd", ,"ContractData",A9, "Open",, "T"),"") -> 3353.61 | J9: =IFERROR(RTD("cqg.rtd", ,"ContractData",A9, "High",, "T"),"") -> 3376.75 | K9: =IFERROR(RTD("cqg.rtd", ,"ContractData",A9, "Low",, "T"),"") -> 3346.42 | R9: =IFERROR(RTD("cqg.rtd", ,"ContractData",AB9, "LongDescription",, "T"),"")&" ("&RIGHT(AB9,LEN(AB9)-5)&")" -> NASDAQ Biotechnology (NBI) | U9: =IFERROR(RTD("cqg.rtd", ,"ContractData",AB9, "LastTrade",, "T"),"") -> 2996.81 | V9: =IFERROR(RTD("cqg.rtd", ,"ContractData",AB9, "NetChange",, "T"),"") -> 20.51 | W9: =IFERROR(RTD("cqg.rtd", ,"ContractData",AB9, "PerCentNetLastTrade",, "T")/100,"") -> 0.006891106407 | X9: 0.006891106407 | Y9: =IFERROR(RTD("cqg.rtd", ,"ContractData",AB9, "Open",, "T"),"") -> 2989.15 | Z9: =IFERROR(RTD("cqg.rtd", ,"ContractData",AB9, "High",, "T"),"") -> 3001.62 | AA9: =IFERROR(RTD("cqg.rtd", ,"ContractData",AB9, "Low",, "T"),"") -> 2983.03 | AB9: =Symbols!H8 -> X.US.NBI
A10: =Symbols!C9 -> X.US.NYPID | B10: =RTD("cqg.rtd",,"ContractData",A10,"LongDescription",,"T")&" ("&RIGHT(A10,LEN(A10)-5)&")" -> NYSE Healthcare Index (NYPID) | E10: =IFERROR(RTD("cqg.rtd", ,"ContractData",A10, "LastTrade",, "T"),"") -> 12378.81 | F10: =IFERROR(RTD("cqg.rtd", ,"ContractData",A10, "NetChange",, "T"),"") -> 62.61 | G10: =IFERROR(RTD("cqg.rtd", ,"ContractData",A10, "PerCentNetLastTrade",, "T")/100,"") -> 0.005083548497 | H10: 0.005083548497 | I10: =IFERROR(RTD("cqg.rtd", ,"ContractData",A10, "Open",, "T"),"") -> 12316.2 | J10: =IFERROR(RTD("cqg.rtd", ,"ContractData",A10, "High",, "T"),"") -> 12381.89 | K10: =IFERROR(RTD("cqg.rtd", ,"ContractData",A10, "Low",, "T"),"") -> 12316.2 | R10: =IFERROR(RTD("cqg.rtd", ,"ContractData",AB10, "LongDescription",, "T"),"")&" ("&RIGHT(AB10,LEN(AB10)-5)&")" -> Nasdaq Health Care Index (NHC) | U10: =IFERROR(RTD("cqg.rtd", ,"ContractData",AB10, "LastTrade",, "T"),"") -> 668.53 | V10: =IFERROR(RTD("cqg.rtd", ,"ContractData",AB10, "NetChange",, "T"),"") -> 4.29 | W10: =IFERROR(RTD("cqg.rtd", ,"ContractData",AB10, "PerCentNetLastTrade",, "T")/100,"") -> 0.006458508973 | X10: 0.006458508973 | Y10: =IFERROR(RTD("cqg.rtd", ,"ContractData",AB10, "Open",, "T"),"") -> 666.68 | Z10: =IFERROR(RTD("cqg.rtd", ,"ContractData",AB10, "High",, "T"),"") -> 669.15 | AA10: =IFERROR(RTD("cqg.rtd", ,"ContractData",AB10, "Low",, "T"),"") -> 665.6 | AB10: =Symbols!H9 -> X.US.NHC
A11: =Symbols!C10 -> X.US.IXE | B11: =RTD("cqg.rtd",,"ContractData",A11,"LongDescription",,"T")&" ("&RIGHT(A11,LEN(A11)-5)&")" -> S&P 500 Select Sector Energy Index (IXE) | E11: =IFERROR(RTD("cqg.rtd", ,"ContractData",A11, "LastTrade",, "T"),"") -> 734.73 | F11: =IFERROR(RTD("cqg.rtd", ,"ContractData",A11, "NetChange",, "T"),"") -> 0.44 | G11: =IFERROR(RTD("cqg.rtd", ,"ContractData",A11, "PerCentNetLastTrade",, "T")/100,"") -> 0.0005992182925 | H11: 0.0005992182925 | I11: =IFERROR(RTD("cqg.rtd", ,"ContractData",A11, "Open",, "T"),"") -> 733.29 | J11: =IFERROR(RTD("cqg.rtd", ,"ContractData",A11, "High",, "T"),"") -> 734.84 | K11: =IFERROR(RTD("cqg.rtd", ,"ContractData",A11, "Low",, "T"),"") -> 730.4 | R11: =IFERROR(RTD("cqg.rtd", ,"ContractData",AB11, "LongDescription",, "T"),"")&" ("&RIGHT(AB11,LEN(AB11)-5)&")" -> PHLX Oil Service Sector (OSX) | U11: =IFERROR(RTD("cqg.rtd", ,"ContractData",AB11, "LastTrade",, "T"),"") -> 180.66 | V11: =IFERROR(RTD("cqg.rtd", ,"ContractData",AB11, "NetChange",, "T"),"") -> 0.44 | W11: =IFERROR(RTD("cqg.rtd", ,"ContractData",AB11, "PerCentNetLastTrade",, "T")/100,"") -> 0.002441460437 | X11: 0.002441460437 | Y11: =IFERROR(RTD("cqg.rtd", ,"ContractData",AB11, "Open",, "T"),"") -> 180.02 | Z11: =IFERROR(RTD("cqg.rtd", ,"ContractData",AB11, "High",, "T"),"") -> 181.54 | AA11: =IFERROR(RTD("cqg.rtd", ,"ContractData",AB11, "Low",, "T"),"") -> 179.23 | AB11: =Symbols!H10 -> X.US.OSX
A12: =Symbols!C11 -> S.US.BAC | B12: =RTD("cqg.rtd",,"ContractData",A12,"LongDescription",,"T")&" ("&RIGHT(A12,LEN(A12)-5)&")" -> Bank of America Corp (BAC) | E12: =IFERROR(RTD("cqg.rtd", ,"ContractData",A12, "LastTrade",, "T"),"") -> 23.45 | F12: =IFERROR(RTD("cqg.rtd", ,"ContractData",A12, "NetChange",, "T"),"") -> 0.37 | G12: =IFERROR(RTD("cqg.rtd", ,"ContractData",A12, "PerCentNetLastTrade",, "T")/100,"") -> 0.01603119584 | H12: =G12 -> 0.01603119584 | I12: =IFERROR(RTD("cqg.rtd", ,"ContractData",A12, "Open",, "T"),"") -> 23.17 | J12: =IFERROR(RTD("cqg.rtd", ,"ContractData",A12, "High",, "T"),"") -> 23.54 | K12: =IFERROR(RTD("cqg.rtd", ,"ContractData",A12, "Low",, "T"),"") -> 23.17 | R12: =IFERROR(RTD("cqg.rtd", ,"ContractData",AB12, "LongDescription",, "T"),"")&" ("&RIGHT(AB12,LEN(AB12)-5)&")" -> Energy Select Sector SPDR (XLE) | U12: =IFERROR(RTD("cqg.rtd", ,"ContractData",AB12, "LastTrade",, "T"),"") -> 73.42 | V12: =IFERROR(RTD("cqg.rtd", ,"ContractData",AB12, "NetChange",, "T"),"") -> 0.14 | W12: =IFERROR(RTD("cqg.rtd", ,"ContractData",AB12, "PerCentNetLastTrade",, "T")/100,"") -> 0.001910480349 | X12: 0.001910480349 | Y12: =IFERROR(RTD("cqg.rtd", ,"ContractData",AB12, "Open",, "T"),"") -> 73.13 | Z12: =IFERROR(RTD("cqg.rtd", ,"ContractData",AB12, "High",, "T"),"") -> 73.45 | AA12: =IFERROR(RTD("cqg.rtd", ,"ContractData",AB12, "Low",, "T"),"") -> 72.99 | AB12: =Symbols!H11 -> S.US.XLE
A13: =Symbols!C12 -> S.US.RSP | B13: =RTD("cqg.rtd",,"ContractData",A13,"LongDescription",,"T")&" ("&RIGHT(A13,LEN(A13)-5)&")" -> Guggenheim S&P 500 Equal Weight ETF (RSP) | E13: =IFERROR(RTD("cqg.rtd", ,"ContractData",A13, "LastTrade",, "T"),"") -> 90.31 | F13: =IFERROR(RTD("cqg.rtd", ,"ContractData",A13, "NetChange",, "T"),"") -> 0.43 | G13: =IFERROR(RTD("cqg.rtd", ,"ContractData",A13, "PerCentNetLastTrade",, "T")/100,"") -> 0.004895960832 | H13: =G13 -> 0.004895960832 | I13: =IFERROR(RTD("cqg.rtd", ,"ContractData",A13, "Open",, "T"),"") -> 90.14 | J13: =IFERROR(RTD("cqg.rtd", ,"ContractData",A13, "High",, "T"),"") -> 90.41 | K13: =IFERROR(RTD("cqg.rtd", ,"ContractData",A13, "Low",, "T"),"") -> 90.07 | R13: =IFERROR(RTD("cqg.rtd", ,"ContractData",AB13, "LongDescription",, "T"),"")&" ("&RIGHT(AB13,LEN(AB13)-5)&")" -> Apple Inc (AAPL) | U13: =IFERROR(RTD("cqg.rtd", ,"ContractData",AB13, "LastTrade",, "T"),"") -> 133.44 | V13: =IFERROR(RTD("cqg.rtd", ,"ContractData",AB13, "NetChange",, "T"),"") -> 1.32 | W13: =IFERROR(RTD("cqg.rtd", ,"ContractData",AB13, "PerCentNetLastTrade",, "T")/100,"") -> 0.009990917348 | X13: =W13 -> 0.009990917348 | Y13: =IFERROR(RTD("cqg.rtd", ,"ContractData",AB13, "Open",, "T"),"") -> 133.08 | Z13: =IFERROR(RTD("cqg.rtd", ,"ContractData",AB13, "High",, "T"),"") -> 133.82 | AA13: =IFERROR(RTD("cqg.rtd", ,"ContractData",AB13, "Low",, "T"),"") -> 132.75 | AB13: =Symbols!H12 -> S.US.AAPL
A14: =Symbols!C13 -> S.US.SPY | B14: =RTD("cqg.rtd",,"ContractData",A14,"LongDescription",,"T")&" ("&RIGHT(A14,LEN(A14)-5)&")" -> SPDR S&P 500 (SPY) | E14: =IFERROR(RTD("cqg.rtd", ,"ContractData",A14, "LastTrade",, "T"),"") -> 232.79 | F14: =IFERROR(RTD("cqg.rtd", ,"ContractData",A14, "NetChange",, "T"),"") -> 1.29 | G14: =IFERROR(RTD("cqg.rtd", ,"ContractData",A14, "PerCentNetLastTrade",, "T")/100,"") -> 0.005528918837 | H14: 0.005528918837 | I14: =IFERROR(RTD("cqg.rtd", ,"ContractData",A14, "Open",, "T"),"") -> 232.08 | J14: =IFERROR(RTD("cqg.rtd", ,"ContractData",A14, "High",, "T"),"") -> 233.07 | K14: =IFERROR(RTD("cqg.rtd", ,"ContractData",A14, "Low",, "T"),"") -> 232.05 | R14: =IFERROR(RTD("cqg.rtd", ,"ContractData",AB14, "LongDescription",, "T"),"")&" ("&RIGHT(AB14,LEN(AB14)-5)&")" -> Tesla, Inc. (TSLA) | U14: =IFERROR(RTD("cqg.rtd", ,"ContractData",AB14, "LastTrade",, "T"),"") -> 280.56 | V14: =IFERROR(RTD("cqg.rtd", ,"ContractData",AB14, "NetChange",, "T"),"") -> 11.39 | W14: =IFERROR(RTD("cqg.rtd", ,"ContractData",AB14, "PerCentNetLastTrade",, "T")/100,"") -> 0.04208297738 | X14: 0.04208297738 | Y14: =IFERROR(RTD("cqg.rtd", ,"ContractData",AB14, "Open",, "T"),"") -> 270.74 | Z14: =IFERROR(RTD("cqg.rtd", ,"ContractData",AB14, "High",, "T"),"") -> 280.78 | AA14: =IFERROR(RTD("cqg.rtd", ,"ContractData",AB14, "Low",, "T"),"") -> 270.51 | AB14: =Symbols!H13 -> S.US.TSLA
A15: =Symbols!C14 -> F.US.EP | B15: =RTD("cqg.rtd",,"ContractData",A15,"LongDescription",,"T")&" ("&RIGHT(A15,LEN(A15)-5)&")" -> E-Mini S&P 500, Mar 17 (EP) | E15: =IFERROR(RTD("cqg.rtd", ,"ContractData",A15, "LastTrade",, "T"),"") -> 2326 | F15: =IFERROR(RTD("cqg.rtd", ,"ContractData",A15, "NetChange",, "T"),"") -> 13.5 | G15: =IFERROR(RTD("cqg.rtd", ,"ContractData",A15, "PerCentNetLastTrade",, "T")/100,"") -> 0.005729110366 | H15: 0.005729110366 | I15: =IFERROR(RTD("cqg.rtd", ,"ContractData",A15, "Open",, "T"),"") -> 2314.25 | J15: =IFERROR(RTD("cqg.rtd", ,"ContractData",A15, "High",, "T"),"") -> 2329 | K15: =IFERROR(RTD("cqg.rtd", ,"ContractData",A15, "Low",, "T"),"") -> 2313.25 | L15: =R6 -> NASDAQ Composite Index (NQCOMP) | R15: =IFERROR(RTD("cqg.rtd", ,"ContractData",AB15, "LongDescription",, "T"),"")&" ("&RIGHT(AB15,LEN(AB15)-5)&")" -> Micron Technology Inc (MU) | U15: =IFERROR(RTD("cqg.rtd", ,"ContractData",AB15, "LastTrade",, "T"),"") -> 23.94 | V15: =IFERROR(RTD("cqg.rtd", ,"ContractData",AB15, "NetChange",, "T"),"") -> -0.11 | W15: =IFERROR(RTD("cqg.rtd", ,"ContractData",AB15, "PerCentNetLastTrade",, "T")/100,"") -> -0.004573804574 | X15: -0.004573804574 | Y15: =IFERROR(RTD("cqg.rtd", ,"ContractData",AB15, "Open",, "T"),"") -> 24.07 | Z15: =IFERROR(RTD("cqg.rtd", ,"ContractData",AB15, "High",, "T"),"") -> 24.2 | AA15: =IFERROR(RTD("cqg.rtd", ,"ContractData",AB15, "Low",, "T"),"") -> 23.82 | AB15: =Symbols!H14 -> S.US.MU
A16: =Symbols!C15 -> F.US.CLE | B16: =RTD("cqg.rtd",,"ContractData",A16,"LongDescription",,"T")&" ("&RIGHT(A16,LEN(A16)-5)&")" -> Crude Light (Globex), Mar 17 (CLE) | E16: =IFERROR(RTD("cqg.rtd", ,"ContractData",A16, "LastTrade",, "T"),"") -> 52.88 | F16: =IFERROR(RTD("cqg.rtd", ,"ContractData",A16, "NetChange",, "T"),"") -> -0.98 | G16: =IFERROR(RTD("cqg.rtd", ,"ContractData",A16, "PerCentNetLastTrade",, "T")/100,"") -> -0.0181953212 | H16: -0.0181953212 | I16: =IFERROR(RTD("cqg.rtd", ,"ContractData",A16, "Open",, "T"),"") -> 53.8 | J16: =IFERROR(RTD("cqg.rtd", ,"ContractData",A16, "High",, "T"),"") -> 53.95 | K16: =IFERROR(RTD("cqg.rtd", ,"ContractData",A16, "Low",, "T"),"") -> 52.77 | R16: =IFERROR(RTD("cqg.rtd", ,"ContractData",AB16, "LongDescription",, "T"),"")&" ("&RIGHT(AB16,LEN(AB16)-5)&")" -> Powershares QQQ Trust (QQQ) | U16: =IFERROR(RTD("cqg.rtd", ,"ContractData",AB16, "LastTrade",, "T"),"") -> 128.13 | V16: =IFERROR(RTD("cqg.rtd", ,"ContractData",AB16, "NetChange",, "T"),"") -> 0.74 | W16: =IFERROR(RTD("cqg.rtd", ,"ContractData",AB16, "PerCentNetLastTrade",, "T")/100,"") -> 0.005809389229 | X16: 0.005809389229 | Y16: =IFERROR(RTD("cqg.rtd", ,"ContractData",AB16, "Open",, "T"),"") -> 127.76 | Z16: =IFERROR(RTD("cqg.rtd", ,"ContractData",AB16, "High",, "T"),"") -> 128.26 | AA16: =IFERROR(RTD("cqg.rtd", ,"ContractData",AB16, "Low",, "T"),"") -> 127.71 | AB16: =Symbols!H15 -> S.US.QQQ
A17: =Symbols!C16 -> F.US.HOE | B17: =RTD("cqg.rtd",,"ContractData",A17,"LongDescription",,"T")&" ("&RIGHT(A17,LEN(A17)-5)&")" -> NY Harbor ULSD, Mar 17 (HOE) | E17: =IFERROR(RTD("cqg.rtd", ,"ContractData",A17, "LastTrade",, "T"),"") -> 1.6249 | F17: =IFERROR(RTD("cqg.rtd", ,"ContractData",A17, "NetChange",, "T"),"") -> -0.0411 | G17: =IFERROR(RTD("cqg.rtd", ,"ContractData",A17, "PerCentNetLastTrade",, "T")/100,"") -> -0.02461132121 | H17: -0.02461132121 | I17: =IFERROR(RTD("cqg.rtd", ,"ContractData",A17, "Open",, "T"),"") -> 1.6661 | J17: =IFERROR(RTD("cqg.rtd", ,"ContractData",A17, "High",, "T"),"") -> 1.6724 | K17: =IFERROR(RTD("cqg.rtd", ,"ContractData",A17, "Low",, "T"),"") -> 1.6189 | R17: =IFERROR(RTD("cqg.rtd", ,"ContractData",AB17, "LongDescription",, "T"),"")&" ("&RIGHT(AB17,LEN(AB17)-5)&")" -> Cisco Systems Inc (CSCO) | U17: =IFERROR(RTD("cqg.rtd", ,"ContractData",AB17, "LastTrade",, "T"),"") -> 31.98 | V17: =IFERROR(RTD("cqg.rtd", ,"ContractData",AB17, "NetChange",, "T"),"") -> 0.47 | W17: =IFERROR(RTD("cqg.rtd", ,"ContractData",AB17, "PerCentNetLastTrade",, "T")/100,"") -> 0.01491589971 | X17: 0.01491589971 | Y17: =IFERROR(RTD("cqg.rtd", ,"ContractData",AB17, "Open",, "T"),"") -> 31.67 | Z17: =IFERROR(RTD("cqg.rtd", ,"ContractData",AB17, "High",, "T"),"") -> 31.99 | AA17: =IFERROR(RTD("cqg.rtd", ,"ContractData",AB17, "Low",, "T"),"") -> 31.55 | AB17: =Symbols!H16 -> S.US.CSCO
A18: =Symbols!C17 -> F.US.RBE | B18: =RTD("cqg.rtd",,"ContractData",A18,"LongDescription",,"T")&" ("&RIGHT(A18,LEN(A18)-5)&")" -> RBOB Gasoline (Globex), Mar 17 (RBE) | E18: =IFERROR(RTD("cqg.rtd", ,"ContractData",A18, "LastTrade",, "T"),"") -> 1.5425 | F18: =IFERROR(RTD("cqg.rtd", ,"ContractData",A18, "NetChange",, "T"),"") -> -0.0472 | G18: =IFERROR(RTD("cqg.rtd", ,"ContractData",A18, "PerCentNetLastTrade",, "T")/100,"") -> -0.02963009562 | H18: -0.02963009562 | I18: =IFERROR(RTD("cqg.rtd", ,"ContractData",A18, "Open",, "T"),"") -> 1.589 | J18: =IFERROR(RTD("cqg.rtd", ,"ContractData",A18, "High",, "T"),"") -> 1.6031 | K18: =IFERROR(RTD("cqg.rtd", ,"ContractData",A18, "Low",, "T"),"") -> 1.5399 | R18: =IFERROR(RTD("cqg.rtd", ,"ContractData",AB18, "LongDescription",, "T"),"")&" ("&RIGHT(AB18,LEN(AB18)-5)&")" -> Facebook, Inc. (FB) | U18: =IFERROR(RTD("cqg.rtd", ,"ContractData",AB18, "LastTrade",, "T"),"") -> 134.02 | V18: =IFERROR(RTD("cqg.rtd", ,"ContractData",AB18, "NetChange",, "T"),"") -> -0.17 | W18: =IFERROR(RTD("cqg.rtd", ,"ContractData",AB18, "PerCentNetLastTrade",, "T")/100,"") -> -0.001266860422 | X18: -0.001266860422 | Y18: =IFERROR(RTD("cqg.rtd", ,"ContractData",AB18, "Open",, "T"),"") -> 134.69 | Z18: =IFERROR(RTD("cqg.rtd", ,"ContractData",AB18, "High",, "T"),"") -> 134.69 | AA18: =IFERROR(RTD("cqg.rtd", ,"ContractData",AB18, "Low",, "T"),"") -> 133.7 | AB18: =Symbols!H17 -> S.US.FB
A19: =Symbols!C18 -> F.US.GCE | B19: =RTD("cqg.rtd",,"ContractData",A19,"LongDescription",,"T")&" ("&RIGHT(A19,LEN(A19)-5)&")" -> Gold (Globex), Apr 17 (GCE) | E19: =IFERROR(RTD("cqg.rtd", ,"ContractData",A19, "LastTrade",, "T"),"") -> 1227.2 | F19: =IFERROR(RTD("cqg.rtd", ,"ContractData",A19, "NetChange",, "T"),"") -> -8.7 | G19: =IFERROR(RTD("cqg.rtd", ,"ContractData",A19, "PerCentNetLastTrade",, "T")/100,"") -> -0.007039404483 | H19: -0.007039404483 | I19: =IFERROR(RTD("cqg.rtd", ,"ContractData",A19, "Open",, "T"),"") -> 1234.2 | J19: =IFERROR(RTD("cqg.rtd", ,"ContractData",A19, "High",, "T"),"") -> 1234.4 | K19: =IFERROR(RTD("cqg.rtd", ,"ContractData",A19, "Low",, "T"),"") -> 1220.3 | R19: =IFERROR(RTD("cqg.rtd", ,"ContractData",AB19, "LongDescription",, "T"),"")&" ("&RIGHT(AB19,LEN(AB19)-5)&")" -> iShares 20+ Year Treasury Bond ETF (TLT) | U19: =IFERROR(RTD("cqg.rtd", ,"ContractData",AB19, "LastTrade",, "T"),"") -> 120.32 | V19: =IFERROR(RTD("cqg.rtd", ,"ContractData",AB19, "NetChange",, "T"),"") -> -0.44 | W19: =IFERROR(RTD("cqg.rtd", ,"ContractData",AB19, "PerCentNetLastTrade",, "T")/100,"") -> -0.003643590593 | X19: -0.003643590593 | Y19: =IFERROR(RTD("cqg.rtd", ,"ContractData",AB19, "Open",, "T"),"") -> 120.25 | Z19: =IFERROR(RTD("cqg.rtd", ,"ContractData",AB19, "High",, "T"),"") -> 120.41 | AA19: =IFERROR(RTD("cqg.rtd", ,"ContractData",AB19, "Low",, "T"),"") -> 119.88 | AB19: =Symbols!H18 -> S.US.TLT
A20: =Symbols!C19 -> F.US.DD | B20: =RTD("cqg.rtd",,"ContractData",A20,"LongDescription",,"T")&" ("&RIGHT(A20,LEN(A20)-5)&")" -> DAX Index, Mar 17 (DD) | E20: =IFERROR(RTD("cqg.rtd", ,"ContractData",A20, "LastTrade",, "T"),"") -> 11781.5 | F20: =IFERROR(RTD("cqg.rtd", ,"ContractData",A20, "NetChange",, "T"),"") -> 122 | G20: =IFERROR(RTD("cqg.rtd", ,"ContractData",A20, "PerCentNetLastTrade",, "T")/100,"") -> 0.01042024014 | H20: 0.01042024014 | I20: =IFERROR(RTD("cqg.rtd", ,"ContractData",A20, "Open",, "T"),"") -> 11665.5 | J20: =IFERROR(RTD("cqg.rtd", ,"ContractData",A20, "High",, "T"),"") -> 11809 | K20: =IFERROR(RTD("cqg.rtd", ,"ContractData",A20, "Low",, "T"),"") -> 11664 | R20: =IFERROR(RTD("cqg.rtd", ,"ContractData",AB20, "LongDescription",, "T"),"")&" ("&RIGHT(AB20,LEN(AB20)-5)&")" -> Intel Corporation (INTC) | U20: =IFERROR(RTD("cqg.rtd", ,"ContractData",AB20, "LastTrade",, "T"),"") -> 35.77 | V20: =IFERROR(RTD("cqg.rtd", ,"ContractData",AB20, "NetChange",, "T"),"") -> 0.43 | W20: =IFERROR(RTD("cqg.rtd", ,"ContractData",AB20, "PerCentNetLastTrade",, "T")/100,"") -> 0.01216751556 | X20: 0.01216751556 | Y20: =IFERROR(RTD("cqg.rtd", ,"ContractData",AB20, "Open",, "T"),"") -> 35.57 | Z20: =IFERROR(RTD("cqg.rtd", ,"ContractData",AB20, "High",, "T"),"") -> 35.85 | AA20: =IFERROR(RTD("cqg.rtd", ,"ContractData",AB20, "Low",, "T"),"") -> 35.34 | AB20: =Symbols!H19 -> S.US.INTC
A21: =Symbols!C20 -> F.US.DSX | B21: =RTD("cqg.rtd",,"ContractData",A21,"LongDescription",,"T")&" ("&RIGHT(A21,LEN(A21)-5)&")" -> Euro STOXX 50, Mar 17 (DSX) | E21: =IFERROR(RTD("cqg.rtd", ,"ContractData",A21, "LastTrade",, "T"),"") -> 3307 | F21: =IFERROR(RTD("cqg.rtd", ,"ContractData",A21, "NetChange",, "T"),"") -> 37 | G21: =IFERROR(RTD("cqg.rtd", ,"ContractData",A21, "PerCentNetLastTrade",, "T")/100,"") -> 0.01131498471 | H21: 0.01131498471 | I21: =IFERROR(RTD("cqg.rtd", ,"ContractData",A21, "Open",, "T"),"") -> 3272 | J21: =IFERROR(RTD("cqg.rtd", ,"ContractData",A21, "High",, "T"),"") -> 3314 | K21: =IFERROR(RTD("cqg.rtd", ,"ContractData",A21, "Low",, "T"),"") -> 3272 | R21: =IFERROR(RTD("cqg.rtd", ,"ContractData",AB21, "LongDescription",, "T"),"")&" ("&RIGHT(AB21,LEN(AB21)-5)&")" -> QUALCOMM Inc (QCOM) | U21: =IFERROR(RTD("cqg.rtd", ,"ContractData",AB21, "LastTrade",, "T"),"") -> 54.98 | V21: =IFERROR(RTD("cqg.rtd", ,"ContractData",AB21, "NetChange",, "T"),"") -> 0.98 | W21: =IFERROR(RTD("cqg.rtd", ,"ContractData",AB21, "PerCentNetLastTrade",, "T")/100,"") -> 0.01814814815 | X21: 0.01814814815 | Y21: =IFERROR(RTD("cqg.rtd", ,"ContractData",AB21, "Open",, "T"),"") -> 54.58 | Z21: =IFERROR(RTD("cqg.rtd", ,"ContractData",AB21, "High",, "T"),"") -> 55.13 | AA21: =IFERROR(RTD("cqg.rtd", ,"ContractData",AB21, "Low",, "T"),"") -> 54.26 | AB21: =Symbols!H20 -> S.US.QCOM
A22: =Symbols!C21 -> F.US.TYA | B22: =RTD("cqg.rtd",,"ContractData",A22,"LongDescription",,"T")&" ("&RIGHT(A22,LEN(A22)-5)&")" -> 10yr US Treasury Notes (Globex), Mar 17 (TYA) | E22: =IFERROR(RTD("cqg.rtd", ,"ContractData",A22, "LastTrade",, "T"),"") -> 124.59375 | F22: =IFERROR(RTD("cqg.rtd", ,"ContractData",A22, "NetChange",, "T"),"") -> -0.1875 | G22: =IFERROR(RTD("cqg.rtd", ,"ContractData",A22, "PerCentNetLastTrade",, "T")/100,"") -> -0.001502629602 | H22: -0.001502629602 | I22: =IFERROR(RTD("cqg.rtd", ,"ContractData",A22, "Open",, "T"),"") -> 124.734375 | J22: =IFERROR(RTD("cqg.rtd", ,"ContractData",A22, "High",, "T"),"") -> 124.75 | K22: =IFERROR(RTD("cqg.rtd", ,"ContractData",A22, "Low",, "T"),"") -> 124.4375 | R22: =IFERROR(RTD("cqg.rtd", ,"ContractData",AB22, "LongDescription",, "T"),"")&" ("&RIGHT(AB22,LEN(AB22)-5)&")" -> American Airlines Group Inc. (AAL) | U22: =IFERROR(RTD("cqg.rtd", ,"ContractData",AB22, "LastTrade",, "T"),"") -> 47.53 | V22: =IFERROR(RTD("cqg.rtd", ,"ContractData",AB22, "NetChange",, "T"),"") -> 1.08 | W22: =IFERROR(RTD("cqg.rtd", ,"ContractData",AB22, "PerCentNetLastTrade",, "T")/100,"") -> 0.02325080732 | X22: 0.02325080732 | Y22: =IFERROR(RTD("cqg.rtd", ,"ContractData",AB22, "Open",, "T"),"") -> 46.56 | Z22: =IFERROR(RTD("cqg.rtd", ,"ContractData",AB22, "High",, "T"),"") -> 47.78 | AA22: =IFERROR(RTD("cqg.rtd", ,"ContractData",AB22, "Low",, "T"),"") -> 46.5 | AB22: =Symbols!H21 -> S.US.AAL
B23: Description | E23: Last | F23: Net | G23: % Net | H23: Tdy Vol | I23: Open | J23: High | K23: Low | R23: Description | U23: Last | V23: Net | W23: % Net | X23: Tdy Vol | Y23: Open | Z23: High | AA23: Low
E24: Price | F24: Change | G24: Change | H24: 21d-Vol | L24: NYSE Total Volume | O24: NASDAQ Total Volume | U24: Price | V24: Change | W24: Change | X24: 21d-Vol
B25: CQG Top Ten Percentage Performers in the S&P 500 | L25: =IFERROR(RTD("cqg.rtd", ,"ContractData","DJTOV", "LastTrade",, "T"),"") -> 564796 | O25: =O28+O31+O34 -> 1699358 | R25: CQG Top Ten Percentage Performers in the NASDAQ 100
A26: =TRIM('S&P500'!I1) -> S.US.GT | B26: =IFERROR(RTD("cqg.rtd",,"ContractData",A26,"LongDescription",,"T")&" ("&RIGHT(A26,LEN(A26)-5)&")","") -> Goodyear Tire & Rbr Co (GT) | E26: =IF(B26="","",IFERROR(RTD("cqg.rtd",,"ContractData",A26,"LastTrade",,"T"),"")) -> 35.66 | F26: =IF(B26="","",IFERROR(RTD("cqg.rtd", ,"ContractData",A26, "NetChange",, "T"),"")) -> 1.94 | G26: =IFERROR(RTD("cqg.rtd", ,"ContractData",A26, "PerCentNetLastTrade",, "T")/100,"") -> 0.05753262159 | H26: =IFERROR(RTD("cqg.rtd",,"StudyData",A26, "Vol", "VolType=Exchange,CoCType=Exchange", "Vol","ADC","0","ALL",,,"TRUE","T")/ RTD("cqg.rtd",,"StudyData",A26, "MA", "InputChoice=ContractVol,MAType=Sim,Period=21", "MA","D","-1","all",,,,"T"),"") -> 2.175949358 | I26: =IF(B26="","",IFERROR(RTD("cqg.rtd", ,"ContractData",A26, "Open",, "T"),"")) -> 33.7 | J26: =IF(B26="","",IFERROR(RTD("cqg.rtd", ,"ContractData",A26, "High",, "T"),"")) -> 35.7 | K26: =IF(B26="","",IFERROR(RTD("cqg.rtd",,"ContractData",A26,"Low",,"T"),"")) -> 33.7 | L26: NYSE Up Volume | O26: NASDAQ Up Volume | R26: =IFERROR(RTD("cqg.rtd",,"ContractData",AB26,"LongDescription",,"T")&" ("&RIGHT(AB26,LEN(AB26)-5)&")","") -> Regeneron Pharm Inc (REGN) | U26: =IF(R26="","",IFERROR(RTD("cqg.rtd",,"ContractData",AB26,"LastTrade",,"T"),"")) -> 375.41 | V26: =IF(R26="","",IFERROR(RTD("cqg.rtd", ,"ContractData",AB26, "NetChange",, "T"),"")) -> 15.54 | W26: =IFERROR(RTD("cqg.rtd", ,"ContractData",AB26, "PerCentNetLastTrade",, "T")/100,"") -> 0.04318226026 | X26: =IFERROR(RTD("cqg.rtd",,"StudyData",AB26, "Vol", "VolType=Exchange,CoCType=Exchange", "Vol","ADC","0","ALL",,,"TRUE","T")/ RTD("cqg.rtd",,"StudyData",AB26, "MA", "InputChoice=ContractVol,MAType=Sim,Period=21", "MA","D","-1","all",,,,"T"),"") -> 1.680245753 | Y26: =IF(R26="","",IFERROR(RTD("cqg.rtd", ,"ContractData",AB26, "Open",, "T"),"")) -> 364.22 | Z26: =IF(R26="","",IFERROR(RTD("cqg.rtd", ,"ContractData",AB26, "High",, "T"),"")) -> 378.46 | AA26: =IF(R26="","",IFERROR(RTD("cqg.rtd", ,"ContractData",AB26, "Low",, "T"),"")) -> 363.2 | AB26: =NASDAQ100!I1 -> S.US.REGN
A27: =TRIM('S&P500'!I2) -> S.US.NUE | B27: =IFERROR(RTD("cqg.rtd",,"ContractData",A27,"LongDescription",,"T")&" ("&RIGHT(A27,LEN(A27)-5)&")","") -> Nucor Corp (NUE) | E27: =IF(B27="","",IFERROR(RTD("cqg.rtd",,"ContractData",A27,"LastTrade",,"T"),"")) -> 63.77 | F27: =IF(B27="","",IFERROR(RTD("cqg.rtd", ,"ContractData",A27, "NetChange",, "T"),"")) -> 2.78 | G27: =IFERROR(RTD("cqg.rtd", ,"ContractData",A27, "PerCentNetLastTrade",, "T")/100,"") -> 0.04558124283 | H27: =IFERROR(RTD("cqg.rtd",,"StudyData",A27, "Vol", "VolType=Exchange,CoCType=Exchange", "Vol","ADC","0","ALL",,,"TRUE","T")/ RTD("cqg.rtd",,"StudyData",A27, "MA", "InputChoice=ContractVol,MAType=Sim,Period=21", "MA","D","-1","all",,,,"T"),"") -> 0.9854306073 | I27: =IF(B27="","",IFERROR(RTD("cqg.rtd", ,"ContractData",A27, "Open",, "T"),"")) -> 62.36 | J27: =IF(B27="","",IFERROR(RTD("cqg.rtd", ,"ContractData",A27, "High",, "T"),"")) -> 63.97 | K27: =IF(B27="","",IFERROR(RTD("cqg.rtd",,"ContractData",A27,"Low",,"T"),"")) -> 62.25 | R27: =IFERROR(RTD("cqg.rtd",,"ContractData",AB27,"LongDescription",,"T")&" ("&RIGHT(AB27,LEN(AB27)-5)&")","") -> Tesla, Inc. (TSLA) | U27: =IF(R27="","",IFERROR(RTD("cqg.rtd",,"ContractData",AB27,"LastTrade",,"T"),"")) -> 280.56 | V27: =IF(R27="","",IFERROR(RTD("cqg.rtd", ,"ContractData",AB27, "NetChange",, "T"),"")) -> 11.39 | W27: =IFERROR(RTD("cqg.rtd", ,"ContractData",AB27, "PerCentNetLastTrade",, "T")/100,"") -> 0.04208297738 | X27: =IFERROR(RTD("cqg.rtd",,"StudyData",AB27, "Vol", "VolType=Exchange,CoCType=Exchange", "Vol","ADC","0","ALL",,,"TRUE","T")/ RTD("cqg.rtd",,"StudyData",AB27, "MA", "InputChoice=ContractVol,MAType=Sim,Period=21", "MA","D","-1","all",,,,"T"),"") -> 1.508767551 | Y27: =IF(R27="","",IFERROR(RTD("cqg.rtd", ,"ContractData",AB27, "Open",, "T"),"")) -> 270.74 | Z27: =IF(R27="","",IFERROR(RTD("cqg.rtd", ,"ContractData",AB27, "High",, "T"),"")) -> 280.78 | AA27: =IF(R27="","",IFERROR(RTD("cqg.rtd", ,"ContractData",AB27, "Low",, "T"),"")) -> 270.51 | AB27: =NASDAQ100!I2 -> S.US.TSLA
A28: =TRIM('S&P500'!I3) -> S.US.REGN | B28: =IFERROR(RTD("cqg.rtd",,"ContractData",A28,"LongDescription",,"T")&" ("&RIGHT(A28,LEN(A28)-5)&")","") -> Regeneron Pharm Inc (REGN) | E28: =IF(B28="","",IFERROR(RTD("cqg.rtd",,"ContractData",A28,"LastTrade",,"T"),"")) -> 375.41 | F28: =IF(B28="","",IFERROR(RTD("cqg.rtd", ,"ContractData",A28, "NetChange",, "T"),"")) -> 15.54 | G28: =IFERROR(RTD("cqg.rtd", ,"ContractData",A28, "PerCentNetLastTrade",, "T")/100,"") -> 0.04318226026 | H28: =IFERROR(RTD("cqg.rtd",,"StudyData",A28, "Vol", "VolType=Exchange,CoCType=Exchange", "Vol","ADC","0","ALL",,,"TRUE","T")/ RTD("cqg.rtd",,"StudyData",A28, "MA", "InputChoice=ContractVol,MAType=Sim,Period=21", "MA","D","-1","all",,,,"T"),"") -> 1.680245753 | I28: =IF(B28="","",IFERROR(RTD("cqg.rtd", ,"ContractData",A28, "Open",, "T"),"")) -> 364.22 | J28: =IF(B28="","",IFERROR(RTD("cqg.rtd", ,"ContractData",A28, "High",, "T"),"")) -> 378.46 | K28: =IF(B28="","",IFERROR(RTD("cqg.rtd",,"ContractData",A28,"Low",,"T"),"")) -> 363.2 | L28: =IFERROR(RTD("cqg.rtd", ,"ContractData","DJUPV", "LastTrade",, "T"),"") -> 372209 | O28: =IFERROR(RTD("cqg.rtd", ,"ContractData","NASUPV", "LastTrade",, "T"),"") -> 956818 | R28: =IFERROR(RTD("cqg.rtd",,"ContractData",AB28,"LongDescription",,"T")&" ("&RIGHT(AB28,LEN(AB28)-5)&")","") -> Seagate Technology (STX) | U28: =IF(R28="","",IFERROR(RTD("cqg.rtd",,"ContractData",AB28,"LastTrade",,"T"),"")) -> 47.78 | V28: =IF(R28="","",IFERROR(RTD("cqg.rtd", ,"ContractData",AB28, "NetChange",, "T"),"")) -> 1.32 | W28: =IFERROR(RTD("cqg.rtd", ,"ContractData",AB28, "PerCentNetLastTrade",, "T")/100,"") -> 0.02841153681 | X28: =IFERROR(RTD("cqg.rtd",,"StudyData",AB28, "Vol", "VolType=Exchange,CoCType=Exchange", "Vol","ADC","0","ALL",,,"TRUE","T")/ RTD("cqg.rtd",,"StudyData",AB28, "MA", "InputChoice=ContractVol,MAType=Sim,Period=21", "MA","D","-1","all",,,,"T"),"") -> 0.7091927807 | Y28: =IF(R28="","",IFERROR(RTD("cqg.rtd", ,"ContractData",AB28, "Open",, "T"),"")) -> 46.89 | Z28: =IF(R28="","",IFERROR(RTD("cqg.rtd", ,"ContractData",AB28, "High",, "T"),"")) -> 48.08 | AA28: =IF(R28="","",IFERROR(RTD("cqg.rtd", ,"ContractData",AB28, "Low",, "T"),"")) -> 46.58 | AB28: =NASDAQ100!I3 -> S.US.STX
A29: =TRIM('S&P500'!I4) -> S.US.CCI | B29: =IFERROR(RTD("cqg.rtd",,"ContractData",A29,"LongDescription",,"T")&" ("&RIGHT(A29,LEN(A29)-5)&")","") -> Crown Castle Intl (CCI) | E29: =IF(B29="","",IFERROR(RTD("cqg.rtd",,"ContractData",A29,"LastTrade",,"T"),"")) -> 90.18 | F29: =IF(B29="","",IFERROR(RTD("cqg.rtd", ,"ContractData",A29, "NetChange",, "T"),"")) -> 2.62 | G29: =IFERROR(RTD("cqg.rtd", ,"ContractData",A29, "PerCentNetLastTrade",, "T")/100,"") -> 0.02992233897 | H29: =IFERROR(RTD("cqg.rtd",,"StudyData",A29, "Vol", "VolType=Exchange,CoCType=Exchange", "Vol","ADC","0","ALL",,,"TRUE","T")/ RTD("cqg.rtd",,"StudyData",A29, "MA", "InputChoice=ContractVol,MAType=Sim,Period=21", "MA","D","-1","all",,,,"T"),"") -> 0.9365904095 | I29: =IF(B29="","",IFERROR(RTD("cqg.rtd", ,"ContractData",A29, "Open",, "T"),"")) -> 87.94 | J29: =IF(B29="","",IFERROR(RTD("cqg.rtd", ,"ContractData",A29, "High",, "T"),"")) -> 90.18 | K29: =IF(B29="","",IFERROR(RTD("cqg.rtd",,"ContractData",A29,"Low",,"T"),"")) -> 87.92 | L29: NYSE Down Volume | O29: NASDAQ Down Volume | R29: =IFERROR(RTD("cqg.rtd",,"ContractData",AB29,"LongDescription",,"T")&" ("&RIGHT(AB29,LEN(AB29)-5)&")","") -> Xilinx Inc (XLNX) | U29: =IF(R29="","",IFERROR(RTD("cqg.rtd",,"ContractData",AB29,"LastTrade",,"T"),"")) -> 59.56 | V29: =IF(R29="","",IFERROR(RTD("cqg.rtd", ,"ContractData",AB29, "NetChange",, "T"),"")) -> 1.55 | W29: =IFERROR(RTD("cqg.rtd", ,"ContractData",AB29, "PerCentNetLastTrade",, "T")/100,"") -> 0.02671953112 | X29: =IFERROR(RTD("cqg.rtd",,"StudyData",AB29, "Vol", "VolType=Exchange,CoCType=Exchange", "Vol","ADC","0","ALL",,,"TRUE","T")/ RTD("cqg.rtd",,"StudyData",AB29, "MA", "InputChoice=ContractVol,MAType=Sim,Period=21", "MA","D","-1","all",,,,"T"),"") -> 1.258294383 | Y29: =IF(R29="","",IFERROR(RTD("cqg.rtd", ,"ContractData",AB29, "Open",, "T"),"")) -> 58.26 | Z29: =IF(R29="","",IFERROR(RTD("cqg.rtd", ,"ContractData",AB29, "High",, "T"),"")) -> 59.7 | AA29: =IF(R29="","",IFERROR(RTD("cqg.rtd", ,"ContractData",AB29, "Low",, "T"),"")) -> 58.15 | AB29: =NASDAQ100!I4 -> S.US.XLNX
A30: =TRIM('S&P500'!I5) -> S.US.STX | B30: =IFERROR(RTD("cqg.rtd",,"ContractData",A30,"LongDescription",,"T")&" ("&RIGHT(A30,LEN(A30)-5)&")","") -> Seagate Technology (STX) | E30: =IF(B30="","",IFERROR(RTD("cqg.rtd",,"ContractData",A30,"LastTrade",,"T"),"")) -> 47.78 | F30: =IF(B30="","",IFERROR(RTD("cqg.rtd", ,"ContractData",A30, "NetChange",, "T"),"")) -> 1.32 | G30: =IFERROR(RTD("cqg.rtd", ,"ContractData",A30, "PerCentNetLastTrade",, "T")/100,"") -> 0.02841153681 | H30: =IFERROR(RTD("cqg.rtd",,"StudyData",A30, "Vol", "VolType=Exchange,CoCType=Exchange", "Vol","ADC","0","ALL",,,"TRUE","T")/ RTD("cqg.rtd",,"StudyData",A30, "MA", "InputChoice=ContractVol,MAType=Sim,Period=21", "MA","D","-1","all",,,,"T"),"") -> 0.7091927807 | I30: =IF(B30="","",IFERROR(RTD("cqg.rtd", ,"ContractData",A30, "Open",, "T"),"")) -> 46.89 | J30: =IF(B30="","",IFERROR(RTD("cqg.rtd", ,"ContractData",A30, "High",, "T"),"")) -> 48.08 | K30: =IF(B30="","",IFERROR(RTD("cqg.rtd",,"ContractData",A30,"Low",,"T"),"")) -> 46.58 | R30: =IFERROR(RTD("cqg.rtd",,"ContractData",AB30,"LongDescription",,"T")&" ("&RIGHT(AB30,LEN(AB30)-5)&")","") -> SBA Comms Corp (SBAC) | U30: =IF(R30="","",IFERROR(RTD("cqg.rtd",,"ContractData",AB30,"LastTrade",,"T"),"")) -> 109.47 | V30: =IF(R30="","",IFERROR(RTD("cqg.rtd", ,"ContractData",AB30, "NetChange",, "T"),"")) -> 2.54 | W30: =IFERROR(RTD("cqg.rtd", ,"ContractData",AB30, "PerCentNetLastTrade",, "T")/100,"") -> 0.02346671653 | X30: =IFERROR(RTD("cqg.rtd",,"StudyData",AB30, "Vol", "VolType=Exchange,CoCType=Exchange", "Vol","ADC","0","ALL",,,"TRUE","T")/ RTD("cqg.rtd",,"StudyData",AB30, "MA", "InputChoice=ContractVol,MAType=Sim,Period=21", "MA","D","-1","all",,,,"T"),"") -> 0.8957925605 | Y30: =IF(R30="","",IFERROR(RTD("cqg.rtd", ,"ContractData",AB30, "Open",, "T"),"")) -> 107.14 | Z30: =IF(R30="","",IFERROR(RTD("cqg.rtd", ,"ContractData",AB30, "High",, "T"),"")) -> 109.55 | AA30: =IF(R30="","",IFERROR(RTD("cqg.rtd", ,"ContractData",AB30, "Low",, "T"),"")) -> 105.74 | AB30: =NASDAQ100!I5 -> S.US.SBAC
A31: =TRIM('S&P500'!I6) -> S.US.XLNX | B31: =IFERROR(RTD("cqg.rtd",,"ContractData",A31,"LongDescription",,"T")&" ("&RIGHT(A31,LEN(A31)-5)&")","") -> Xilinx Inc (XLNX) | E31: =IF(B31="","",IFERROR(RTD("cqg.rtd",,"ContractData",A31,"LastTrade",,"T"),"")) -> 59.56 | F31: =IF(B31="","",IFERROR(RTD("cqg.rtd", ,"ContractData",A31, "NetChange",, "T"),"")) -> 1.55 | G31: =IFERROR(RTD("cqg.rtd", ,"ContractData",A31, "PerCentNetLastTrade",, "T")/100,"") -> 0.02671953112 | H31: =IFERROR(RTD("cqg.rtd",,"StudyData",A31, "Vol", "VolType=Exchange,CoCType=Exchange", "Vol","ADC","0","ALL",,,"TRUE","T")/ RTD("cqg.rtd",,"StudyData",A31, "MA", "InputChoice=ContractVol,MAType=Sim,Period=21", "MA","D","-1","all",,,,"T"),"") -> 1.258294383 | I31: =IF(B31="","",IFERROR(RTD("cqg.rtd", ,"ContractData",A31, "Open",, "T"),"")) -> 58.26 | J31: =IF(B31="","",IFERROR(RTD("cqg.rtd", ,"ContractData",A31, "High",, "T"),"")) -> 59.7 | K31: =IF(B31="","",IFERROR(RTD("cqg.rtd",,"ContractData",A31,"Low",,"T"),"")) -> 58.15 | L31: =IFERROR(RTD("cqg.rtd", ,"ContractData","DJDNV", "LastTrade",, "T"),"") -> 187378 | O31: =IFERROR(RTD("cqg.rtd", ,"ContractData","NASDNV", "LastTrade",, "T"),"") -> 585008 | R31: =IFERROR(RTD("cqg.rtd",,"ContractData",AB31,"LongDescription",,"T")&" ("&RIGHT(AB31,LEN(AB31)-5)&")","") -> American Airlines Group Inc. (AAL) | U31: =IF(R31="","",IFERROR(RTD("cqg.rtd",,"ContractData",AB31,"LastTrade",,"T"),"")) -> 47.53 | V31: =IF(R31="","",IFERROR(RTD("cqg.rtd", ,"ContractData",AB31, "NetChange",, "T"),"")) -> 1.08 | W31: =IFERROR(RTD("cqg.rtd", ,"ContractData",AB31, "PerCentNetLastTrade",, "T")/100,"") -> 0.02325080732 | X31: =IFERROR(RTD("cqg.rtd",,"StudyData",AB31, "Vol", "VolType=Exchange,CoCType=Exchange", "Vol","ADC","0","ALL",,,"TRUE","T")/ RTD("cqg.rtd",,"StudyData",AB31, "MA", "InputChoice=ContractVol,MAType=Sim,Period=21", "MA","D","-1","all",,,,"T"),"") -> 0.7558666432 | Y31: =IF(R31="","",IFERROR(RTD("cqg.rtd", ,"ContractData",AB31, "Open",, "T"),"")) -> 46.56 | Z31: =IF(R31="","",IFERROR(RTD("cqg.rtd", ,"ContractData",AB31, "High",, "T"),"")) -> 47.78 | AA31: =IF(R31="","",IFERROR(RTD("cqg.rtd", ,"ContractData",AB31, "Low",, "T"),"")) -> 46.5 | AB31: =NASDAQ100!I6 -> S.US.AAL
A32: =TRIM('S&P500'!I7) -> S.US.MOS | B32: =IFERROR(RTD("cqg.rtd",,"ContractData",A32,"LongDescription",,"T")&" ("&RIGHT(A32,LEN(A32)-5)&")","") -> Mosaic Company (MOS) | E32: =IF(B32="","",IFERROR(RTD("cqg.rtd",,"ContractData",A32,"LastTrade",,"T"),"")) -> 33.71 | F32: =IF(B32="","",IFERROR(RTD("cqg.rtd", ,"ContractData",A32, "NetChange",, "T"),"")) -> 0.85 | G32: =IFERROR(RTD("cqg.rtd", ,"ContractData",A32, "PerCentNetLastTrade",, "T")/100,"") -> 0.02586731589 | H32: =IFERROR(RTD("cqg.rtd",,"StudyData",A32, "Vol", "VolType=Exchange,CoCType=Exchange", "Vol","ADC","0","ALL",,,"TRUE","T")/ RTD("cqg.rtd",,"StudyData",A32, "MA", "InputChoice=ContractVol,MAType=Sim,Period=21", "MA","D","-1","all",,,,"T"),"") -> 1.040363725 | I32: =IF(B32="","",IFERROR(RTD("cqg.rtd", ,"ContractData",A32, "Open",, "T"),"")) -> 33.13 | J32: =IF(B32="","",IFERROR(RTD("cqg.rtd", ,"ContractData",A32, "High",, "T"),"")) -> 34.36 | K32: =IF(B32="","",IFERROR(RTD("cqg.rtd",,"ContractData",A32,"Low",,"T"),"")) -> 33.1 | L32: NYSE Unchanged Vol | O32: NASDAQ Unchanged Vol | R32: =IFERROR(RTD("cqg.rtd",,"ContractData",AB32,"LongDescription",,"T")&" ("&RIGHT(AB32,LEN(AB32)-5)&")","") -> Discovery Holding Channel Common A (DISCA) | U32: =IF(R32="","",IFERROR(RTD("cqg.rtd",,"ContractData",AB32,"LastTrade",,"T"),"")) -> 29.06 | V32: =IF(R32="","",IFERROR(RTD("cqg.rtd", ,"ContractData",AB32, "NetChange",, "T"),"")) -> 0.58 | W32: =IFERROR(RTD("cqg.rtd", ,"ContractData",AB32, "PerCentNetLastTrade",, "T")/100,"") -> 0.02036516854 | X32: =IFERROR(RTD("cqg.rtd",,"StudyData",AB32, "Vol", "VolType=Exchange,CoCType=Exchange", "Vol","ADC","0","ALL",,,"TRUE","T")/ RTD("cqg.rtd",,"StudyData",AB32, "MA", "InputChoice=ContractVol,MAType=Sim,Period=21", "MA","D","-1","all",,,,"T"),"") -> 1.645824457 | Y32: =IF(R32="","",IFERROR(RTD("cqg.rtd", ,"ContractData",AB32, "Open",, "T"),"")) -> 28.51 | Z32: =IF(R32="","",IFERROR(RTD("cqg.rtd", ,"ContractData",AB32, "High",, "T"),"")) -> 29.2 | AA32: =IF(R32="","",IFERROR(RTD("cqg.rtd", ,"ContractData",AB32, "Low",, "T"),"")) -> 28.51 | AB32: =NASDAQ100!I7 -> S.US.DISCA
A33: =TRIM('S&P500'!I8) -> S.US.CF | B33: =IFERROR(RTD("cqg.rtd",,"ContractData",A33,"LongDescription",,"T")&" ("&RIGHT(A33,LEN(A33)-5)&")","") -> CF Industries Holdings, Inc (CF) | E33: =IF(B33="","",IFERROR(RTD("cqg.rtd",,"ContractData",A33,"LastTrade",,"T"),"")) -> 36.75 | F33: =IF(B33="","",IFERROR(RTD("cqg.rtd", ,"ContractData",A33, "NetChange",, "T"),"")) -> 0.91 | G33: =IFERROR(RTD("cqg.rtd", ,"ContractData",A33, "PerCentNetLastTrade",, "T")/100,"") -> 0.025390625 | H33: =IFERROR(RTD("cqg.rtd",,"StudyData",A33, "Vol", "VolType=Exchange,CoCType=Exchange", "Vol","ADC","0","ALL",,,"TRUE","T")/ RTD("cqg.rtd",,"StudyData",A33, "MA", "InputChoice=ContractVol,MAType=Sim,Period=21", "MA","D","-1","all",,,,"T"),"") -> 1.089602187 | I33: =IF(B33="","",IFERROR(RTD("cqg.rtd", ,"ContractData",A33, "Open",, "T"),"")) -> 36.08 | J33: =IF(B33="","",IFERROR(RTD("cqg.rtd", ,"ContractData",A33, "High",, "T"),"")) -> 37.1 | K33: =IF(B33="","",IFERROR(RTD("cqg.rtd",,"ContractData",A33,"Low",,"T"),"")) -> 36.02 | R33: =IFERROR(RTD("cqg.rtd",,"ContractData",AB33,"LongDescription",,"T")&" ("&RIGHT(AB33,LEN(AB33)-5)&")","") -> Gilead Sciences Inc (GILD) | U33: =IF(R33="","",IFERROR(RTD("cqg.rtd",,"ContractData",AB33,"LastTrade",,"T"),"")) -> 67.61 | V33: =IF(R33="","",IFERROR(RTD("cqg.rtd", ,"ContractData",AB33, "NetChange",, "T"),"")) -> 1.25 | W33: =IFERROR(RTD("cqg.rtd", ,"ContractData",AB33, "PerCentNetLastTrade",, "T")/100,"") -> 0.01883664858 | X33: =IFERROR(RTD("cqg.rtd",,"StudyData",AB33, "Vol", "VolType=Exchange,CoCType=Exchange", "Vol","ADC","0","ALL",,,"TRUE","T")/ RTD("cqg.rtd",,"StudyData",AB33, "MA", "InputChoice=ContractVol,MAType=Sim,Period=21", "MA","D","-1","all",,,,"T"),"") -> 1.066370077 | Y33: =IF(R33="","",IFERROR(RTD("cqg.rtd", ,"ContractData",AB33, "Open",, "T"),"")) -> 66.81 | Z33: =IF(R33="","",IFERROR(RTD("cqg.rtd", ,"ContractData",AB33, "High",, "T"),"")) -> 67.78 | AA33: =IF(R33="","",IFERROR(RTD("cqg.rtd", ,"ContractData",AB33, "Low",, "T"),"")) -> 66.5 | AB33: =NASDAQ100!I8 -> S.US.GILD
A34: =TRIM('S&P500'!I9) -> S.US.ICE | B34: =IFERROR(RTD("cqg.rtd",,"ContractData",A34,"LongDescription",,"T")&" ("&RIGHT(A34,LEN(A34)-5)&")","") -> Intercontinental, Inc. (ICE) | E34: =IF(B34="","",IFERROR(RTD("cqg.rtd",,"ContractData",A34,"LastTrade",,"T"),"")) -> 59.07 | F34: =IF(B34="","",IFERROR(RTD("cqg.rtd", ,"ContractData",A34, "NetChange",, "T"),"")) -> 1.42 | G34: =IFERROR(RTD("cqg.rtd", ,"ContractData",A34, "PerCentNetLastTrade",, "T")/100,"") -> 0.02463139636 | H34: =IFERROR(RTD("cqg.rtd",,"StudyData",A34, "Vol", "VolType=Exchange,CoCType=Exchange", "Vol","ADC","0","ALL",,,"TRUE","T")/ RTD("cqg.rtd",,"StudyData",A34, "MA", "InputChoice=ContractVol,MAType=Sim,Period=21", "MA","D","-1","all",,,,"T"),"") -> 0.693428981 | I34: =IF(B34="","",IFERROR(RTD("cqg.rtd", ,"ContractData",A34, "Open",, "T"),"")) -> 58.12 | J34: =IF(B34="","",IFERROR(RTD("cqg.rtd", ,"ContractData",A34, "High",, "T"),"")) -> 59.11 | K34: =IF(B34="","",IFERROR(RTD("cqg.rtd",,"ContractData",A34,"Low",,"T"),"")) -> 57.82 | L34: =IFERROR(RTD("cqg.rtd", ,"ContractData","DJUCV", "LastTrade",, "T"),"") -> 5208 | O34: =IFERROR(RTD("cqg.rtd", ,"ContractData","NASUCV", "LastTrade",, "T"),"") -> 157532 | R34: =IFERROR(RTD("cqg.rtd",,"ContractData",AB34,"LongDescription",,"T")&" ("&RIGHT(AB34,LEN(AB34)-5)&")","") -> Cerner Corporation (CERN) | U34: =IF(R34="","",IFERROR(RTD("cqg.rtd",,"ContractData",AB34,"LastTrade",,"T"),"")) -> 52.46 | V34: =IF(R34="","",IFERROR(RTD("cqg.rtd", ,"ContractData",AB34, "NetChange",, "T"),"")) -> 0.96 | W34: =IFERROR(RTD("cqg.rtd", ,"ContractData",AB34, "PerCentNetLastTrade",, "T")/100,"") -> 0.0186407767 | X34: =IFERROR(RTD("cqg.rtd",,"StudyData",AB34, "Vol", "VolType=Exchange,CoCType=Exchange", "Vol","ADC","0","ALL",,,"TRUE","T")/ RTD("cqg.rtd",,"StudyData",AB34, "MA", "InputChoice=ContractVol,MAType=Sim,Period=21", "MA","D","-1","all",,,,"T"),"") -> 0.9462549626 | Y34: =IF(R34="","",IFERROR(RTD("cqg.rtd", ,"ContractData",AB34, "Open",, "T"),"")) -> 51.53 | Z34: =IF(R34="","",IFERROR(RTD("cqg.rtd", ,"ContractData",AB34, "High",, "T"),"")) -> 52.47 | AA34: =IF(R34="","",IFERROR(RTD("cqg.rtd", ,"ContractData",AB34, "Low",, "T"),"")) -> 51.26 | AB34: =NASDAQ100!I9 -> S.US.CERN
A35: =TRIM('S&P500'!I10) -> S.US.C | B35: =IFERROR(RTD("cqg.rtd",,"ContractData",A35,"LongDescription",,"T")&" ("&RIGHT(A35,LEN(A35)-5)&")","") -> Citigroup Inc (C) | E35: =IF(B35="","",IFERROR(RTD("cqg.rtd",,"ContractData",A35,"LastTrade",,"T"),"")) -> 59.06 | F35: =IF(B35="","",IFERROR(RTD("cqg.rtd", ,"ContractData",A35, "NetChange",, "T"),"")) -> 1.43 | G35: =IFERROR(RTD("cqg.rtd", ,"ContractData",A35, "PerCentNetLastTrade",, "T")/100,"") -> 0.02481346521 | H35: =IFERROR(RTD("cqg.rtd",,"StudyData",A35, "Vol", "VolType=Exchange,CoCType=Exchange", "Vol","ADC","0","ALL",,,"TRUE","T")/ RTD("cqg.rtd",,"StudyData",A35, "MA", "InputChoice=ContractVol,MAType=Sim,Period=21", "MA","D","-1","all",,,,"T"),"") -> 0.9206213015 | I35: =IF(B35="","",IFERROR(RTD("cqg.rtd", ,"ContractData",A35, "Open",, "T"),"")) -> 57.99 | J35: =IF(B35="","",IFERROR(RTD("cqg.rtd", ,"ContractData",A35, "High",, "T"),"")) -> 59.36 | K35: =IF(B35="","",IFERROR(RTD("cqg.rtd",,"ContractData",A35,"Low",,"T"),"")) -> 57.99 | L35: NYSE Adv Issues | O35: NASDAQ Adv Issues | R35: =IFERROR(RTD("cqg.rtd",,"ContractData",AB35,"LongDescription",,"T")&" ("&RIGHT(AB35,LEN(AB35)-5)&")","") -> Analog Devices Inc (ADI) | U35: =IF(R35="","",IFERROR(RTD("cqg.rtd",,"ContractData",AB35,"LastTrade",,"T"),"")) -> 77.97 | V35: =IF(R35="","",IFERROR(RTD("cqg.rtd", ,"ContractData",AB35, "NetChange",, "T"),"")) -> 1.44 | W35: =IFERROR(RTD("cqg.rtd", ,"ContractData",AB35, "PerCentNetLastTrade",, "T")/100,"") -> 0.01881615053 | X35: =IFERROR(RTD("cqg.rtd",,"StudyData",AB35, "Vol", "VolType=Exchange,CoCType=Exchange", "Vol","ADC","0","ALL",,,"TRUE","T")/ RTD("cqg.rtd",,"StudyData",AB35, "MA", "InputChoice=ContractVol,MAType=Sim,Period=21", "MA","D","-1","all",,,,"T"),"") -> 0.8693148857 | Y35: =IF(R35="","",IFERROR(RTD("cqg.rtd", ,"ContractData",AB35, "Open",, "T"),"")) -> 77.01 | Z35: =IF(R35="","",IFERROR(RTD("cqg.rtd", ,"ContractData",AB35, "High",, "T"),"")) -> 78.03 | AA35: =IF(R35="","",IFERROR(RTD("cqg.rtd", ,"ContractData",AB35, "Low",, "T"),"")) -> 76.81 | AB35: =NASDAQ100!I10 -> S.US.ADI
B36: CQG Bottom Ten Percentage Performers in the S&P 500 | R36: CQG Bottom Ten Percentage Performers in the NASDAQ 100
A37: =TRIM('S&P500'!N1) -> S.US.NVDA | B37: =IFERROR(RTD("cqg.rtd",,"ContractData",A37,"LongDescription",,"T")&" ("&RIGHT(A37,LEN(A37)-5)&")","") -> NVIDIA Corp (NVDA) | E37: =IF(B37="","",IFERROR(RTD("cqg.rtd",,"ContractData",A37,"LastTrade",,"T"),"")) -> 108.57 | F37: =IF(B37="","",IFERROR(RTD("cqg.rtd", ,"ContractData",A37, "NetChange",, "T"),"")) -> -5.04 | G37: =IFERROR(RTD("cqg.rtd", ,"ContractData",A37, "PerCentNetLastTrade",, "T")/100,"") -> -0.04444640028 | H37: =IFERROR(RTD("cqg.rtd",,"StudyData",A37, "Vol", "VolType=Exchange,CoCType=Exchange", "Vol","ADC","0","ALL",,,"TRUE","T")/ RTD("cqg.rtd",,"StudyData",A37, "MA", "InputChoice=ContractVol,MAType=Sim,Period=21", "MA","D","-1","all",,,,"T"),"") -> 1.908061216 | I37: =IF(B37="","",IFERROR(RTD("cqg.rtd", ,"ContractData",A37, "Open",, "T"),"")) -> 113.39 | J37: =IF(B37="","",IFERROR(RTD("cqg.rtd", ,"ContractData",A37, "High",, "T"),"")) -> 113.98 | K37: =IF(B37="","",IFERROR(RTD("cqg.rtd",,"ContractData",A37,"Low",,"T"),"")) -> 108.2 | L37: =IFERROR(RTD("cqg.rtd", ,"ContractData","DJIUP", "LastTrade",, "T"),"") -> 1681 | O37: =IFERROR(RTD("cqg.rtd", ,"ContractData","NASIUP", "LastTrade",, "T"),"") -> 1624 | R37: =IFERROR(RTD("cqg.rtd",,"ContractData",AB37,"LongDescription",,"T")&" ("&RIGHT(AB37,LEN(AB37)-5)&")","") -> NVIDIA Corp (NVDA) | U37: =IF(R37="","",IFERROR(RTD("cqg.rtd",,"ContractData",AB37,"LastTrade",,"T"),"")) -> 108.57 | V37: =IF(R37="","",IFERROR(RTD("cqg.rtd", ,"ContractData",AB37, "NetChange",, "T"),"")) -> -5.04 | W37: =IFERROR(RTD("cqg.rtd", ,"ContractData",AB37, "PerCentNetLastTrade",, "T")/100,"") -> -0.04444640028 | X37: =IFERROR(RTD("cqg.rtd",,"StudyData",AB37, "Vol", "VolType=Exchange,CoCType=Exchange", "Vol","ADC","0","ALL",,,"TRUE","T")/ RTD("cqg.rtd",,"StudyData",AB37, "MA", "InputChoice=ContractVol,MAType=Sim,Period=21", "MA","D","-1","all",,,,"T"),"") -> 1.908061216 | Y37: =IF(R37="","",IFERROR(RTD("cqg.rtd", ,"ContractData",AB37, "Open",, "T"),"")) -> 113.39 | Z37: =IF(R37="","",IFERROR(RTD("cqg.rtd", ,"ContractData",AB37, "High",, "T"),"")) -> 113.98 | AA37: =IF(R37="","",IFERROR(RTD("cqg.rtd", ,"ContractData",AB37, "Low",, "T"),"")) -> 108.2 | AB37: =NASDAQ100!N1 -> S.US.NVDA
A38: =TRIM('S&P500'!N2) -> S.US.ATVI | B38: =IFERROR(RTD("cqg.rtd",,"ContractData",A38,"LongDescription",,"T")&" ("&RIGHT(A38,LEN(A38)-5)&")","") -> Activision Blizzard Inc (ATVI) | E38: =IF(B38="","",IFERROR(RTD("cqg.rtd",,"ContractData",A38,"LastTrade",,"T"),"")) -> 45.74 | F38: =IF(B38="","",IFERROR(RTD("cqg.rtd", ,"ContractData",A38, "NetChange",, "T"),"")) -> -1.49 | G38: =IFERROR(RTD("cqg.rtd", ,"ContractData",A38, "PerCentNetLastTrade",, "T")/100,"") -> -0.03154774508 | H38: =IFERROR(RTD("cqg.rtd",,"StudyData",A38, "Vol", "VolType=Exchange,CoCType=Exchange", "Vol","ADC","0","ALL",,,"TRUE","T")/ RTD("cqg.rtd",,"StudyData",A38, "MA", "InputChoice=ContractVol,MAType=Sim,Period=21", "MA","D","-1","all",,,,"T"),"") -> 2.187281238 | I38: =IF(B38="","",IFERROR(RTD("cqg.rtd", ,"ContractData",A38, "Open",, "T"),"")) -> 46.04 | J38: =IF(B38="","",IFERROR(RTD("cqg.rtd", ,"ContractData",A38, "High",, "T"),"")) -> 46.7 | K38: =IF(B38="","",IFERROR(RTD("cqg.rtd",,"ContractData",A38,"Low",,"T"),"")) -> 45.39 | L38: NYSE Dec Issues | O38: NASDAQ Dec Issues | R38: =IFERROR(RTD("cqg.rtd",,"ContractData",AB38,"LongDescription",,"T")&" ("&RIGHT(AB38,LEN(AB38)-5)&")","") -> Activision Blizzard Inc (ATVI) | U38: =IF(R38="","",IFERROR(RTD("cqg.rtd",,"ContractData",AB38,"LastTrade",,"T"),"")) -> 45.74 | V38: =IF(R38="","",IFERROR(RTD("cqg.rtd", ,"ContractData",AB38, "NetChange",, "T"),"")) -> -1.49 | W38: =IFERROR(RTD("cqg.rtd", ,"ContractData",AB38, "PerCentNetLastTrade",, "T")/100,"") -> -0.03154774508 | X38: =IFERROR(RTD("cqg.rtd",,"StudyData",AB38, "Vol", "VolType=Exchange,CoCType=Exchange", "Vol","ADC","0","ALL",,,"TRUE","T")/ RTD("cqg.rtd",,"StudyData",AB38, "MA", "InputChoice=ContractVol,MAType=Sim,Period=21", "MA","D","-1","all",,,,"T"),"") -> 2.187281238 | Y38: =IF(R38="","",IFERROR(RTD("cqg.rtd", ,"ContractData",AB38, "Open",, "T"),"")) -> 46.04 | Z38: =IF(R38="","",IFERROR(RTD("cqg.rtd", ,"ContractData",AB38, "High",, "T"),"")) -> 46.7 | AA38: =IF(R38="","",IFERROR(RTD("cqg.rtd", ,"ContractData",AB38, "Low",, "T"),"")) -> 45.39 | AB38: =NASDAQ100!N2 -> S.US.ATVI
A39: =TRIM('S&P500'!N3) -> S.US.EQT | B39: =IFERROR(RTD("cqg.rtd",,"ContractData",A39,"LongDescription",,"T")&" ("&RIGHT(A39,LEN(A39)-5)&")","") -> EQT Corp (EQT) | E39: =IF(B39="","",IFERROR(RTD("cqg.rtd",,"ContractData",A39,"LastTrade",,"T"),"")) -> 62.59 | F39: =IF(B39="","",IFERROR(RTD("cqg.rtd", ,"ContractData",A39, "NetChange",, "T"),"")) -> -1.76 | G39: =IFERROR(RTD("cqg.rtd", ,"ContractData",A39, "PerCentNetLastTrade",, "T")/100,"") -> -0.02735042735 | H39: =IFERROR(RTD("cqg.rtd",,"StudyData",A39, "Vol", "VolType=Exchange,CoCType=Exchange", "Vol","ADC","0","ALL",,,"TRUE","T")/ RTD("cqg.rtd",,"StudyData",A39, "MA", "InputChoice=ContractVol,MAType=Sim,Period=21", "MA","D","-1","all",,,,"T"),"") -> 0.483551384 | I39: =IF(B39="","",IFERROR(RTD("cqg.rtd", ,"ContractData",A39, "Open",, "T"),"")) -> 63.95 | J39: =IF(B39="","",IFERROR(RTD("cqg.rtd", ,"ContractData",A39, "High",, "T"),"")) -> 64.05 | K39: =IF(B39="","",IFERROR(RTD("cqg.rtd",,"ContractData",A39,"Low",,"T"),"")) -> 62.51 | R39: =IFERROR(RTD("cqg.rtd",,"ContractData",AB39,"LongDescription",,"T")&" ("&RIGHT(AB39,LEN(AB39)-5)&")","") -> T-Mobile US, Inc. (TMUS) | U39: =IF(R39="","",IFERROR(RTD("cqg.rtd",,"ContractData",AB39,"LastTrade",,"T"),"")) -> 60.75 | V39: =IF(R39="","",IFERROR(RTD("cqg.rtd", ,"ContractData",AB39, "NetChange",, "T"),"")) -> -1.64 | W39: =IFERROR(RTD("cqg.rtd", ,"ContractData",AB39, "PerCentNetLastTrade",, "T")/100,"") -> -0.02628626382 | X39: =IFERROR(RTD("cqg.rtd",,"StudyData",AB39, "Vol", "VolType=Exchange,CoCType=Exchange", "Vol","ADC","0","ALL",,,"TRUE","T")/ RTD("cqg.rtd",,"StudyData",AB39, "MA", "InputChoice=ContractVol,MAType=Sim,Period=21", "MA","D","-1","all",,,,"T"),"") -> 2.199749859 | Y39: =IF(R39="","",IFERROR(RTD("cqg.rtd", ,"ContractData",AB39, "Open",, "T"),"")) -> 60.59 | Z39: =IF(R39="","",IFERROR(RTD("cqg.rtd", ,"ContractData",AB39, "High",, "T"),"")) -> 61 | AA39: =IF(R39="","",IFERROR(RTD("cqg.rtd", ,"ContractData",AB39, "Low",, "T"),"")) -> 60.03 | AB39: =NASDAQ100!N3 -> S.US.TMUS
A40: =TRIM('S&P500'!N4) -> S.US.GPS | B40: =IFERROR(RTD("cqg.rtd",,"ContractData",A40,"LongDescription",,"T")&" ("&RIGHT(A40,LEN(A40)-5)&")","") -> Gap Inc (GPS) | E40: =IF(B40="","",IFERROR(RTD("cqg.rtd",,"ContractData",A40,"LastTrade",,"T"),"")) -> 23.69 | F40: =IF(B40="","",IFERROR(RTD("cqg.rtd", ,"ContractData",A40, "NetChange",, "T"),"")) -> -0.67 | G40: =IFERROR(RTD("cqg.rtd", ,"ContractData",A40, "PerCentNetLastTrade",, "T")/100,"") -> -0.02750410509 | H40: =IFERROR(RTD("cqg.rtd",,"StudyData",A40, "Vol", "VolType=Exchange,CoCType=Exchange", "Vol","ADC","0","ALL",,,"TRUE","T")/ RTD("cqg.rtd",,"StudyData",A40, "MA", "InputChoice=ContractVol,MAType=Sim,Period=21", "MA","D","-1","all",,,,"T"),"") -> 0.7762380839 | I40: =IF(B40="","",IFERROR(RTD("cqg.rtd", ,"ContractData",A40, "Open",, "T"),"")) -> 24.36 | J40: =IF(B40="","",IFERROR(RTD("cqg.rtd", ,"ContractData",A40, "High",, "T"),"")) -> 24.38 | K40: =IF(B40="","",IFERROR(RTD("cqg.rtd",,"ContractData",A40,"Low",,"T"),"")) -> 23.44 | L40: =IFERROR(RTD("cqg.rtd", ,"ContractData","DJIDN", "LastTrade",, "T"),"") -> 1300 | O40: =IFERROR(RTD("cqg.rtd", ,"ContractData","NASIDN", "LastTrade",, "T"),"") -> 1208 | R40: =IFERROR(RTD("cqg.rtd",,"ContractData",AB40,"LongDescription",,"T")&" ("&RIGHT(AB40,LEN(AB40)-5)&")","") -> Expedia Inc (EXPE) | U40: =IF(R40="","",IFERROR(RTD("cqg.rtd",,"ContractData",AB40,"LastTrade",,"T"),"")) -> 119.45 | V40: =IF(R40="","",IFERROR(RTD("cqg.rtd", ,"ContractData",AB40, "NetChange",, "T"),"")) -> -3.2 | W40: =IFERROR(RTD("cqg.rtd", ,"ContractData",AB40, "PerCentNetLastTrade",, "T")/100,"") -> -0.02609050143 | X40: =IFERROR(RTD("cqg.rtd",,"StudyData",AB40, "Vol", "VolType=Exchange,CoCType=Exchange", "Vol","ADC","0","ALL",,,"TRUE","T")/ RTD("cqg.rtd",,"StudyData",AB40, "MA", "InputChoice=ContractVol,MAType=Sim,Period=21", "MA","D","-1","all",,,,"T"),"") -> 1.955845866 | Y40: =IF(R40="","",IFERROR(RTD("cqg.rtd", ,"ContractData",AB40, "Open",, "T"),"")) -> 123.06 | Z40: =IF(R40="","",IFERROR(RTD("cqg.rtd", ,"ContractData",AB40, "High",, "T"),"")) -> 123.06 | AA40: =IF(R40="","",IFERROR(RTD("cqg.rtd", ,"ContractData",AB40, "Low",, "T"),"")) -> 119.38 | AB40: =NASDAQ100!N4 -> S.US.EXPE
A41: =TRIM('S&P500'!N5) -> S.US.EXPE | B41: =IFERROR(RTD("cqg.rtd",,"ContractData",A41,"LongDescription",,"T")&" ("&RIGHT(A41,LEN(A41)-5)&")","") -> Expedia Inc (EXPE) | E41: =IF(B41="","",IFERROR(RTD("cqg.rtd",,"ContractData",A41,"LastTrade",,"T"),"")) -> 119.45 | F41: =IF(B41="","",IFERROR(RTD("cqg.rtd", ,"ContractData",A41, "NetChange",, "T"),"")) -> -3.2 | G41: =IFERROR(RTD("cqg.rtd", ,"ContractData",A41, "PerCentNetLastTrade",, "T")/100,"") -> -0.02609050143 | H41: =IFERROR(RTD("cqg.rtd",,"StudyData",A41, "Vol", "VolType=Exchange,CoCType=Exchange", "Vol","ADC","0","ALL",,,"TRUE","T")/ RTD("cqg.rtd",,"StudyData",A41, "MA", "InputChoice=ContractVol,MAType=Sim,Period=21", "MA","D","-1","all",,,,"T"),"") -> 1.955845866 | I41: =IF(B41="","",IFERROR(RTD("cqg.rtd", ,"ContractData",A41, "Open",, "T"),"")) -> 123.06 | J41: =IF(B41="","",IFERROR(RTD("cqg.rtd", ,"ContractData",A41, "High",, "T"),"")) -> 123.06 | K41: =IF(B41="","",IFERROR(RTD("cqg.rtd",,"ContractData",A41,"Low",,"T"),"")) -> 119.38 | L41: NYSE Unc Issues | O41: NASDAQ Unc Issues | R41: =IFERROR(RTD("cqg.rtd",,"ContractData",AB41,"LongDescription",,"T")&" ("&RIGHT(AB41,LEN(AB41)-5)&")","") -> Liberty Global plc LiLAC Class A (LILA) | U41: =IF(R41="","",IFERROR(RTD("cqg.rtd",,"ContractData",AB41,"LastTrade",,"T"),"")) -> 22.65 | V41: =IF(R41="","",IFERROR(RTD("cqg.rtd", ,"ContractData",AB41, "NetChange",, "T"),"")) -> -0.55 | W41: =IFERROR(RTD("cqg.rtd", ,"ContractData",AB41, "PerCentNetLastTrade",, "T")/100,"") -> -0.02370689655 | X41: =IFERROR(RTD("cqg.rtd",,"StudyData",AB41, "Vol", "VolType=Exchange,CoCType=Exchange", "Vol","ADC","0","ALL",,,"TRUE","T")/ RTD("cqg.rtd",,"StudyData",AB41, "MA", "InputChoice=ContractVol,MAType=Sim,Period=21", "MA","D","-1","all",,,,"T"),"") -> 0.3945313415 | Y41: =IF(R41="","",IFERROR(RTD("cqg.rtd", ,"ContractData",AB41, "Open",, "T"),"")) -> 23.31 | Z41: =IF(R41="","",IFERROR(RTD("cqg.rtd", ,"ContractData",AB41, "High",, "T"),"")) -> 23.33 | AA41: =IF(R41="","",IFERROR(RTD("cqg.rtd", ,"ContractData",AB41, "Low",, "T"),"")) -> 22.58 | AB41: =NASDAQ100!N5 -> S.US.LILA
A42: =TRIM('S&P500'!N6) -> S.US.UA | B42: =IFERROR(RTD("cqg.rtd",,"ContractData",A42,"LongDescription",,"T")&" ("&RIGHT(A42,LEN(A42)-5)&")","") -> Under Armour Inc (UA) | E42: =IF(B42="","",IFERROR(RTD("cqg.rtd",,"ContractData",A42,"LastTrade",,"T"),"")) -> 18.63 | F42: =IF(B42="","",IFERROR(RTD("cqg.rtd", ,"ContractData",A42, "NetChange",, "T"),"")) -> -0.41 | G42: =IFERROR(RTD("cqg.rtd", ,"ContractData",A42, "PerCentNetLastTrade",, "T")/100,"") -> -0.02153361345 | H42: =IFERROR(RTD("cqg.rtd",,"StudyData",A42, "Vol", "VolType=Exchange,CoCType=Exchange", "Vol","ADC","0","ALL",,,"TRUE","T")/ RTD("cqg.rtd",,"StudyData",A42, "MA", "InputChoice=ContractVol,MAType=Sim,Period=21", "MA","D","-1","all",,,,"T"),"") -> 0.5336137043 | I42: =IF(B42="","",IFERROR(RTD("cqg.rtd", ,"ContractData",A42, "Open",, "T"),"")) -> 19.25 | J42: =IF(B42="","",IFERROR(RTD("cqg.rtd", ,"ContractData",A42, "High",, "T"),"")) -> 19.26 | K42: =IF(B42="","",IFERROR(RTD("cqg.rtd",,"ContractData",A42,"Low",,"T"),"")) -> 18.53 | R42: =IFERROR(RTD("cqg.rtd",,"ContractData",AB42,"LongDescription",,"T")&" ("&RIGHT(AB42,LEN(AB42)-5)&")","") -> Liberty Global plc LiLAC Class C (LILAK) | U42: =IF(R42="","",IFERROR(RTD("cqg.rtd",,"ContractData",AB42,"LastTrade",,"T"),"")) -> 21.97 | V42: =IF(R42="","",IFERROR(RTD("cqg.rtd", ,"ContractData",AB42, "NetChange",, "T"),"")) -> -0.49 | W42: =IFERROR(RTD("cqg.rtd", ,"ContractData",AB42, "PerCentNetLastTrade",, "T")/100,"") -> -0.02181656278 | X42: =IFERROR(RTD("cqg.rtd",,"StudyData",AB42, "Vol", "VolType=Exchange,CoCType=Exchange", "Vol","ADC","0","ALL",,,"TRUE","T")/ RTD("cqg.rtd",,"StudyData",AB42, "MA", "InputChoice=ContractVol,MAType=Sim,Period=21", "MA","D","-1","all",,,,"T"),"") -> 0.5793899586 | Y42: =IF(R42="","",IFERROR(RTD("cqg.rtd", ,"ContractData",AB42, "Open",, "T"),"")) -> 22.58 | Z42: =IF(R42="","",IFERROR(RTD("cqg.rtd", ,"ContractData",AB42, "High",, "T"),"")) -> 22.7 | AA42: =IF(R42="","",IFERROR(RTD("cqg.rtd", ,"ContractData",AB42, "Low",, "T"),"")) -> 21.87 | AB42: =NASDAQ100!N6 -> S.US.LILAK
A43: =TRIM('S&P500'!N7) -> S.US.SWN | B43: =IFERROR(RTD("cqg.rtd",,"ContractData",A43,"LongDescription",,"T")&" ("&RIGHT(A43,LEN(A43)-5)&")","") -> SOUTHWESTERN ENERGY CO (SWN) | E43: =IF(B43="","",IFERROR(RTD("cqg.rtd",,"ContractData",A43,"LastTrade",,"T"),"")) -> 8.84 | F43: =IF(B43="","",IFERROR(RTD("cqg.rtd", ,"ContractData",A43, "NetChange",, "T"),"")) -> -0.17 | G43: =IFERROR(RTD("cqg.rtd", ,"ContractData",A43, "PerCentNetLastTrade",, "T")/100,"") -> -0.01886792453 | H43: =IFERROR(RTD("cqg.rtd",,"StudyData",A43, "Vol", "VolType=Exchange,CoCType=Exchange", "Vol","ADC","0","ALL",,,"TRUE","T")/ RTD("cqg.rtd",,"StudyData",A43, "MA", "InputChoice=ContractVol,MAType=Sim,Period=21", "MA","D","-1","all",,,,"T"),"") -> 0.6803190221 | I43: =IF(B43="","",IFERROR(RTD("cqg.rtd", ,"ContractData",A43, "Open",, "T"),"")) -> 8.96 | J43: =IF(B43="","",IFERROR(RTD("cqg.rtd", ,"ContractData",A43, "High",, "T"),"")) -> 9 | K43: =IF(B43="","",IFERROR(RTD("cqg.rtd",,"ContractData",A43,"Low",,"T"),"")) -> 8.72 | L43: =IFERROR(RTD("cqg.rtd", ,"ContractData","DJIUC", "LastTrade",, "T"),"") -> 92 | O43: =IFERROR(RTD("cqg.rtd", ,"ContractData","NASIUC", "LastTrade",, "T"),"") -> 126 | R43: =IFERROR(RTD("cqg.rtd",,"ContractData",AB43,"LongDescription",,"T")&" ("&RIGHT(AB43,LEN(AB43)-5)&")","") -> Liberty Interactive Corporation Series A (QVCA) | U43: =IF(R43="","",IFERROR(RTD("cqg.rtd",,"ContractData",AB43,"LastTrade",,"T"),"")) -> 19.01 | V43: =IF(R43="","",IFERROR(RTD("cqg.rtd", ,"ContractData",AB43, "NetChange",, "T"),"")) -> -0.31 | W43: =IFERROR(RTD("cqg.rtd", ,"ContractData",AB43, "PerCentNetLastTrade",, "T")/100,"") -> -0.01604554865 | X43: =IFERROR(RTD("cqg.rtd",,"StudyData",AB43, "Vol", "VolType=Exchange,CoCType=Exchange", "Vol","ADC","0","ALL",,,"TRUE","T")/ RTD("cqg.rtd",,"StudyData",AB43, "MA", "InputChoice=ContractVol,MAType=Sim,Period=21", "MA","D","-1","all",,,,"T"),"") -> 0.6203237189 | Y43: =IF(R43="","",IFERROR(RTD("cqg.rtd", ,"ContractData",AB43, "Open",, "T"),"")) -> 19.34 | Z43: =IF(R43="","",IFERROR(RTD("cqg.rtd", ,"ContractData",AB43, "High",, "T"),"")) -> 19.51 | AA43: =IF(R43="","",IFERROR(RTD("cqg.rtd", ,"ContractData",AB43, "Low",, "T"),"")) -> 18.97 | AB43: =NASDAQ100!N7 -> S.US.QVCA
A44: =TRIM('S&P500'!N8) -> S.US.HBI | B44: =IFERROR(RTD("cqg.rtd",,"ContractData",A44,"LongDescription",,"T")&" ("&RIGHT(A44,LEN(A44)-5)&")","") -> Hanesbrands, Inc (HBI) | E44: =IF(B44="","",IFERROR(RTD("cqg.rtd",,"ContractData",A44,"LastTrade",,"T"),"")) -> 20.46 | F44: =IF(B44="","",IFERROR(RTD("cqg.rtd", ,"ContractData",A44, "NetChange",, "T"),"")) -> -0.39 | G44: =IFERROR(RTD("cqg.rtd", ,"ContractData",A44, "PerCentNetLastTrade",, "T")/100,"") -> -0.01870503597 | H44: =IFERROR(RTD("cqg.rtd",,"StudyData",A44, "Vol", "VolType=Exchange,CoCType=Exchange", "Vol","ADC","0","ALL",,,"TRUE","T")/ RTD("cqg.rtd",,"StudyData",A44, "MA", "InputChoice=ContractVol,MAType=Sim,Period=21", "MA","D","-1","all",,,,"T"),"") -> 0.7848694623 | I44: =IF(B44="","",IFERROR(RTD("cqg.rtd", ,"ContractData",A44, "Open",, "T"),"")) -> 21.02 | J44: =IF(B44="","",IFERROR(RTD("cqg.rtd", ,"ContractData",A44, "High",, "T"),"")) -> 21.04 | K44: =IF(B44="","",IFERROR(RTD("cqg.rtd",,"ContractData",A44,"Low",,"T"),"")) -> 20.37 | L44: NYSE Tick | O44: NASDAQ Tick | R44: =IFERROR(RTD("cqg.rtd",,"ContractData",AB44,"LongDescription",,"T")&" ("&RIGHT(AB44,LEN(AB44)-5)&")","") -> Tractor Supply Co (TSCO) | U44: =IF(R44="","",IFERROR(RTD("cqg.rtd",,"ContractData",AB44,"LastTrade",,"T"),"")) -> 73.15 | V44: =IF(R44="","",IFERROR(RTD("cqg.rtd", ,"ContractData",AB44, "NetChange",, "T"),"")) -> -1.1 | W44: =IFERROR(RTD("cqg.rtd", ,"ContractData",AB44, "PerCentNetLastTrade",, "T")/100,"") -> -0.01481481481 | X44: =IFERROR(RTD("cqg.rtd",,"StudyData",AB44, "Vol", "VolType=Exchange,CoCType=Exchange", "Vol","ADC","0","ALL",,,"TRUE","T")/ RTD("cqg.rtd",,"StudyData",AB44, "MA", "InputChoice=ContractVol,MAType=Sim,Period=21", "MA","D","-1","all",,,,"T"),"") -> 0.4891783017 | Y44: =IF(R44="","",IFERROR(RTD("cqg.rtd", ,"ContractData",AB44, "Open",, "T"),"")) -> 74.48 | Z44: =IF(R44="","",IFERROR(RTD("cqg.rtd", ,"ContractData",AB44, "High",, "T"),"")) -> 74.55 | AA44: =IF(R44="","",IFERROR(RTD("cqg.rtd", ,"ContractData",AB44, "Low",, "T"),"")) -> 73.14 | AB44: =NASDAQ100!N8 -> S.US.TSCO
A45: =TRIM('S&P500'!N9) -> S.US.T | B45: =IFERROR(RTD("cqg.rtd",,"ContractData",A45,"LongDescription",,"T")&" ("&RIGHT(A45,LEN(A45)-5)&")","") -> AT&T Inc (T) | E45: =IF(B45="","",IFERROR(RTD("cqg.rtd",,"ContractData",A45,"LastTrade",,"T"),"")) -> 40.6 | F45: =IF(B45="","",IFERROR(RTD("cqg.rtd", ,"ContractData",A45, "NetChange",, "T"),"")) -> -0.78 | G45: =IFERROR(RTD("cqg.rtd", ,"ContractData",A45, "PerCentNetLastTrade",, "T")/100,"") -> -0.01884968584 | H45: =IFERROR(RTD("cqg.rtd",,"StudyData",A45, "Vol", "VolType=Exchange,CoCType=Exchange", "Vol","ADC","0","ALL",,,"TRUE","T")/ RTD("cqg.rtd",,"StudyData",A45, "MA", "InputChoice=ContractVol,MAType=Sim,Period=21", "MA","D","-1","all",,,,"T"),"") -> 1.389990131 | I45: =IF(B45="","",IFERROR(RTD("cqg.rtd", ,"ContractData",A45, "Open",, "T"),"")) -> 40.82 | J45: =IF(B45="","",IFERROR(RTD("cqg.rtd", ,"ContractData",A45, "High",, "T"),"")) -> 41.14 | K45: =IF(B45="","",IFERROR(RTD("cqg.rtd",,"ContractData",A45,"Low",,"T"),"")) -> 40.49 | R45: =IFERROR(RTD("cqg.rtd",,"ContractData",AB45,"LongDescription",,"T")&" ("&RIGHT(AB45,LEN(AB45)-5)&")","") -> Liberty Interactive Corporation Series A (LVNTA) | U45: =IF(R45="","",IFERROR(RTD("cqg.rtd",,"ContractData",AB45,"LastTrade",,"T"),"")) -> 43.89 | V45: =IF(R45="","",IFERROR(RTD("cqg.rtd", ,"ContractData",AB45, "NetChange",, "T"),"")) -> -0.62 | W45: =IFERROR(RTD("cqg.rtd", ,"ContractData",AB45, "PerCentNetLastTrade",, "T")/100,"") -> -0.01392945406 | X45: =IFERROR(RTD("cqg.rtd",,"StudyData",AB45, "Vol", "VolType=Exchange,CoCType=Exchange", "Vol","ADC","0","ALL",,,"TRUE","T")/ RTD("cqg.rtd",,"StudyData",AB45, "MA", "InputChoice=ContractVol,MAType=Sim,Period=21", "MA","D","-1","all",,,,"T"),"") -> 0.5261079595 | Y45: =IF(R45="","",IFERROR(RTD("cqg.rtd", ,"ContractData",AB45, "Open",, "T"),"")) -> 44.65 | Z45: =IF(R45="","",IFERROR(RTD("cqg.rtd", ,"ContractData",AB45, "High",, "T"),"")) -> 44.78 | AA45: =IF(R45="","",IFERROR(RTD("cqg.rtd", ,"ContractData",AB45, "Low",, "T"),"")) -> 43.87 | AB45: =NASDAQ100!N9 -> S.US.LVNTA
A46: =TRIM('S&P500'!N10) -> S.US.KORS | B46: =IFERROR(RTD("cqg.rtd",,"ContractData",A46,"LongDescription",,"T")&" ("&RIGHT(A46,LEN(A46)-5)&")","") -> Michael Kors Holdings Limited (KORS) | E46: =IF(B46="","",IFERROR(RTD("cqg.rtd",,"ContractData",A46,"LastTrade",,"T"),"")) -> 37.71 | F46: =IF(B46="","",IFERROR(RTD("cqg.rtd", ,"ContractData",A46, "NetChange",, "T"),"")) -> -0.67 | G46: =IFERROR(RTD("cqg.rtd", ,"ContractData",A46, "PerCentNetLastTrade",, "T")/100,"") -> -0.01745700886 | H46: =IFERROR(RTD("cqg.rtd",,"StudyData",A46, "Vol", "VolType=Exchange,CoCType=Exchange", "Vol","ADC","0","ALL",,,"TRUE","T")/ RTD("cqg.rtd",,"StudyData",A46, "MA", "InputChoice=ContractVol,MAType=Sim,Period=21", "MA","D","-1","all",,,,"T"),"") -> 0.8304913374 | I46: =IF(B46="","",IFERROR(RTD("cqg.rtd", ,"ContractData",A46, "Open",, "T"),"")) -> 38.29 | J46: =IF(B46="","",IFERROR(RTD("cqg.rtd", ,"ContractData",A46, "High",, "T"),"")) -> 38.45 | K46: =IF(B46="","",IFERROR(RTD("cqg.rtd",,"ContractData",A46,"Low",,"T"),"")) -> 37.61 | L46: =IFERROR(RTD("cqg.rtd", ,"ContractData","DJTIC", "LastTrade",, "T"),"") -> -190 | O46: =IFERROR(RTD("cqg.rtd", ,"ContractData","NASTIC", "LastTrade",, "T"),"") -> 164 | R46: =IFERROR(RTD("cqg.rtd",,"ContractData",AB46,"LongDescription",,"T")&" ("&RIGHT(AB46,LEN(AB46)-5)&")","") -> OReilly Automotive Inc (ORLY) | U46: =IF(R46="","",IFERROR(RTD("cqg.rtd",,"ContractData",AB46,"LastTrade",,"T"),"")) -> 268.35 | V46: =IF(R46="","",IFERROR(RTD("cqg.rtd", ,"ContractData",AB46, "NetChange",, "T"),"")) -> -3.45 | W46: =IFERROR(RTD("cqg.rtd", ,"ContractData",AB46, "PerCentNetLastTrade",, "T")/100,"") -> -0.01269315673 | X46: =IFERROR(RTD("cqg.rtd",,"StudyData",AB46, "Vol", "VolType=Exchange,CoCType=Exchange", "Vol","ADC","0","ALL",,,"TRUE","T")/ RTD("cqg.rtd",,"StudyData",AB46, "MA", "InputChoice=ContractVol,MAType=Sim,Period=21", "MA","D","-1","all",,,,"T"),"") -> 0.6374329659 | Y46: =IF(R46="","",IFERROR(RTD("cqg.rtd", ,"ContractData",AB46, "Open",, "T"),"")) -> 272.46 | Z46: =IF(R46="","",IFERROR(RTD("cqg.rtd", ,"ContractData",AB46, "High",, "T"),"")) -> 272.63 | AA46: =IF(R46="","",IFERROR(RTD("cqg.rtd", ,"ContractData",AB46, "Low",, "T"),"")) -> 268.19 | AB46: =NASDAQ100!N10 -> S.US.ORLY
C47: Copyright © 2016 | E47: Designed by Thom Hartle | T47: To better manage performance the dashboard ranking does not update on every quote, but once every
T48: second. Click "Rank" to force an update if the percent net change column is out of order.

Sheet Symbols
E2: Requires Real-Time Data
C3: Left hand display | H3: Right hand display | L3: DJUPV | O3: DJDNV | R3: NASUPV | U3: NASDNV | X3: DJUCV | AA3: NASUCV | AD3: DJIUP | AG3: NASIUP | AJ3: DJIDN | AM3: NASIDN | AP3: DJIUC | AS3: NASIUC | AV3: DJTIC | AY3: NASTIC
C4: Symbols | D4: Description | H4: Symbols | I4: Description | K4: -10 | L4: =RTD("cqg.rtd",,"StudyData",$L$3,"Bar",,"Close","5",K4,,,,,"T") -> 324750 | N4: -10 | O4: =RTD("cqg.rtd",,"StudyData",$O$3,"Bar",,"Close","5",N4,,,,,"T") -> 153315 | Q4: -10 | R4: =RTD("cqg.rtd",,"StudyData",$R$3,"Bar",,"Close","5",Q4,,,,,"T") -> 811908 | T4: -10 | U4: =RTD("cqg.rtd",,"StudyData",$U$3,"Bar",,"Close","5",T4,,,,,"T") -> 486351 | W4: -10 | X4: =RTD("cqg.rtd",,"StudyData",$X$3,"Bar",,"Close","5",W4,,,,,"T") -> 4145 | Z4: -10 | AA4: =RTD("cqg.rtd",,"StudyData",$AA$3,"Bar",,"Close","5",Z4,,,,,"T") -> 159237 | AC4: -10 | AD4: =RTD("cqg.rtd",,"StudyData",$AD$3,"Bar",,"Close","5",AC4,,,,,"T") -> 1698 | AF4: -10 | AG4: =RTD("cqg.rtd",,"StudyData",$AG$3,"Bar",,"Close","5",AF4,,,,,"T") -> 1584 | AI4: -10 | AJ4: =RTD("cqg.rtd",,"StudyData",$AJ$3,"Bar",,"Close","5",AI4,,,,,"T") -> 1289 | AL4: -10 | AM4: =RTD("cqg.rtd",,"StudyData",$AM$3,"Bar",,"Close","5",AL4,,,,,"T") -> 1218 | AO4: -10 | AP4: =RTD("cqg.rtd",,"StudyData",$AP$3,"Bar",,"Close","5",AO4,,,,,"T") -> 80 | AR4: -10 | AS4: =RTD("cqg.rtd",,"StudyData",$AS$3,"Bar",,"Close","5",AR4,,,,,"T") -> 142 | AU4: -10 | AV4: =RTD("cqg.rtd",,"StudyData",$AV$3,"Bar",,"Close","5",AU4,,,,,"T") -> -200 | AX4: -10 | AY4: =RTD("cqg.rtd",,"StudyData",$AY$3,"Bar",,"Close","5",AX4,,,,,"T") -> 131
C5: X.US.SPC | D5: =RTD("cqg.rtd", ,"ContractData",C5, "LongDescription",, "T") -> S&P 500 | H5: X.US.NQCOMP | I5: =RTD("cqg.rtd", ,"ContractData",H5, "LongDescription",, "T") -> NASDAQ Composite Index | K5: =K4+1 -> -9 | L5: =RTD("cqg.rtd",,"StudyData",$L$3,"Bar",,"Close","5",K5,,,,,"T") -> 328635 | N5: =N4+1 -> -9 | O5: =RTD("cqg.rtd",,"StudyData",$O$3,"Bar",,"Close","5",N5,,,,,"T") -> 154597 | Q5: =Q4+1 -> -9 | R5: =RTD("cqg.rtd",,"StudyData",$R$3,"Bar",,"Close","5",Q5,,,,,"T") -> 808440 | T5: =T4+1 -> -9 | U5: =RTD("cqg.rtd",,"StudyData",$U$3,"Bar",,"Close","5",T5,,,,,"T") -> 496467 | W5: =W4+1 -> -9 | X5: =RTD("cqg.rtd",,"StudyData",$X$3,"Bar",,"Close","5",W5,,,,,"T") -> 5020 | Z5: =Z4+1 -> -9 | AA5: =RTD("cqg.rtd",,"StudyData",$AA$3,"Bar",,"Close","5",Z5,,,,,"T") -> 278099 | AC5: =AC4+1 -> -9 | AD5: =RTD("cqg.rtd",,"StudyData",$AD$3,"Bar",,"Close","5",AC5,,,,,"T") -> 1716 | AF5: =AF4+1 -> -9 | AG5: =RTD("cqg.rtd",,"StudyData",$AG$3,"Bar",,"Close","5",AF5,,,,,"T") -> 1572 | AI5: =AI4+1 -> -9 | AJ5: =RTD("cqg.rtd",,"StudyData",$AJ$3,"Bar",,"Close","5",AI5,,,,,"T") -> 1274 | AL5: =AL4+1 -> -9 | AM5: =RTD("cqg.rtd",,"StudyData",$AM$3,"Bar",,"Close","5",AL5,,,,,"T") -> 1223 | AO5: =AO4+1 -> -9 | AP5: =RTD("cqg.rtd",,"StudyData",$AP$3,"Bar",,"Close","5",AO5,,,,,"T") -> 78 | AR5: =AR4+1 -> -9 | AS5: =RTD("cqg.rtd",,"StudyData",$AS$3,"Bar",,"Close","5",AR5,,,,,"T") -> 150 | AU5: =AU4+1 -> -9 | AV5: =RTD("cqg.rtd",,"StudyData",$AV$3,"Bar",,"Close","5",AU5,,,,,"T") -> -105 | AX5: =AX4+1 -> -9 | AY5: =RTD("cqg.rtd",,"StudyData",$AY$3,"Bar",,"Close","5",AX5,,,,,"T") -> 135
C6: X.US.DJI | D6: =RTD("cqg.rtd", ,"ContractData",C6, "LongDescription",, "T") -> DJ Industrial Average | H6: X.US.NDX | I6: =RTD("cqg.rtd", ,"ContractData",H6, "LongDescription",, "T") -> NASDAQ-100 Index | K6: =K5+1 -> -8 | L6: =RTD("cqg.rtd",,"StudyData",$L$3,"Bar",,"Close","5",K6,,,,,"T") -> 335688 | N6: =N5+1 -> -8 | O6: =RTD("cqg.rtd",,"StudyData",$O$3,"Bar",,"Close","5",N6,,,,,"T") -> 155816 | Q6: =Q5+1 -> -8 | R6: =RTD("cqg.rtd",,"StudyData",$R$3,"Bar",,"Close","5",Q6,,,,,"T") -> 829145 | T6: =T5+1 -> -8 | U6: =RTD("cqg.rtd",,"StudyData",$U$3,"Bar",,"Close","5",T6,,,,,"T") -> 506063 | W6: =W5+1 -> -8 | X6: =RTD("cqg.rtd",,"StudyData",$X$3,"Bar",,"Close","5",W6,,,,,"T") -> 2376 | Z6: =Z5+1 -> -8 | AA6: =RTD("cqg.rtd",,"StudyData",$AA$3,"Bar",,"Close","5",Z6,,,,,"T") -> 175866 | AC6: =AC5+1 -> -8 | AD6: =RTD("cqg.rtd",,"StudyData",$AD$3,"Bar",,"Close","5",AC6,,,,,"T") -> 1725 | AF6: =AF5+1 -> -8 | AG6: =RTD("cqg.rtd",,"StudyData",$AG$3,"Bar",,"Close","5",AF6,,,,,"T") -> 1578 | AI6: =AI5+1 -> -8 | AJ6: =RTD("cqg.rtd",,"StudyData",$AJ$3,"Bar",,"Close","5",AI6,,,,,"T") -> 1270 | AL6: =AL5+1 -> -8 | AM6: =RTD("cqg.rtd",,"StudyData",$AM$3,"Bar",,"Close","5",AL6,,,,,"T") -> 1214 | AO6: =AO5+1 -> -8 | AP6: =RTD("cqg.rtd",,"StudyData",$AP$3,"Bar",,"Close","5",AO6,,,,,"T") -> 74 | AR6: =AR5+1 -> -8 | AS6: =RTD("cqg.rtd",,"StudyData",$AS$3,"Bar",,"Close","5",AR6,,,,,"T") -> 153 | AU6: =AU5+1 -> -8 | AV6: =RTD("cqg.rtd",,"StudyData",$AV$3,"Bar",,"Close","5",AU6,,,,,"T") -> -50 | AX6: =AX5+1 -> -8 | AY6: =RTD("cqg.rtd",,"StudyData",$AY$3,"Bar",,"Close","5",AX6,,,,,"T") -> 142
C7: S.US.XLF | D7: =RTD("cqg.rtd", ,"ContractData",C7, "LongDescription",, "T") -> Financial Select Sector SPDR | H7: X.US.IXF | I7: =RTD("cqg.rtd", ,"ContractData",H7, "LongDescription",, "T") -> NASDAQ Financial 100 | K7: -7 | L7: =RTD("cqg.rtd",,"StudyData",$L$3,"Bar",,"Close","5",K7,,,,,"T") -> 336324 | N7: -7 | O7: =RTD("cqg.rtd",,"StudyData",$O$3,"Bar",,"Close","5",N7,,,,,"T") -> 156897 | Q7: -7 | R7: =RTD("cqg.rtd",,"StudyData",$R$3,"Bar",,"Close","5",Q7,,,,,"T") -> 838270 | T7: -7 | U7: =RTD("cqg.rtd",,"StudyData",$U$3,"Bar",,"Close","5",T7,,,,,"T") -> 516374 | W7: -7 | X7: =RTD("cqg.rtd",,"StudyData",$X$3,"Bar",,"Close","5",W7,,,,,"T") -> 6245 | Z7: -7 | AA7: =RTD("cqg.rtd",,"StudyData",$AA$3,"Bar",,"Close","5",Z7,,,,,"T") -> 164938 | AC7: -7 | AD7: =RTD("cqg.rtd",,"StudyData",$AD$3,"Bar",,"Close","5",AC7,,,,,"T") -> 1698 | AF7: -7 | AG7: =RTD("cqg.rtd",,"StudyData",$AG$3,"Bar",,"Close","5",AF7,,,,,"T") -> 1576 | AI7: -7 | AJ7: =RTD("cqg.rtd",,"StudyData",$AJ$3,"Bar",,"Close","5",AI7,,,,,"T") -> 1286 | AL7: -7 | AM7: =RTD("cqg.rtd",,"StudyData",$AM$3,"Bar",,"Close","5",AL7,,,,,"T") -> 1233 | AO7: -7 | AP7: =RTD("cqg.rtd",,"StudyData",$AP$3,"Bar",,"Close","5",AO7,,,,,"T") -> 85 | AR7: -7 | AS7: =RTD("cqg.rtd",,"StudyData",$AS$3,"Bar",,"Close","5",AR7,,,,,"T") -> 136 | AU7: -7 | AV7: =RTD("cqg.rtd",,"StudyData",$AV$3,"Bar",,"Close","5",AU7,,,,,"T") -> -194 | AX7: -7 | AY7: =RTD("cqg.rtd",,"StudyData",$AY$3,"Bar",,"Close","5",AX7,,,,,"T") -> 141
C8: X.US.BTK | D8: =RTD("cqg.rtd", ,"ContractData",C8, "LongDescription",, "T") -> Biotechnology Index | H8: X.US.NBI | I8: =RTD("cqg.rtd", ,"ContractData",H8, "LongDescription",, "T") -> NASDAQ Biotechnology | K8: -6 | L8: =RTD("cqg.rtd",,"StudyData",$L$3,"Bar",,"Close","5",K8,,,,,"T") -> 333638 | N8: -6 | O8: =RTD("cqg.rtd",,"StudyData",$O$3,"Bar",,"Close","5",N8,,,,,"T") -> 165750 | Q8: -6 | R8: =RTD("cqg.rtd",,"StudyData",$R$3,"Bar",,"Close","5",Q8,,,,,"T") -> 835739 | T8: -6 | U8: =RTD("cqg.rtd",,"StudyData",$U$3,"Bar",,"Close","5",T8,,,,,"T") -> 533999 | W8: -6 | X8: =RTD("cqg.rtd",,"StudyData",$X$3,"Bar",,"Close","5",W8,,,,,"T") -> 6515 | Z8: -6 | AA8: =RTD("cqg.rtd",,"StudyData",$AA$3,"Bar",,"Close","5",Z8,,,,,"T") -> 191309 | AC8: -6 | AD8: =RTD("cqg.rtd",,"StudyData",$AD$3,"Bar",,"Close","5",AC8,,,,,"T") -> 1676 | AF8: -6 | AG8: =RTD("cqg.rtd",,"StudyData",$AG$3,"Bar",,"Close","5",AF8,,,,,"T") -> 1562 | AI8: -6 | AJ8: =RTD("cqg.rtd",,"StudyData",$AJ$3,"Bar",,"Close","5",AI8,,,,,"T") -> 1307 | AL8: -6 | AM8: =RTD("cqg.rtd",,"StudyData",$AM$3,"Bar",,"Close","5",AL8,,,,,"T") -> 1249 | AO8: -6 | AP8: =RTD("cqg.rtd",,"StudyData",$AP$3,"Bar",,"Close","5",AO8,,,,,"T") -> 86 | AR8: -6 | AS8: =RTD("cqg.rtd",,"StudyData",$AS$3,"Bar",,"Close","5",AR8,,,,,"T") -> 135 | AU8: -6 | AV8: =RTD("cqg.rtd",,"StudyData",$AV$3,"Bar",,"Close","5",AU8,,,,,"T") -> -194 | AX8: -6 | AY8: =RTD("cqg.rtd",,"StudyData",$AY$3,"Bar",,"Close","5",AX8,,,,,"T") -> 135
C9: X.US.NYPID | D9: =RTD("cqg.rtd", ,"ContractData",C9, "LongDescription",, "T") -> NYSE Healthcare Index | H9: X.US.NHC | I9: =RTD("cqg.rtd", ,"ContractData",H9, "LongDescription",, "T") -> Nasdaq Health Care Index | K9: -5 | L9: =RTD("cqg.rtd",,"StudyData",$L$3,"Bar",,"Close","5",K9,,,,,"T") -> 337267 | N9: -5 | O9: =RTD("cqg.rtd",,"StudyData",$O$3,"Bar",,"Close","5",N9,,,,,"T") -> 172263 | Q9: -5 | R9: =RTD("cqg.rtd",,"StudyData",$R$3,"Bar",,"Close","5",Q9,,,,,"T") -> 857952 | T9: -5 | U9: =RTD("cqg.rtd",,"StudyData",$U$3,"Bar",,"Close","5",T9,,,,,"T") -> 539664 | W9: -5 | X9: =RTD("cqg.rtd",,"StudyData",$X$3,"Bar",,"Close","5",W9,,,,,"T") -> 4026 | Z9: -5 | AA9: =RTD("cqg.rtd",,"StudyData",$AA$3,"Bar",,"Close","5",Z9,,,,,"T") -> 180274 | AC9: -5 | AD9: =RTD("cqg.rtd",,"StudyData",$AD$3,"Bar",,"Close","5",AC9,,,,,"T") -> 1664 | AF9: -5 | AG9: =RTD("cqg.rtd",,"StudyData",$AG$3,"Bar",,"Close","5",AF9,,,,,"T") -> 1563 | AI9: -5 | AJ9: =RTD("cqg.rtd",,"StudyData",$AJ$3,"Bar",,"Close","5",AI9,,,,,"T") -> 1321 | AL9: -5 | AM9: =RTD("cqg.rtd",,"StudyData",$AM$3,"Bar",,"Close","5",AL9,,,,,"T") -> 1248 | AO9: -5 | AP9: =RTD("cqg.rtd",,"StudyData",$AP$3,"Bar",,"Close","5",AO9,,,,,"T") -> 85 | AR9: -5 | AS9: =RTD("cqg.rtd",,"StudyData",$AS$3,"Bar",,"Close","5",AR9,,,,,"T") -> 137 | AU9: -5 | AV9: =RTD("cqg.rtd",,"StudyData",$AV$3,"Bar",,"Close","5",AU9,,,,,"T") -> -54 | AX9: -5 | AY9: =RTD("cqg.rtd",,"StudyData",$AY$3,"Bar",,"Close","5",AX9,,,,,"T") -> 123
C10: X.US.IXE | D10: =RTD("cqg.rtd", ,"ContractData",C10, "LongDescription",, "T") -> S&P 500 Select Sector Energy Index | H10: X.US.OSX | I10: =RTD("cqg.rtd", ,"ContractData",H10, "LongDescription",, "T") -> PHLX Oil Service Sector | K10: -4 | L10: =RTD("cqg.rtd",,"StudyData",$L$3,"Bar",,"Close","5",K10,,,,,"T") -> 344552 | N10: -4 | O10: =RTD("cqg.rtd",,"StudyData",$O$3,"Bar",,"Close","5",N10,,,,,"T") -> 171809 | Q10: -4 | R10: =RTD("cqg.rtd",,"StudyData",$R$3,"Bar",,"Close","5",Q10,,,,,"T") -> 864974 | T10: -4 | U10: =RTD("cqg.rtd",,"StudyData",$U$3,"Bar",,"Close","5",T10,,,,,"T") -> 554590 | W10: -4 | X10: =RTD("cqg.rtd",,"StudyData",$X$3,"Bar",,"Close","5",W10,,,,,"T") -> 4964 | Z10: -4 | AA10: =RTD("cqg.rtd",,"StudyData",$AA$3,"Bar",,"Close","5",Z10,,,,,"T") -> 184353 | AC10: -4 | AD10: =RTD("cqg.rtd",,"StudyData",$AD$3,"Bar",,"Close","5",AC10,,,,,"T") -> 1641 | AF10: -4 | AG10: =RTD("cqg.rtd",,"StudyData",$AG$3,"Bar",,"Close","5",AF10,,,,,"T") -> 1539 | AI10: -4 | AJ10: =RTD("cqg.rtd",,"StudyData",$AJ$3,"Bar",,"Close","5",AI10,,,,,"T") -> 1342 | AL10: -4 | AM10: =RTD("cqg.rtd",,"StudyData",$AM$3,"Bar",,"Close","5",AL10,,,,,"T") -> 1268 | AO10: -4 | AP10: =RTD("cqg.rtd",,"StudyData",$AP$3,"Bar",,"Close","5",AO10,,,,,"T") -> 88 | AR10: -4 | AS10: =RTD("cqg.rtd",,"StudyData",$AS$3,"Bar",,"Close","5",AR10,,,,,"T") -> 143 | AU10: -4 | AV10: =RTD("cqg.rtd",,"StudyData",$AV$3,"Bar",,"Close","5",AU10,,,,,"T") -> -107 | AX10: -4 | AY10: =RTD("cqg.rtd",,"StudyData",$AY$3,"Bar",,"Close","5",AX10,,,,,"T") -> 108
C11: S.US.BAC | D11: =RTD("cqg.rtd", ,"ContractData",C11, "LongDescription",, "T") -> Bank of America Corp | H11: S.US.XLE | I11: =RTD("cqg.rtd", ,"ContractData",H11, "LongDescription",, "T") -> Energy Select Sector SPDR | K11: -3 | L11: =RTD("cqg.rtd",,"StudyData",$L$3,"Bar",,"Close","5",K11,,,,,"T") -> 355155 | N11: -3 | O11: =RTD("cqg.rtd",,"StudyData",$O$3,"Bar",,"Close","5",N11,,,,,"T") -> 169692 | Q11: -3 | R11: =RTD("cqg.rtd",,"StudyData",$R$3,"Bar",,"Close","5",Q11,,,,,"T") -> 891564 | T11: -3 | U11: =RTD("cqg.rtd",,"StudyData",$U$3,"Bar",,"Close","5",T11,,,,,"T") -> 553280 | W11: -3 | X11: =RTD("cqg.rtd",,"StudyData",$X$3,"Bar",,"Close","5",W11,,,,,"T") -> 5894 | Z11: -3 | AA11: =RTD("cqg.rtd",,"StudyData",$AA$3,"Bar",,"Close","5",Z11,,,,,"T") -> 187553 | AC11: -3 | AD11: =RTD("cqg.rtd",,"StudyData",$AD$3,"Bar",,"Close","5",AC11,,,,,"T") -> 1672 | AF11: -3 | AG11: =RTD("cqg.rtd",,"StudyData",$AG$3,"Bar",,"Close","5",AF11,,,,,"T") -> 1568 | AI11: -3 | AJ11: =RTD("cqg.rtd",,"StudyData",$AJ$3,"Bar",,"Close","5",AI11,,,,,"T") -> 1314 | AL11: -3 | AM11: =RTD("cqg.rtd",,"StudyData",$AM$3,"Bar",,"Close","5",AL11,,,,,"T") -> 1248 | AO11: -3 | AP11: =RTD("cqg.rtd",,"StudyData",$AP$3,"Bar",,"Close","5",AO11,,,,,"T") -> 86 | AR11: -3 | AS11: =RTD("cqg.rtd",,"StudyData",$AS$3,"Bar",,"Close","5",AR11,,,,,"T") -> 135 | AU11: -3 | AV11: =RTD("cqg.rtd",,"StudyData",$AV$3,"Bar",,"Close","5",AU11,,,,,"T") -> 161 | AX11: -3 | AY11: =RTD("cqg.rtd",,"StudyData",$AY$3,"Bar",,"Close","5",AX11,,,,,"T") -> 126
C12: S.US.RSP | D12: =RTD("cqg.rtd", ,"ContractData",C12, "LongDescription",, "T") -> Guggenheim S&P 500 Equal Weight ETF | H12: S.US.AAPL | I12: =RTD("cqg.rtd", ,"ContractData",H12, "LongDescription",, "T") -> Apple Inc | K12: -2 | L12: =RTD("cqg.rtd",,"StudyData",$L$3,"Bar",,"Close","5",K12,,,,,"T") -> 367589 | N12: -2 | O12: =RTD("cqg.rtd",,"StudyData",$O$3,"Bar",,"Close","5",N12,,,,,"T") -> 171617 | Q12: -2 | R12: =RTD("cqg.rtd",,"StudyData",$R$3,"Bar",,"Close","5",Q12,,,,,"T") -> 905370 | T12: -2 | U12: =RTD("cqg.rtd",,"StudyData",$U$3,"Bar",,"Close","5",T12,,,,,"T") -> 566322 | W12: -2 | X12: =RTD("cqg.rtd",,"StudyData",$X$3,"Bar",,"Close","5",W12,,,,,"T") -> 3074 | Z12: -2 | AA12: =RTD("cqg.rtd",,"StudyData",$AA$3,"Bar",,"Close","5",Z12,,,,,"T") -> 199161 | AC12: -2 | AD12: =RTD("cqg.rtd",,"StudyData",$AD$3,"Bar",,"Close","5",AC12,,,,,"T") -> 1686 | AF12: -2 | AG12: =RTD("cqg.rtd",,"StudyData",$AG$3,"Bar",,"Close","5",AF12,,,,,"T") -> 1579 | AI12: -2 | AJ12: =RTD("cqg.rtd",,"StudyData",$AJ$3,"Bar",,"Close","5",AI12,,,,,"T") -> 1295 | AL12: -2 | AM12: =RTD("cqg.rtd",,"StudyData",$AM$3,"Bar",,"Close","5",AL12,,,,,"T") -> 1233 | AO12: -2 | AP12: =RTD("cqg.rtd",,"StudyData",$AP$3,"Bar",,"Close","5",AO12,,,,,"T") -> 91 | AR12: -2 | AS12: =RTD("cqg.rtd",,"StudyData",$AS$3,"Bar",,"Close","5",AR12,,,,,"T") -> 143 | AU12: -2 | AV12: =RTD("cqg.rtd",,"StudyData",$AV$3,"Bar",,"Close","5",AU12,,,,,"T") -> 21 | AX12: -2 | AY12: =RTD("cqg.rtd",,"StudyData",$AY$3,"Bar",,"Close","5",AX12,,,,,"T") -> 119
C13: S.US.SPY | D13: =RTD("cqg.rtd", ,"ContractData",C13, "LongDescription",, "T") -> SPDR S&P 500 | H13: S.US.TSLA | I13: =RTD("cqg.rtd", ,"ContractData",H13, "LongDescription",, "T") -> Tesla, Inc. | K13: -1 | L13: =RTD("cqg.rtd",,"StudyData",$L$3,"Bar",,"Close","5",K13,,,,,"T") -> 371899 | N13: -1 | O13: =RTD("cqg.rtd",,"StudyData",$O$3,"Bar",,"Close","5",N13,,,,,"T") -> 181360 | Q13: -1 | R13: =RTD("cqg.rtd",,"StudyData",$R$3,"Bar",,"Close","5",Q13,,,,,"T") -> 929789 | T13: -1 | U13: =RTD("cqg.rtd",,"StudyData",$U$3,"Bar",,"Close","5",T13,,,,,"T") -> 579854 | W13: -1 | X13: =RTD("cqg.rtd",,"StudyData",$X$3,"Bar",,"Close","5",W13,,,,,"T") -> 2886 | Z13: -1 | AA13: =RTD("cqg.rtd",,"StudyData",$AA$3,"Bar",,"Close","5",Z13,,,,,"T") -> 166949 | AC13: -1 | AD13: =RTD("cqg.rtd",,"StudyData",$AD$3,"Bar",,"Close","5",AC13,,,,,"T") -> 1687 | AF13: -1 | AG13: =RTD("cqg.rtd",,"StudyData",$AG$3,"Bar",,"Close","5",AF13,,,,,"T") -> 1577 | AI13: -1 | AJ13: =RTD("cqg.rtd",,"StudyData",$AJ$3,"Bar",,"Close","5",AI13,,,,,"T") -> 1301 | AL13: -1 | AM13: =RTD("cqg.rtd",,"StudyData",$AM$3,"Bar",,"Close","5",AL13,,,,,"T") -> 1254 | AO13: -1 | AP13: =RTD("cqg.rtd",,"StudyData",$AP$3,"Bar",,"Close","5",AO13,,,,,"T") -> 85 | AR13: -1 | AS13: =RTD("cqg.rtd",,"StudyData",$AS$3,"Bar",,"Close","5",AR13,,,,,"T") -> 125 | AU13: -1 | AV13: =RTD("cqg.rtd",,"StudyData",$AV$3,"Bar",,"Close","5",AU13,,,,,"T") -> 64 | AX13: -1 | AY13: =RTD("cqg.rtd",,"StudyData",$AY$3,"Bar",,"Close","5",AX13,,,,,"T") -> 140
C14: F.US.EP | D14: =RTD("cqg.rtd", ,"ContractData",C14, "LongDescription",, "T") -> E-Mini S&P 500, Mar 17 | H14: S.US.MU | I14: =RTD("cqg.rtd", ,"ContractData",H14, "LongDescription",, "T") -> Micron Technology Inc | K14: =K13+1 -> 0 | L14: =RTD("cqg.rtd",,"StudyData",$L$3,"Bar",,"Close","5",K14,,,,,"T") -> 372209 | N14: 0 | O14: =RTD("cqg.rtd",,"StudyData",$O$3,"Bar",,"Close","5",N14,,,,,"T") -> 187378 | Q14: 0 | R14: =RTD("cqg.rtd",,"StudyData",$R$3,"Bar",,"Close","5",Q14,,,,,"T") -> 956818 | T14: 0 | U14: =RTD("cqg.rtd",,"StudyData",$U$3,"Bar",,"Close","5",T14,,,,,"T") -> 585008 | W14: 0 | X14: =RTD("cqg.rtd",,"StudyData",$X$3,"Bar",,"Close","5",W14,,,,,"T") -> 5208 | Z14: 0 | AA14: =RTD("cqg.rtd",,"StudyData",$AA$3,"Bar",,"Close","5",Z14,,,,,"T") -> 157532 | AC14: 0 | AD14: =RTD("cqg.rtd",,"StudyData",$AD$3,"Bar",,"Close","5",AC14,,,,,"T") -> 1681 | AF14: 0 | AG14: =RTD("cqg.rtd",,"StudyData",$AG$3,"Bar",,"Close","5",AF14,,,,,"T") -> 1624 | AI14: 0 | AJ14: =RTD("cqg.rtd",,"StudyData",$AJ$3,"Bar",,"Close","5",AI14,,,,,"T") -> 1300 | AL14: 0 | AM14: =RTD("cqg.rtd",,"StudyData",$AM$3,"Bar",,"Close","5",AL14,,,,,"T") -> 1208 | AO14: 0 | AP14: =RTD("cqg.rtd",,"StudyData",$AP$3,"Bar",,"Close","5",AO14,,,,,"T") -> 92 | AR14: 0 | AS14: =RTD("cqg.rtd",,"StudyData",$AS$3,"Bar",,"Close","5",AR14,,,,,"T") -> 126 | AU14: 0 | AV14: =RTD("cqg.rtd",,"StudyData",$AV$3,"Bar",,"Close","5",AU14,,,,,"T") -> -190 | AX14: 0 | AY14: =RTD("cqg.rtd",,"StudyData",$AY$3,"Bar",,"Close","5",AX14,,,,,"T") -> 164
C15: F.US.CLE | D15: =RTD("cqg.rtd", ,"ContractData",C15, "LongDescription",, "T") -> Crude Light (Globex), Mar 17 | H15: S.US.QQQ | I15: =RTD("cqg.rtd", ,"ContractData",H15, "LongDescription",, "T") -> Powershares QQQ Trust
C16: F.US.HOE | D16: =RTD("cqg.rtd", ,"ContractData",C16, "LongDescription",, "T") -> NY Harbor ULSD, Mar 17 | H16: S.US.CSCO | I16: =RTD("cqg.rtd", ,"ContractData",H16, "LongDescription",, "T") -> Cisco Systems Inc
C17: F.US.RBE | D17: =RTD("cqg.rtd", ,"ContractData",C17, "LongDescription",, "T") -> RBOB Gasoline (Globex), Mar 17 | H17: S.US.FB | I17: =RTD("cqg.rtd", ,"ContractData",H17, "LongDescription",, "T") -> Facebook, Inc. | K17: -24 | L17: =RTD("cqg.rtd",,"StudyData",$C$5,"Bar",,"Time","5",K17,,,,,"T") -> 42779.53472 | M17: =RTD("cqg.rtd",,"StudyData",$C$5,"Bar",,"Open","5",K17,,,,,"T") -> 2330.17 | N17: =RTD("cqg.rtd",,"StudyData",$C$5,"Bar",,"High","5",K17,,,,,"T") -> 2330.44 | O17: =RTD("cqg.rtd",,"StudyData",$C$5,"Bar",,"Low","5",K17,,,,,"T") -> 2329.88 | P17: =RTD("cqg.rtd",,"StudyData",$C$5,"Bar",,"Close","5",K17,,,,,"T") -> 2330.37 | R17: -24 | S17: =RTD("cqg.rtd",,"StudyData",$H$5,"Bar",,"Time","5",R17,,,,,"T") -> 42779.53472 | T17: =RTD("cqg.rtd",,"StudyData",$H$5,"Bar",,"Open","5",R17,,,,,"T") -> 5767.26 | U17: =RTD("cqg.rtd",,"StudyData",$H$5,"Bar",,"High","5",R17,,,,,"T") -> 5768.04 | V17: =RTD("cqg.rtd",,"StudyData",$H$5,"Bar",,"Low","5",R17,,,,,"T") -> 5766.78 | W17: =RTD("cqg.rtd",,"StudyData",$H$5,"Bar",,"Close","5",R17,,,,,"T") -> 5768.04
C18: F.US.GCE | D18: =RTD("cqg.rtd", ,"ContractData",C18, "LongDescription",, "T") -> Gold (Globex), Apr 17 | H18: S.US.TLT | I18: =RTD("cqg.rtd", ,"ContractData",H18, "LongDescription",, "T") -> iShares 20+ Year Treasury Bond ETF | K18: =K17+1 -> -23 | L18: =RTD("cqg.rtd",,"StudyData",$C$5,"Bar",,"Time","5",K18,,,,,"T") -> 42779.53819 | M18: =RTD("cqg.rtd",,"StudyData",$C$5,"Bar",,"Open","5",K18,,,,,"T") -> 2330.38 | N18: =RTD("cqg.rtd",,"StudyData",$C$5,"Bar",,"High","5",K18,,,,,"T") -> 2330.52 | O18: =RTD("cqg.rtd",,"StudyData",$C$5,"Bar",,"Low","5",K18,,,,,"T") -> 2330.09 | P18: =RTD("cqg.rtd",,"StudyData",$C$5,"Bar",,"Close","5",K18,,,,,"T") -> 2330.18 | R18: =R17+1 -> -23 | S18: =RTD("cqg.rtd",,"StudyData",$H$5,"Bar",,"Time","5",R18,,,,,"T") -> 42779.53819 | T18: =RTD("cqg.rtd",,"StudyData",$H$5,"Bar",,"Open","5",R18,,,,,"T") -> 5768.05 | U18: =RTD("cqg.rtd",,"StudyData",$H$5,"Bar",,"High","5",R18,,,,,"T") -> 5768.79 | V18: =RTD("cqg.rtd",,"StudyData",$H$5,"Bar",,"Low","5",R18,,,,,"T") -> 5768 | W18: =RTD("cqg.rtd",,"StudyData",$H$5,"Bar",,"Close","5",R18,,,,,"T") -> 5768.27
C19: F.US.DD | D19: =RTD("cqg.rtd", ,"ContractData",C19, "LongDescription",, "T") -> DAX Index, Mar 17 | H19: S.US.INTC | I19: =RTD("cqg.rtd", ,"ContractData",H19, "LongDescription",, "T") -> Intel Corporation | K19: =K18+1 -> -22 | L19: =RTD("cqg.rtd",,"StudyData",$C$5,"Bar",,"Time","5",K19,,,,,"T") -> 42779.54167 | M19: =RTD("cqg.rtd",,"StudyData",$C$5,"Bar",,"Open","5",K19,,,,,"T") -> 2330.2 | N19: =RTD("cqg.rtd",,"StudyData",$C$5,"Bar",,"High","5",K19,,,,,"T") -> 2330.2 | O19: =RTD("cqg.rtd",,"StudyData",$C$5,"Bar",,"Low","5",K19,,,,,"T") -> 2329.59 | P19: =RTD("cqg.rtd",,"StudyData",$C$5,"Bar",,"Close","5",K19,,,,,"T") -> 2330.03 | R19: =R18+1 -> -22 | S19: =RTD("cqg.rtd",,"StudyData",$H$5,"Bar",,"Time","5",R19,,,,,"T") -> 42779.54167 | T19: =RTD("cqg.rtd",,"StudyData",$H$5,"Bar",,"Open","5",R19,,,,,"T") -> 5768.26 | U19: =RTD("cqg.rtd",,"StudyData",$H$5,"Bar",,"High","5",R19,,,,,"T") -> 5768.51 | V19: =RTD("cqg.rtd",,"StudyData",$H$5,"Bar",,"Low","5",R19,,,,,"T") -> 5766.99 | W19: =RTD("cqg.rtd",,"StudyData",$H$5,"Bar",,"Close","5",R19,,,,,"T") -> 5768.26
C20: F.US.DSX | D20: =RTD("cqg.rtd", ,"ContractData",C20, "LongDescription",, "T") -> Euro STOXX 50, Mar 17 | H20: S.US.QCOM | I20: =RTD("cqg.rtd", ,"ContractData",H20, "LongDescription",, "T") -> QUALCOMM Inc | K20: -21 | L20: =RTD("cqg.rtd",,"StudyData",$C$5,"Bar",,"Time","5",K20,,,,,"T") -> 42779.54514 | M20: =RTD("cqg.rtd",,"StudyData",$C$5,"Bar",,"Open","5",K20,,,,,"T") -> 2330.02 | N20: =RTD("cqg.rtd",,"StudyData",$C$5,"Bar",,"High","5",K20,,,,,"T") -> 2330.49 | O20: =RTD("cqg.rtd",,"StudyData",$C$5,"Bar",,"Low","5",K20,,,,,"T") -> 2329.73 | P20: =RTD("cqg.rtd",,"StudyData",$C$5,"Bar",,"Close","5",K20,,,,,"T") -> 2330.49 | R20: -21 | S20: =RTD("cqg.rtd",,"StudyData",$H$5,"Bar",,"Time","5",R20,,,,,"T") -> 42779.54514 | T20: =RTD("cqg.rtd",,"StudyData",$H$5,"Bar",,"Open","5",R20,,,,,"T") -> 5768.25 | U20: =RTD("cqg.rtd",,"StudyData",$H$5,"Bar",,"High","5",R20,,,,,"T") -> 5769.59 | V20: =RTD("cqg.rtd",,"StudyData",$H$5,"Bar",,"Low","5",R20,,,,,"T") -> 5768.2 | W20: =RTD("cqg.rtd",,"StudyData",$H$5,"Bar",,"Close","5",R20,,,,,"T") -> 5769.59
C21: F.US.TYA | D21: =RTD("cqg.rtd", ,"ContractData",C21, "LongDescription",, "T") -> 10yr US Treasury Notes (Globex), Mar 17 | H21: S.US.AAL | I21: =RTD("cqg.rtd", ,"ContractData",H21, "LongDescription",, "T") -> American Airlines Group Inc. | K21: -20 | L21: =RTD("cqg.rtd",,"StudyData",$C$5,"Bar",,"Time","5",K21,,,,,"T") -> 42779.54861 | M21: =RTD("cqg.rtd",,"StudyData",$C$5,"Bar",,"Open","5",K21,,,,,"T") -> 2330.5 | N21: =RTD("cqg.rtd",,"StudyData",$C$5,"Bar",,"High","5",K21,,,,,"T") -> 2330.84 | O21: =RTD("cqg.rtd",,"StudyData",$C$5,"Bar",,"Low","5",K21,,,,,"T") -> 2330.3 | P21: =RTD("cqg.rtd",,"StudyData",$C$5,"Bar",,"Close","5",K21,,,,,"T") -> 2330.77 | R21: -20 | S21: =RTD("cqg.rtd",,"StudyData",$H$5,"Bar",,"Time","5",R21,,,,,"T") -> 42779.54861 | T21: =RTD("cqg.rtd",,"StudyData",$H$5,"Bar",,"Open","5",R21,,,,,"T") -> 5769.58 | U21: =RTD("cqg.rtd",,"StudyData",$H$5,"Bar",,"High","5",R21,,,,,"T") -> 5770.99 | V21: =RTD("cqg.rtd",,"StudyData",$H$5,"Bar",,"Low","5",R21,,,,,"T") -> 5769.24 | W21: =RTD("cqg.rtd",,"StudyData",$H$5,"Bar",,"Close","5",R21,,,,,"T") -> 5770.79
K22: -19 | L22: =RTD("cqg.rtd",,"StudyData",$C$5,"Bar",,"Time","5",K22,,,,,"T") -> 42779.55208 | M22: =RTD("cqg.rtd",,"StudyData",$C$5,"Bar",,"Open","5",K22,,,,,"T") -> 2330.75 | N22: =RTD("cqg.rtd",,"StudyData",$C$5,"Bar",,"High","5",K22,,,,,"T") -> 2330.75 | O22: =RTD("cqg.rtd",,"StudyData",$C$5,"Bar",,"Low","5",K22,,,,,"T") -> 2329.58 | P22: =RTD("cqg.rtd",,"StudyData",$C$5,"Bar",,"Close","5",K22,,,,,"T") -> 2330.04 | R22: -19 | S22: =RTD("cqg.rtd",,"StudyData",$H$5,"Bar",,"Time","5",R22,,,,,"T") -> 42779.55208 | T22: =RTD("cqg.rtd",,"StudyData",$H$5,"Bar",,"Open","5",R22,,,,,"T") -> 5770.77 | U22: =RTD("cqg.rtd",,"StudyData",$H$5,"Bar",,"High","5",R22,,,,,"T") -> 5770.77 | V22: =RTD("cqg.rtd",,"StudyData",$H$5,"Bar",,"Low","5",R22,,,,,"T") -> 5768.39 | W22: =RTD("cqg.rtd",,"StudyData",$H$5,"Bar",,"Close","5",R22,,,,,"T") -> 5769.24
C23: Enter in the symbols you require. | K23: -18 | L23: =RTD("cqg.rtd",,"StudyData",$C$5,"Bar",,"Time","5",K23,,,,,"T") -> 42779.55556 | M23: =RTD("cqg.rtd",,"StudyData",$C$5,"Bar",,"Open","5",K23,,,,,"T") -> 2330.04 | N23: =RTD("cqg.rtd",,"StudyData",$C$5,"Bar",,"High","5",K23,,,,,"T") -> 2330.18 | O23: =RTD("cqg.rtd",,"StudyData",$C$5,"Bar",,"Low","5",K23,,,,,"T") -> 2329.6 | P23: =RTD("cqg.rtd",,"StudyData",$C$5,"Bar",,"Close","5",K23,,,,,"T") -> 2329.97 | R23: -18 | S23: =RTD("cqg.rtd",,"StudyData",$H$5,"Bar",,"Time","5",R23,,,,,"T") -> 42779.55556 | T23: =RTD("cqg.rtd",,"StudyData",$H$5,"Bar",,"Open","5",R23,,,,,"T") -> 5769.25 | U23: =RTD("cqg.rtd",,"StudyData",$H$5,"Bar",,"High","5",R23,,,,,"T") -> 5769.89 | V23: =RTD("cqg.rtd",,"StudyData",$H$5,"Bar",,"Low","5",R23,,,,,"T") -> 5768.94 | W23: =RTD("cqg.rtd",,"StudyData",$H$5,"Bar",,"Close","5",R23,,,,,"T") -> 5769.45
C24: The two charts in the center top of the main page use the first symbol in the Left Hand and Right Hand Display columns above. | K24: -17 | L24: =RTD("cqg.rtd",,"StudyData",$C$5,"Bar",,"Time","5",K24,,,,,"T") -> 42779.55903 | M24: =RTD("cqg.rtd",,"StudyData",$C$5,"Bar",,"Open","5",K24,,,,,"T") -> 2329.96 | N24: =RTD("cqg.rtd",,"StudyData",$C$5,"Bar",,"High","5",K24,,,,,"T") -> 2330.28 | O24: =RTD("cqg.rtd",,"StudyData",$C$5,"Bar",,"Low","5",K24,,,,,"T") -> 2329.79 | P24: =RTD("cqg.rtd",,"StudyData",$C$5,"Bar",,"Close","5",K24,,,,,"T") -> 2329.85 | R24: -17 | S24: =RTD("cqg.rtd",,"StudyData",$H$5,"Bar",,"Time","5",R24,,,,,"T") -> 42779.55903 | T24: =RTD("cqg.rtd",,"StudyData",$H$5,"Bar",,"Open","5",R24,,,,,"T") -> 5769.45 | U24: =RTD("cqg.rtd",,"StudyData",$H$5,"Bar",,"High","5",R24,,,,,"T") -> 5769.68 | V24: =RTD("cqg.rtd",,"StudyData",$H$5,"Bar",,"Low","5",R24,,,,,"T") -> 5767.93 | W24: =RTD("cqg.rtd",,"StudyData",$H$5,"Bar",,"Close","5",R24,,,,,"T") -> 5767.93
K25: -16 | L25: =RTD("cqg.rtd",,"StudyData",$C$5,"Bar",,"Time","5",K25,,,,,"T") -> 42779.5625 | M25: =RTD("cqg.rtd",,"StudyData",$C$5,"Bar",,"Open","5",K25,,,,,"T") -> 2329.86 | N25: =RTD("cqg.rtd",,"StudyData",$C$5,"Bar",,"High","5",K25,,,,,"T") -> 2329.87 | O25: =RTD("cqg.rtd",,"StudyData",$C$5,"Bar",,"Low","5",K25,,,,,"T") -> 2329.07 | P25: =RTD("cqg.rtd",,"StudyData",$C$5,"Bar",,"Close","5",K25,,,,,"T") -> 2329.27 | R25: -16 | S25: =RTD("cqg.rtd",,"StudyData",$H$5,"Bar",,"Time","5",R25,,,,,"T") -> 42779.5625 | T25: =RTD("cqg.rtd",,"StudyData",$H$5,"Bar",,"Open","5",R25,,,,,"T") -> 5767.93 | U25: =RTD("cqg.rtd",,"StudyData",$H$5,"Bar",,"High","5",R25,,,,,"T") -> 5767.93 | V25: =RTD("cqg.rtd",,"StudyData",$H$5,"Bar",,"Low","5",R25,,,,,"T") -> 5766.06 | W25: =RTD("cqg.rtd",,"StudyData",$H$5,"Bar",,"Close","5",R25,,,,,"T") -> 5766.41
K26: -15 | L26: =RTD("cqg.rtd",,"StudyData",$C$5,"Bar",,"Time","5",K26,,,,,"T") -> 42779.56597 | M26: =RTD("cqg.rtd",,"StudyData",$C$5,"Bar",,"Open","5",K26,,,,,"T") -> 2329.27 | N26: =RTD("cqg.rtd",,"StudyData",$C$5,"Bar",,"High","5",K26,,,,,"T") -> 2329.41 | O26: =RTD("cqg.rtd",,"StudyData",$C$5,"Bar",,"Low","5",K26,,,,,"T") -> 2329.05 | P26: =RTD("cqg.rtd",,"StudyData",$C$5,"Bar",,"Close","5",K26,,,,,"T") -> 2329.22 | R26: -15 | S26: =RTD("cqg.rtd",,"StudyData",$H$5,"Bar",,"Time","5",R26,,,,,"T") -> 42779.56597 | T26: =RTD("cqg.rtd",,"StudyData",$H$5,"Bar",,"Open","5",R26,,,,,"T") -> 5766.41 | U26: =RTD("cqg.rtd",,"StudyData",$H$5,"Bar",,"High","5",R26,,,,,"T") -> 5766.61 | V26: =RTD("cqg.rtd",,"StudyData",$H$5,"Bar",,"Low","5",R26,,,,,"T") -> 5766 | W26: =RTD("cqg.rtd",,"StudyData",$H$5,"Bar",,"Close","5",R26,,,,,"T") -> 5766.49
C27: When entering symbols the "F.US." for futures or the "S.US." for stocks or the "X.US." for indicies are required. | K27: -14 | L27: =RTD("cqg.rtd",,"StudyData",$C$5,"Bar",,"Time","5",K27,,,,,"T") -> 42779.56944 | M27: =RTD("cqg.rtd",,"StudyData",$C$5,"Bar",,"Open","5",K27,,,,,"T") -> 2329.22 | N27: =RTD("cqg.rtd",,"StudyData",$C$5,"Bar",,"High","5",K27,,,,,"T") -> 2329.4 | O27: =RTD("cqg.rtd",,"StudyData",$C$5,"Bar",,"Low","5",K27,,,,,"T") -> 2328.79 | P27: =RTD("cqg.rtd",,"StudyData",$C$5,"Bar",,"Close","5",K27,,,,,"T") -> 2329.4 | R27: -14 | S27: =RTD("cqg.rtd",,"StudyData",$H$5,"Bar",,"Time","5",R27,,,,,"T") -> 42779.56944 | T27: =RTD("cqg.rtd",,"StudyData",$H$5,"Bar",,"Open","5",R27,,,,,"T") -> 5766.48 | U27: =RTD("cqg.rtd",,"StudyData",$H$5,"Bar",,"High","5",R27,,,,,"T") -> 5767.36 | V27: =RTD("cqg.rtd",,"StudyData",$H$5,"Bar",,"Low","5",R27,,,,,"T") -> 5765.76 | W27: =RTD("cqg.rtd",,"StudyData",$H$5,"Bar",,"Close","5",R27,,,,,"T") -> 5767.36
C28: Use all capital letters. | K28: -13 | L28: =RTD("cqg.rtd",,"StudyData",$C$5,"Bar",,"Time","5",K28,,,,,"T") -> 42779.57292 | M28: =RTD("cqg.rtd",,"StudyData",$C$5,"Bar",,"Open","5",K28,,,,,"T") -> 2329.5 | N28: =RTD("cqg.rtd",,"StudyData",$C$5,"Bar",,"High","5",K28,,,,,"T") -> 2329.82 | O28: =RTD("cqg.rtd",,"StudyData",$C$5,"Bar",,"Low","5",K28,,,,,"T") -> 2328.98 | P28: =RTD("cqg.rtd",,"StudyData",$C$5,"Bar",,"Close","5",K28,,,,,"T") -> 2329.12 | R28: -13 | S28: =RTD("cqg.rtd",,"StudyData",$H$5,"Bar",,"Time","5",R28,,,,,"T") -> 42779.57292 | T28: =RTD("cqg.rtd",,"StudyData",$H$5,"Bar",,"Open","5",R28,,,,,"T") -> 5767.41 | U28: =RTD("cqg.rtd",,"StudyData",$H$5,"Bar",,"High","5",R28,,,,,"T") -> 5768.2 | V28: =RTD("cqg.rtd",,"StudyData",$H$5,"Bar",,"Low","5",R28,,,,,"T") -> 5766.22 | W28: =RTD("cqg.rtd",,"StudyData",$H$5,"Bar",,"Close","5",R28,,,,,"T") -> 5766.22
K29: -12 | L29: =RTD("cqg.rtd",,"StudyData",$C$5,"Bar",,"Time","5",K29,,,,,"T") -> 42779.57639 | M29: =RTD("cqg.rtd",,"StudyData",$C$5,"Bar",,"Open","5",K29,,,,,"T") -> 2329.1 | N29: =RTD("cqg.rtd",,"StudyData",$C$5,"Bar",,"High","5",K29,,,,,"T") -> 2329.46 | O29: =RTD("cqg.rtd",,"StudyData",$C$5,"Bar",,"Low","5",K29,,,,,"T") -> 2328.84 | P29: =RTD("cqg.rtd",,"StudyData",$C$5,"Bar",,"Close","5",K29,,,,,"T") -> 2328.86 | R29: -12 | S29: =RTD("cqg.rtd",,"StudyData",$H$5,"Bar",,"Time","5",R29,,,,,"T") -> 42779.57639 | T29: =RTD("cqg.rtd",,"StudyData",$H$5,"Bar",,"Open","5",R29,,,,,"T") -> 5766.22 | U29: =RTD("cqg.rtd",,"StudyData",$H$5,"Bar",,"High","5",R29,,,,,"T") -> 5766.98 | V29: =RTD("cqg.rtd",,"StudyData",$H$5,"Bar",,"Low","5",R29,,,,,"T") -> 5765.95 | W29: =RTD("cqg.rtd",,"StudyData",$H$5,"Bar",,"Close","5",R29,,,,,"T") -> 5765.95
K30: -11 | L30: =RTD("cqg.rtd",,"StudyData",$C$5,"Bar",,"Time","5",K30,,,,,"T") -> 42779.57986 | M30: =RTD("cqg.rtd",,"StudyData",$C$5,"Bar",,"Open","5",K30,,,,,"T") -> 2328.84 | N30: =RTD("cqg.rtd",,"StudyData",$C$5,"Bar",,"High","5",K30,,,,,"T") -> 2329.3 | O30: =RTD("cqg.rtd",,"StudyData",$C$5,"Bar",,"Low","5",K30,,,,,"T") -> 2328.38 | P30: =RTD("cqg.rtd",,"StudyData",$C$5,"Bar",,"Close","5",K30,,,,,"T") -> 2328.48 | R30: -11 | S30: =RTD("cqg.rtd",,"StudyData",$H$5,"Bar",,"Time","5",R30,,,,,"T") -> 42779.57986 | T30: =RTD("cqg.rtd",,"StudyData",$H$5,"Bar",,"Open","5",R30,,,,,"T") -> 5765.99 | U30: =RTD("cqg.rtd",,"StudyData",$H$5,"Bar",,"High","5",R30,,,,,"T") -> 5766.53 | V30: =RTD("cqg.rtd",,"StudyData",$H$5,"Bar",,"Low","5",R30,,,,,"T") -> 5764.81 | W30: =RTD("cqg.rtd",,"StudyData",$H$5,"Bar",,"Close","5",R30,,,,,"T") -> 5765.08
K31: -10 | L31: =RTD("cqg.rtd",,"StudyData",$C$5,"Bar",,"Time","5",K31,,,,,"T") -> 42779.58333 | M31: =RTD("cqg.rtd",,"StudyData",$C$5,"Bar",,"Open","5",K31,,,,,"T") -> 2328.48 | N31: =RTD("cqg.rtd",,"StudyData",$C$5,"Bar",,"High","5",K31,,,,,"T") -> 2328.84 | O31: =RTD("cqg.rtd",,"StudyData",$C$5,"Bar",,"Low","5",K31,,,,,"T") -> 2328.33 | P31: =RTD("cqg.rtd",,"StudyData",$C$5,"Bar",,"Close","5",K31,,,,,"T") -> 2328.56 | R31: -10 | S31: =RTD("cqg.rtd",,"StudyData",$H$5,"Bar",,"Time","5",R31,,,,,"T") -> 42779.58333 | T31: =RTD("cqg.rtd",,"StudyData",$H$5,"Bar",,"Open","5",R31,,,,,"T") -> 5765.08 | U31: =RTD("cqg.rtd",,"StudyData",$H$5,"Bar",,"High","5",R31,,,,,"T") -> 5765.54 | V31: =RTD("cqg.rtd",,"StudyData",$H$5,"Bar",,"Low","5",R31,,,,,"T") -> 5764.59 | W31: =RTD("cqg.rtd",,"StudyData",$H$5,"Bar",,"Close","5",R31,,,,,"T") -> 5764.64
K32: -9 | L32: =RTD("cqg.rtd",,"StudyData",$C$5,"Bar",,"Time","5",K32,,,,,"T") -> 42779.58681 | M32: =RTD("cqg.rtd",,"StudyData",$C$5,"Bar",,"Open","5",K32,,,,,"T") -> 2328.56 | N32: =RTD("cqg.rtd",,"StudyData",$C$5,"Bar",,"High","5",K32,,,,,"T") -> 2329.15 | O32: =RTD("cqg.rtd",,"StudyData",$C$5,"Bar",,"Low","5",K32,,,,,"T") -> 2328.55 | P32: =RTD("cqg.rtd",,"StudyData",$C$5,"Bar",,"Close","5",K32,,,,,"T") -> 2329.04 | R32: -9 | S32: =RTD("cqg.rtd",,"StudyData",$H$5,"Bar",,"Time","5",R32,,,,,"T") -> 42779.58681 | T32: =RTD("cqg.rtd",,"StudyData",$H$5,"Bar",,"Open","5",R32,,,,,"T") -> 5764.63 | U32: =RTD("cqg.rtd",,"StudyData",$H$5,"Bar",,"High","5",R32,,,,,"T") -> 5765.9 | V32: =RTD("cqg.rtd",,"StudyData",$H$5,"Bar",,"Low","5",R32,,,,,"T") -> 5764.53 | W32: =RTD("cqg.rtd",,"StudyData",$H$5,"Bar",,"Close","5",R32,,,,,"T") -> 5765.9
K33: -8 | L33: =RTD("cqg.rtd",,"StudyData",$C$5,"Bar",,"Time","5",K33,,,,,"T") -> 42779.59028 | M33: =RTD("cqg.rtd",,"StudyData",$C$5,"Bar",,"Open","5",K33,,,,,"T") -> 2329.05 | N33: =RTD("cqg.rtd",,"StudyData",$C$5,"Bar",,"High","5",K33,,,,,"T") -> 2329.36 | O33: =RTD("cqg.rtd",,"StudyData",$C$5,"Bar",,"Low","5",K33,,,,,"T") -> 2328.94 | P33: =RTD("cqg.rtd",,"StudyData",$C$5,"Bar",,"Close","5",K33,,,,,"T") -> 2329.36 | R33: -8 | S33: =RTD("cqg.rtd",,"StudyData",$H$5,"Bar",,"Time","5",R33,,,,,"T") -> 42779.59028 | T33: =RTD("cqg.rtd",,"StudyData",$H$5,"Bar",,"Open","5",R33,,,,,"T") -> 5765.88 | U33: =RTD("cqg.rtd",,"StudyData",$H$5,"Bar",,"High","5",R33,,,,,"T") -> 5767.42 | V33: =RTD("cqg.rtd",,"StudyData",$H$5,"Bar",,"Low","5",R33,,,,,"T") -> 5765.85 | W33: =RTD("cqg.rtd",,"StudyData",$H$5,"Bar",,"Close","5",R33,,,,,"T") -> 5767.42
K34: -7 | L34: =RTD("cqg.rtd",,"StudyData",$C$5,"Bar",,"Time","5",K34,,,,,"T") -> 42779.59375 | M34: =RTD("cqg.rtd",,"StudyData",$C$5,"Bar",,"Open","5",K34,,,,,"T") -> 2329.36 | N34: =RTD("cqg.rtd",,"StudyData",$C$5,"Bar",,"High","5",K34,,,,,"T") -> 2329.39 | O34: =RTD("cqg.rtd",,"StudyData",$C$5,"Bar",,"Low","5",K34,,,,,"T") -> 2328.83 | P34: =RTD("cqg.rtd",,"StudyData",$C$5,"Bar",,"Close","5",K34,,,,,"T") -> 2328.83 | R34: -7 | S34: =RTD("cqg.rtd",,"StudyData",$H$5,"Bar",,"Time","5",R34,,,,,"T") -> 42779.59375 | T34: =RTD("cqg.rtd",,"StudyData",$H$5,"Bar",,"Open","5",R34,,,,,"T") -> 5767.4 | U34: =RTD("cqg.rtd",,"StudyData",$H$5,"Bar",,"High","5",R34,,,,,"T") -> 5767.42 | V34: =RTD("cqg.rtd",,"StudyData",$H$5,"Bar",,"Low","5",R34,,,,,"T") -> 5766.14 | W34: =RTD("cqg.rtd",,"StudyData",$H$5,"Bar",,"Close","5",R34,,,,,"T") -> 5766.37
K35: -6 | L35: =RTD("cqg.rtd",,"StudyData",$C$5,"Bar",,"Time","5",K35,,,,,"T") -> 42779.59722 | M35: =RTD("cqg.rtd",,"StudyData",$C$5,"Bar",,"Open","5",K35,,,,,"T") -> 2328.82 | N35: =RTD("cqg.rtd",,"StudyData",$C$5,"Bar",,"High","5",K35,,,,,"T") -> 2328.82 | O35: =RTD("cqg.rtd",,"StudyData",$C$5,"Bar",,"Low","5",K35,,,,,"T") -> 2328.14 | P35: =RTD("cqg.rtd",,"StudyData",$C$5,"Bar",,"Close","5",K35,,,,,"T") -> 2328.19 | R35: -6 | S35: =RTD("cqg.rtd",,"StudyData",$H$5,"Bar",,"Time","5",R35,,,,,"T") -> 42779.59722 | T35: =RTD("cqg.rtd",,"StudyData",$H$5,"Bar",,"Open","5",R35,,,,,"T") -> 5766.36 | U35: =RTD("cqg.rtd",,"StudyData",$H$5,"Bar",,"High","5",R35,,,,,"T") -> 5766.36 | V35: =RTD("cqg.rtd",,"StudyData",$H$5,"Bar",,"Low","5",R35,,,,,"T") -> 5764.4 | W35: =RTD("cqg.rtd",,"StudyData",$H$5,"Bar",,"Close","5",R35,,,,,"T") -> 5764.4
K36: -5 | L36: =RTD("cqg.rtd",,"StudyData",$C$5,"Bar",,"Time","5",K36,,,,,"T") -> 42779.60069 | M36: =RTD("cqg.rtd",,"StudyData",$C$5,"Bar",,"Open","5",K36,,,,,"T") -> 2328.19 | N36: =RTD("cqg.rtd",,"StudyData",$C$5,"Bar",,"High","5",K36,,,,,"T") -> 2328.64 | O36: =RTD("cqg.rtd",,"StudyData",$C$5,"Bar",,"Low","5",K36,,,,,"T") -> 2327.95 | P36: =RTD("cqg.rtd",,"StudyData",$C$5,"Bar",,"Close","5",K36,,,,,"T") -> 2328.58 | R36: -5 | S36: =RTD("cqg.rtd",,"StudyData",$H$5,"Bar",,"Time","5",R36,,,,,"T") -> 42779.60069 | T36: =RTD("cqg.rtd",,"StudyData",$H$5,"Bar",,"Open","5",R36,,,,,"T") -> 5764.56 | U36: =RTD("cqg.rtd",,"StudyData",$H$5,"Bar",,"High","5",R36,,,,,"T") -> 5765.44 | V36: =RTD("cqg.rtd",,"StudyData",$H$5,"Bar",,"Low","5",R36,,,,,"T") -> 5763.39 | W36: =RTD("cqg.rtd",,"StudyData",$H$5,"Bar",,"Close","5",R36,,,,,"T") -> 5765.36
K37: -4 | L37: =RTD("cqg.rtd",,"StudyData",$C$5,"Bar",,"Time","5",K37,,,,,"T") -> 42779.60417 | M37: =RTD("cqg.rtd",,"StudyData",$C$5,"Bar",,"Open","5",K37,,,,,"T") -> 2328.64 | N37: =RTD("cqg.rtd",,"StudyData",$C$5,"Bar",,"High","5",K37,,,,,"T") -> 2328.65 | O37: =RTD("cqg.rtd",,"StudyData",$C$5,"Bar",,"Low","5",K37,,,,,"T") -> 2327.83 | P37: =RTD("cqg.rtd",,"StudyData",$C$5,"Bar",,"Close","5",K37,,,,,"T") -> 2328.06 | R37: -4 | S37: =RTD("cqg.rtd",,"StudyData",$H$5,"Bar",,"Time","5",R37,,,,,"T") -> 42779.60417 | T37: =RTD("cqg.rtd",,"StudyData",$H$5,"Bar",,"Open","5",R37,,,,,"T") -> 5765.37 | U37: =RTD("cqg.rtd",,"StudyData",$H$5,"Bar",,"High","5",R37,,,,,"T") -> 5765.37 | V37: =RTD("cqg.rtd",,"StudyData",$H$5,"Bar",,"Low","5",R37,,,,,"T") -> 5762.36 | W37: =RTD("cqg.rtd",,"StudyData",$H$5,"Bar",,"Close","5",R37,,,,,"T") -> 5762.57
K38: -3 | L38: =RTD("cqg.rtd",,"StudyData",$C$5,"Bar",,"Time","5",K38,,,,,"T") -> 42779.60764 | M38: =RTD("cqg.rtd",,"StudyData",$C$5,"Bar",,"Open","5",K38,,,,,"T") -> 2328.06 | N38: =RTD("cqg.rtd",,"StudyData",$C$5,"Bar",,"High","5",K38,,,,,"T") -> 2329.21 | O38: =RTD("cqg.rtd",,"StudyData",$C$5,"Bar",,"Low","5",K38,,,,,"T") -> 2327.85 | P38: =RTD("cqg.rtd",,"StudyData",$C$5,"Bar",,"Close","5",K38,,,,,"T") -> 2329.16 | R38: -3 | S38: =RTD("cqg.rtd",,"StudyData",$H$5,"Bar",,"Time","5",R38,,,,,"T") -> 42779.60764 | T38: =RTD("cqg.rtd",,"StudyData",$H$5,"Bar",,"Open","5",R38,,,,,"T") -> 5762.58 | U38: =RTD("cqg.rtd",,"StudyData",$H$5,"Bar",,"High","5",R38,,,,,"T") -> 5764.29 | V38: =RTD("cqg.rtd",,"StudyData",$H$5,"Bar",,"Low","5",R38,,,,,"T") -> 5762.19 | W38: =RTD("cqg.rtd",,"StudyData",$H$5,"Bar",,"Close","5",R38,,,,,"T") -> 5764.28
K39: -2 | L39: =RTD("cqg.rtd",,"StudyData",$C$5,"Bar",,"Time","5",K39,,,,,"T") -> 42779.61111 | M39: =RTD("cqg.rtd",,"StudyData",$C$5,"Bar",,"Open","5",K39,,,,,"T") -> 2329.14 | N39: =RTD("cqg.rtd",,"StudyData",$C$5,"Bar",,"High","5",K39,,,,,"T") -> 2329.4 | O39: =RTD("cqg.rtd",,"StudyData",$C$5,"Bar",,"Low","5",K39,,,,,"T") -> 2328.73 | P39: =RTD("cqg.rtd",,"StudyData",$C$5,"Bar",,"Close","5",K39,,,,,"T") -> 2329.35 | R39: -2 | S39: =RTD("cqg.rtd",,"StudyData",$H$5,"Bar",,"Time","5",R39,,,,,"T") -> 42779.61111 | T39: =RTD("cqg.rtd",,"StudyData",$H$5,"Bar",,"Open","5",R39,,,,,"T") -> 5764.26 | U39: =RTD("cqg.rtd",,"StudyData",$H$5,"Bar",,"High","5",R39,,,,,"T") -> 5764.51 | V39: =RTD("cqg.rtd",,"StudyData",$H$5,"Bar",,"Low","5",R39,,,,,"T") -> 5763.79 | W39: =RTD("cqg.rtd",,"StudyData",$H$5,"Bar",,"Close","5",R39,,,,,"T") -> 5764.27
K40: -1 | L40: =RTD("cqg.rtd",,"StudyData",$C$5,"Bar",,"Time","5",K40,,,,,"T") -> 42779.61458 | M40: =RTD("cqg.rtd",,"StudyData",$C$5,"Bar",,"Open","5",K40,,,,,"T") -> 2329.34 | N40: =RTD("cqg.rtd",,"StudyData",$C$5,"Bar",,"High","5",K40,,,,,"T") -> 2329.42 | O40: =RTD("cqg.rtd",,"StudyData",$C$5,"Bar",,"Low","5",K40,,,,,"T") -> 2328.72 | P40: =RTD("cqg.rtd",,"StudyData",$C$5,"Bar",,"Close","5",K40,,,,,"T") -> 2329.01 | R40: -1 | S40: =RTD("cqg.rtd",,"StudyData",$H$5,"Bar",,"Time","5",R40,,,,,"T") -> 42779.61458 | T40: =RTD("cqg.rtd",,"StudyData",$H$5,"Bar",,"Open","5",R40,,,,,"T") -> 5764.3 | U40: =RTD("cqg.rtd",,"StudyData",$H$5,"Bar",,"High","5",R40,,,,,"T") -> 5764.33 | V40: =RTD("cqg.rtd",,"StudyData",$H$5,"Bar",,"Low","5",R40,,,,,"T") -> 5762.04 | W40: =RTD("cqg.rtd",,"StudyData",$H$5,"Bar",,"Close","5",R40,,,,,"T") -> 5762.35
K41: 0 | L41: =RTD("cqg.rtd",,"StudyData",$C$5,"Bar",,"Time","5",K41,,,,,"T") -> 42779.61806 | M41: =IF(RTD("cqg.rtd",,"StudyData",$C$5,"Bar",,"Open","5",K41,,,,,"T")="",NA(),RTD("cqg.rtd",,"StudyData",$C$5,"Bar",,"Open","5",K41,,,,,"T")) -> 2329 | N41: =IF(RTD("cqg.rtd",,"StudyData",$C$5,"Bar",,"High","5",K41,,,,,"T")="",NA(),RTD("cqg.rtd",,"StudyData",$C$5,"Bar",,"High","5",K41,,,,,"T")) -> 2329.29 | O41: =IF(RTD("cqg.rtd",,"StudyData",$C$5,"Bar",,"Low","5",K41,,,,,"T")="",NA(),RTD("cqg.rtd",,"StudyData",$C$5,"Bar",,"Low","5",K41,,,,,"T")) -> 2328.94 | P41: =IF(RTD("cqg.rtd",,"StudyData",$C$5,"Bar",,"Close","5",K41,,,,,"T")="",NA(),RTD("cqg.rtd",,"StudyData",$C$5,"Bar",,"Close","5",K41,,,,,"T")) -> 2328.94 | R41: 0 | S41: =RTD("cqg.rtd",,"StudyData",$H$5,"Bar",,"Time","5",R41,,,,,"T") -> 42779.61806 | T41: =IF(RTD("cqg.rtd",,"StudyData",$H$5,"Bar",,"Open","5",R41,,,,,"T")="",NA(),RTD("cqg.rtd",,"StudyData",$H$5,"Bar",,"Open","5",R41,,,,,"T")) -> 5762.72 | U41: =IF(RTD("cqg.rtd",,"StudyData",$H$5,"Bar",,"High","5",R41,,,,,"T")="",NA(),RTD("cqg.rtd",,"StudyData",$H$5,"Bar",,"High","5",R41,,,,,"T")) -> 5764.73 | V41: =IF(RTD("cqg.rtd",,"StudyData",$H$5,"Bar",,"Low","5",R41,,,,,"T")="",NA(),RTD("cqg.rtd",,"StudyData",$H$5,"Bar",,"Low","5",R41,,,,,"T")) -> 5762.72 | W41: =IF(RTD("cqg.rtd",,"StudyData",$H$5,"Bar",,"Close","5",R41,,,,,"T")="",NA(),RTD("cqg.rtd",,"StudyData",$H$5,"Bar",,"Close","5",R41,,,,,"T")) -> 5764.32

Sheet NASDAQ100 (hidden)
C1: S.US.AAL | D1: =IFERROR(RTD("cqg.rtd", ,"ContractData",C1, "PerCentNetLastTrade",, "T")/100,"") -> 0.02325080732 | E1: 6 | F1: =IFERROR(E1,"") -> 6 | G1: =C1 -> S.US.AAL | H1: 1 | I1: =IFERROR(VLOOKUP(H1,$F$1:$G$107,2,FALSE),"") -> S.US.REGN | J1: =IFERROR(RTD("cqg.rtd", ,"ContractData",I1, "PerCentNetLastTrade",, "T")/100,"") -> 0.04318226026 | L1: =MIN(D1:D107) -> -0.04444640028 | M1: =VLOOKUP(L1,$D$1:$G$107,2,FALSE) -> 107 | N1: =VLOOKUP(M1,$F$1:$G$107,2,FALSE) -> S.US.NVDA | O1: =IFERROR(RTD("cqg.rtd", ,"ContractData",N1, "PerCentNetLastTrade",, "T")/100,"") -> -0.04444640028
C2: S.US.AAPL | D2: =IFERROR(RTD("cqg.rtd", ,"ContractData",C2, "PerCentNetLastTrade",, "T")/100,"") -> 0.009990917348 | E2: 27 | F2: =IFERROR(E2,"") -> 27 | G2: =C2 -> S.US.AAPL | H2: =H1+1 -> 2 | I2: S.US.TSLA | J2: =IFERROR(RTD("cqg.rtd", ,"ContractData",I2, "PerCentNetLastTrade",, "T")/100,"") -> 0.04208297738 | M2: =M1-1 -> 106 | N2: =VLOOKUP(M2,$F$1:$G$107,2,FALSE) -> S.US.ATVI | O2: =IFERROR(RTD("cqg.rtd", ,"ContractData",N2, "PerCentNetLastTrade",, "T")/100,"") -> -0.03154774508
C3: S.US.ADBE | D3: =IFERROR(RTD("cqg.rtd", ,"ContractData",C3, "PerCentNetLastTrade",, "T")/100,"") -> 0.006675224647 | E3: 37 | F3: 37 | G3: =C3 -> S.US.ADBE | H3: =H2+1 -> 3 | I3: S.US.STX | J3: =IFERROR(RTD("cqg.rtd", ,"ContractData",I3, "PerCentNetLastTrade",, "T")/100,"") -> 0.02841153681 | M3: =M2-1 -> 105 | N3: S.US.TMUS | O3: =IFERROR(RTD("cqg.rtd", ,"ContractData",N3, "PerCentNetLastTrade",, "T")/100,"") -> -0.02628626382
C4: S.US.ADI | D4: =IFERROR(RTD("cqg.rtd", ,"ContractData",C4, "PerCentNetLastTrade",, "T")/100,"") -> 0.01881615053 | E4: 10 | F4: 10 | G4: S.US.ADI | H4: 4 | I4: S.US.XLNX | J4: =IFERROR(RTD("cqg.rtd", ,"ContractData",I4, "PerCentNetLastTrade",, "T")/100,"") -> 0.02671953112 | M4: 104 | N4: S.US.EXPE | O4: =IFERROR(RTD("cqg.rtd", ,"ContractData",N4, "PerCentNetLastTrade",, "T")/100,"") -> -0.02609050143
C5: S.US.ADP | D5: =IFERROR(RTD("cqg.rtd", ,"ContractData",C5, "PerCentNetLastTrade",, "T")/100,"") -> 0.007053772235 | E5: 36 | F5: 36 | G5: S.US.ADP | H5: 5 | I5: S.US.SBAC | J5: =IFERROR(RTD("cqg.rtd", ,"ContractData",I5, "PerCentNetLastTrade",, "T")/100,"") -> 0.02346671653 | M5: 103 | N5: S.US.LILA | O5: =IFERROR(RTD("cqg.rtd", ,"ContractData",N5, "PerCentNetLastTrade",, "T")/100,"") -> -0.02370689655
C6: S.US.ADSK | D6: =IFERROR(RTD("cqg.rtd", ,"ContractData",C6, "PerCentNetLastTrade",, "T")/100,"") -> 0.01609996396 | E6: 16 | F6: 16 | G6: S.US.ADSK | H6: 6 | I6: S.US.AAL | J6: =IFERROR(RTD("cqg.rtd", ,"ContractData",I6, "PerCentNetLastTrade",, "T")/100,"") -> 0.02325080732 | M6: 102 | N6: S.US.LILAK | O6: =IFERROR(RTD("cqg.rtd", ,"ContractData",N6, "PerCentNetLastTrade",, "T")/100,"") -> -0.02181656278
C7: S.US.AKAM | D7: =IFERROR(RTD("cqg.rtd", ,"ContractData",C7, "PerCentNetLastTrade",, "T")/100,"") -> -0.006567630962 | E7: 93 | F7: 93 | G7: S.US.AKAM | H7: 7 | I7: S.US.DISCA | J7: =IFERROR(RTD("cqg.rtd", ,"ContractData",I7, "PerCentNetLastTrade",, "T")/100,"") -> 0.02036516854 | M7: 101 | N7: S.US.QVCA | O7: =IFERROR(RTD("cqg.rtd", ,"ContractData",N7, "PerCentNetLastTrade",, "T")/100,"") -> -0.01604554865
C8: S.US.ALXN | D8: =IFERROR(RTD("cqg.rtd", ,"ContractData",C8, "PerCentNetLastTrade",, "T")/100,"") -> 0.009011145364 | E8: 32 | F8: 32 | G8: S.US.ALXN | H8: 8 | I8: S.US.GILD | J8: =IFERROR(RTD("cqg.rtd", ,"ContractData",I8, "PerCentNetLastTrade",, "T")/100,"") -> 0.01883664858 | M8: 100 | N8: S.US.TSCO | O8: =IFERROR(RTD("cqg.rtd", ,"ContractData",N8, "PerCentNetLastTrade",, "T")/100,"") -> -0.01481481481
C9: S.US.AMAT | D9: =IFERROR(RTD("cqg.rtd", ,"ContractData",C9, "PerCentNetLastTrade",, "T")/100,"") -> 0.003680634202 | E9: 56 | F9: 56 | G9: S.US.AMAT | H9: 9 | I9: S.US.CERN | J9: =IFERROR(RTD("cqg.rtd", ,"ContractData",I9, "PerCentNetLastTrade",, "T")/100,"") -> 0.0186407767 | M9: 99 | N9: S.US.LVNTA | O9: =IFERROR(RTD("cqg.rtd", ,"ContractData",N9, "PerCentNetLastTrade",, "T")/100,"") -> -0.01392945406
C10: S.US.AMGN | D10: =IFERROR(RTD("cqg.rtd", ,"ContractData",C10, "PerCentNetLastTrade",, "T")/100,"") -> -0.0008934421347 | E10: 77 | F10: 77 | G10: S.US.AMGN | H10: 10 | I10: S.US.ADI | J10: =IFERROR(RTD("cqg.rtd", ,"ContractData",I10, "PerCentNetLastTrade",, "T")/100,"") -> 0.01881615053 | M10: 98 | N10: S.US.ORLY | O10: =IFERROR(RTD("cqg.rtd", ,"ContractData",N10, "PerCentNetLastTrade",, "T")/100,"") -> -0.01269315673
C11: S.US.AMZN | D11: =IFERROR(RTD("cqg.rtd", ,"ContractData",C11, "PerCentNetLastTrade",, "T")/100,"") -> 0.0118434728 | E11: 21 | F11: 21 | G11: S.US.AMZN | H11: 11 | I11: S.US.QCOM
C12: S.US.ATVI | D12: =IFERROR(RTD("cqg.rtd", ,"ContractData",C12, "PerCentNetLastTrade",, "T")/100,"") -> -0.03154774508 | E12: 106 | F12: 106 | G12: S.US.ATVI | H12: 12 | I12: S.US.PCAR
C13: S.US.AVGO | D13: =IFERROR(RTD("cqg.rtd", ,"ContractData",C13, "PerCentNetLastTrade",, "T")/100,"") -> 0.004914363566 | E13: 49 | F13: 49 | G13: S.US.AVGO | H13: 13 | I13: S.US.PYPL
C14: S.US.BIDU | D14: =IFERROR(RTD("cqg.rtd", ,"ContractData",C14, "PerCentNetLastTrade",, "T")/100,"") -> 0.001630523398 | E14: 68 | F14: 68 | G14: S.US.BIDU | H14: 14 | I14: S.US.BIIB
C15: S.US.BIIB | D15: =IFERROR(RTD("cqg.rtd", ,"ContractData",C15, "PerCentNetLastTrade",, "T")/100,"") -> 0.01612316203 | E15: 14 | F15: 14 | G15: S.US.BIIB | H15: 15 | I15: S.US.DISCK
C16: S.US.BMRN | D16: =IFERROR(RTD("cqg.rtd", ,"ContractData",C16, "PerCentNetLastTrade",, "T")/100,"") -> 0.007877510263 | E16: 34 | F16: 34 | G16: S.US.BMRN | H16: 16 | I16: S.US.ADSK
C17: S.US.CA | D17: =IFERROR(RTD("cqg.rtd", ,"ContractData",C17, "PerCentNetLastTrade",, "T")/100,"") -> 0.00283286119 | E17: 61 | F17: 61 | G17: S.US.CA | H17: 17 | I17: S.US.CSCO
C18: S.US.CELG | D18: =IFERROR(RTD("cqg.rtd", ,"ContractData",C18, "PerCentNetLastTrade",, "T")/100,"") -> 0.007179309748 | E18: 38 | F18: 38 | G18: S.US.CELG | H18: 18 | I18: S.US.WDC
C19: S.US.CERN | D19: =IFERROR(RTD("cqg.rtd", ,"ContractData",C19, "PerCentNetLastTrade",, "T")/100,"") -> 0.0186407767 | E19: 9 | F19: 9 | G19: S.US.CERN | H19: 19 | I19: S.US.NTES
C20: S.US.CHKP | D20: =IFERROR(RTD("cqg.rtd", ,"ContractData",C20, "PerCentNetLastTrade",, "T")/100,"") -> -0.003854135784 | E20: 83 | F20: 83 | G20: S.US.CHKP | H20: 20 | I20: S.US.INTC
C21: S.US.CHTR | D21: =IFERROR(RTD("cqg.rtd", ,"ContractData",C21, "PerCentNetLastTrade",, "T")/100,"") -> -0.005207049544 | E21: 88 | F21: 88 | G21: S.US.CHTR | H21: 21 | I21: S.US.AMZN
C22: S.US.CMCSA | D22: =IFERROR(RTD("cqg.rtd", ,"ContractData",C22, "PerCentNetLastTrade",, "T")/100,"") -> 0.006786427146 | E22: 39 | F22: 39 | G22: S.US.CMCSA | H22: 22 | I22: S.US.ESRX
C23: S.US.COST | D23: =IFERROR(RTD("cqg.rtd", ,"ContractData",C23, "PerCentNetLastTrade",, "T")/100,"") -> -0.0004069767442 | E23: 73 | F23: 73 | G23: S.US.COST | H23: 23 | I23: S.US.CTRP
C24: S.US.CSCO | D24: =IFERROR(RTD("cqg.rtd", ,"ContractData",C24, "PerCentNetLastTrade",, "T")/100,"") -> 0.01491589971 | E24: 17 | F24: 17 | G24: S.US.CSCO | H24: 24 | I24: S.US.DISH
C25: S.US.CSX | D25: =IFERROR(RTD("cqg.rtd", ,"ContractData",C25, "PerCentNetLastTrade",, "T")/100,"") -> 0.003768055265 | E25: 55 | F25: 55 | G25: S.US.CSX | H25: 25 | I25: S.US.MYL
C26: S.US.CTAS | D26: =IFERROR(RTD("cqg.rtd", ,"ContractData",C26, "PerCentNetLastTrade",, "T")/100,"") -> 0.002741603838 | E26: 60 | F26: 60 | G26: S.US.CTAS | H26: 26 | I26: S.US.MAR
C27: S.US.CTRP | D27: =IFERROR(RTD("cqg.rtd", ,"ContractData",C27, "PerCentNetLastTrade",, "T")/100,"") -> 0.01056417172 | E27: 23 | F27: 23 | G27: S.US.CTRP | H27: 27 | I27: S.US.AAPL
C28: S.US.CTSH | D28: =IFERROR(RTD("cqg.rtd", ,"ContractData",C28, "PerCentNetLastTrade",, "T")/100,"") -> 0.005400696864 | E28: 46 | F28: 46 | G28: S.US.CTSH | H28: 28 | I28: S.US.MSFT
C29: S.US.CTXS | D29: =IFERROR(RTD("cqg.rtd", ,"ContractData",C29, "PerCentNetLastTrade",, "T")/100,"") -> 0.00254614895 | E29: 62 | F29: 62 | G29: S.US.CTXS | H29: 29 | I29: S.US.FISV
C30: S.US.DISCA | D30: =IFERROR(RTD("cqg.rtd", ,"ContractData",C30, "PerCentNetLastTrade",, "T")/100,"") -> 0.02036516854 | E30: 7 | F30: 7 | G30: S.US.DISCA | H30: 30 | I30: S.US.PAYX
C31: S.US.DISCK | D31: =IFERROR(RTD("cqg.rtd", ,"ContractData",C31, "PerCentNetLastTrade",, "T")/100,"") -> 0.01627486438 | E31: 15 | F31: 15 | G31: S.US.DISCK | H31: 31 | I31: S.US.YHOO
C32: S.US.DISH | D32: =IFERROR(RTD("cqg.rtd", ,"ContractData",C32, "PerCentNetLastTrade",, "T")/100,"") -> 0.01112019624 | E32: 24 | F32: 24 | G32: S.US.DISH | H32: 32 | I32: S.US.ALXN
C33: S.US.DLTR | D33: =IFERROR(RTD("cqg.rtd", ,"ContractData",C33, "PerCentNetLastTrade",, "T")/100,"") -> -0.004870546014 | E33: 86 | F33: 86 | G33: S.US.DLTR | H33: 33 | I33: =IFERROR(VLOOKUP(H33,$F$1:$G$107,2,FALSE),"") -> S.US.XRAY
C34: S.US.EA | D34: =IFERROR(RTD("cqg.rtd", ,"ContractData",C34, "PerCentNetLastTrade",, "T")/100,"") -> 0.0008123476848 | E34: 70 | F34: 70 | G34: S.US.EA | H34: 34 | I34: S.US.BMRN
C35: S.US.EBAY | D35: =IFERROR(RTD("cqg.rtd", ,"ContractData",C35, "PerCentNetLastTrade",, "T")/100,"") -> 0.005947071067 | E35: 44 | F35: 44 | G35: S.US.EBAY | H35: 35 | I35: S.US.MAT
C36: S.US.ESRX | D36: =IFERROR(RTD("cqg.rtd", ,"ContractData",C36, "PerCentNetLastTrade",, "T")/100,"") -> 0.0115480193 | E36: 22 | F36: 22 | G36: S.US.ESRX | H36: 36 | I36: S.US.ADP
C37: S.US.EXPE | D37: =IFERROR(RTD("cqg.rtd", ,"ContractData",C37, "PerCentNetLastTrade",, "T")/100,"") -> -0.02609050143 | E37: 104 | F37: 104 | G37: S.US.EXPE | H37: 37 | I37: S.US.ADBE
C38: S.US.FAST | D38: =IFERROR(RTD("cqg.rtd", ,"ContractData",C38, "PerCentNetLastTrade",, "T")/100,"") -> -0.003377036154 | E38: 81 | F38: 81 | G38: S.US.FAST | H38: 38 | I38: S.US.CELG
C39: S.US.FB | D39: =IFERROR(RTD("cqg.rtd", ,"ContractData",C39, "PerCentNetLastTrade",, "T")/100,"") -> -0.001266860422 | E39: 78 | F39: 78 | G39: S.US.FB | H39: 39 | I39: S.US.CMCSA
C40: S.US.FISV | D40: =IFERROR(RTD("cqg.rtd", ,"ContractData",C40, "PerCentNetLastTrade",, "T")/100,"") -> 0.009993582103 | E40: 29 | F40: 29 | G40: S.US.FISV | H40: 40 | I40: S.US.ISRG
C41: S.US.FOX | D41: =IFERROR(RTD("cqg.rtd", ,"ContractData",C41, "PerCentNetLastTrade",, "T")/100,"") -> -0.006408094435 | E41: 91 | F41: 91 | G41: S.US.FOX | H41: 41 | I41: S.US.KLAC
C42: S.US.FOXA | D42: =IFERROR(RTD("cqg.rtd", ,"ContractData",C42, "PerCentNetLastTrade",, "T")/100,"") -> -0.006352390505 | E42: 90 | F42: 90 | G42: S.US.FOXA | H42: 42 | I42: S.US.INTU
C43: S.US.GILD | D43: =IFERROR(RTD("cqg.rtd", ,"ContractData",C43, "PerCentNetLastTrade",, "T")/100,"") -> 0.01883664858 | E43: 8 | F43: 8 | G43: S.US.GILD | H43: 43 | I43: S.US.GOOG
C44: S.US.GOOG | D44: =IFERROR(RTD("cqg.rtd", ,"ContractData",C44, "PerCentNetLastTrade",, "T")/100,"") -> 0.0062801873 | E44: 43 | F44: 43 | G44: S.US.GOOG | H44: 44 | I44: S.US.EBAY
C45: S.US.GOOGL | D45: =IFERROR(RTD("cqg.rtd", ,"ContractData",C45, "PerCentNetLastTrade",, "T")/100,"") -> 0.00444391208 | E45: 52 | F45: 52 | G45: S.US.GOOGL | H45: 45 | I45: S.US.SWKS
C46: S.US.HAS | D46: =IFERROR(RTD("cqg.rtd", ,"ContractData",C46, "PerCentNetLastTrade",, "T")/100,"") -> 0.005633514289 | E46: 47 | F46: 47 | G46: S.US.HAS | H46: 46 | I46: S.US.CTSH
C47: S.US.HOLX | D47: =IFERROR(RTD("cqg.rtd", ,"ContractData",C47, "PerCentNetLastTrade",, "T")/100,"") -> 0.001252191335 | E47: 72 | F47: 72 | G47: S.US.HOLX | H47: 47 | I47: S.US.HAS
C48: S.US.HSIC | D48: =IFERROR(RTD("cqg.rtd", ,"ContractData",C48, "PerCentNetLastTrade",, "T")/100,"") -> -0.0004240625189 | E48: 75 | F48: 75 | G48: S.US.HSIC | H48: 48 | I48: S.US.VRSK
C49: S.US.ILMN | D49: =IFERROR(RTD("cqg.rtd", ,"ContractData",C49, "PerCentNetLastTrade",, "T")/100,"") -> 0.002882728165 | E49: 59 | F49: 59 | G49: S.US.ILMN | H49: 49 | I49: S.US.AVGO
C50: S.US.INCY | D50: =IFERROR(RTD("cqg.rtd", ,"ContractData",C50, "PerCentNetLastTrade",, "T")/100,"") -> -0.004354971241 | E50: 85 | F50: 85 | G50: S.US.INCY | H50: 50 | I50: S.US.JD
C51: S.US.INTC | D51: =IFERROR(RTD("cqg.rtd", ,"ContractData",C51, "PerCentNetLastTrade",, "T")/100,"") -> 0.01216751556 | E51: 20 | F51: 20 | G51: S.US.INTC | H51: 51 | I51: S.US.TXN
C52: S.US.INTU | D52: =IFERROR(RTD("cqg.rtd", ,"ContractData",C52, "PerCentNetLastTrade",, "T")/100,"") -> 0.00663660342 | E52: 42 | F52: 42 | G52: S.US.INTU | H52: 52 | I52: S.US.GOOGL
C53: S.US.ISRG | D53: =IFERROR(RTD("cqg.rtd", ,"ContractData",C53, "PerCentNetLastTrade",, "T")/100,"") -> 0.006746796689 | E53: 40 | F53: 40 | G53: S.US.ISRG | H53: 53 | I53: S.US.SIRI
C54: S.US.JBHT | D54: =IFERROR(RTD("cqg.rtd", ,"ContractData",C54, "PerCentNetLastTrade",, "T")/100,"") -> 0.0009963136395 | E54: 71 | F54: 71 | G54: S.US.JBHT | H54: 54 | I54: S.US.LBTYK
C55: S.US.JD | D55: =IFERROR(RTD("cqg.rtd", ,"ContractData",C55, "PerCentNetLastTrade",, "T")/100,"") -> 0.004084411164 | E55: 50 | F55: 50 | G55: S.US.JD | H55: 55 | I55: S.US.CSX
C56: S.US.KHC | D56: =IFERROR(RTD("cqg.rtd", ,"ContractData",C56, "PerCentNetLastTrade",, "T")/100,"") -> 0.003436807095 | E56: 57 | F56: 57 | G56: S.US.KHC | H56: 56 | I56: S.US.AMAT
C57: S.US.KLAC | D57: =IFERROR(RTD("cqg.rtd", ,"ContractData",C57, "PerCentNetLastTrade",, "T")/100,"") -> 0.006925207756 | E57: 41 | F57: 41 | G57: S.US.KLAC | H57: 57 | I57: S.US.KHC
C58: S.US.LBTYA | D58: =IFERROR(RTD("cqg.rtd", ,"ContractData",C58, "PerCentNetLastTrade",, "T")/100,"") -> 0.002545248869 | E58: 63 | F58: 63 | G58: S.US.LBTYA | H58: 58 | I58: S.US.LRCX
C59: S.US.LBTYK | D59: =IFERROR(RTD("cqg.rtd", ,"ContractData",C59, "PerCentNetLastTrade",, "T")/100,"") -> 0.003795620438 | E59: 54 | F59: 54 | G59: S.US.LBTYK | H59: 59 | I59: S.US.ILMN
C60: S.US.LILA | D60: =IFERROR(RTD("cqg.rtd", ,"ContractData",C60, "PerCentNetLastTrade",, "T")/100,"") -> -0.02370689655 | E60: 103 | F60: 103 | G60: S.US.LILA | H60: 60 | I60: S.US.CTAS
C61: S.US.LILAK | D61: =IFERROR(RTD("cqg.rtd", ,"ContractData",C61, "PerCentNetLastTrade",, "T")/100,"") -> -0.02181656278 | E61: 102 | F61: 102 | G61: S.US.LILAK | H61: 61 | I61: S.US.CA
C62: S.US.LRCX | D62: =IFERROR(RTD("cqg.rtd", ,"ContractData",C62, "PerCentNetLastTrade",, "T")/100,"") -> 0.003189930166 | E62: 58 | F62: 58 | G62: S.US.LRCX | H62: 62 | I62: S.US.CTXS
C63: S.US.LVNTA | D63: =IFERROR(RTD("cqg.rtd", ,"ContractData",C63, "PerCentNetLastTrade",, "T")/100,"") -> -0.01392945406 | E63: 99 | F63: 99 | G63: S.US.LVNTA | H63: 63 | I63: S.US.LBTYA
C64: S.US.MAR | D64: =IFERROR(RTD("cqg.rtd", ,"ContractData",C64, "PerCentNetLastTrade",, "T")/100,"") -> 0.01098901099 | E64: 26 | F64: 26 | G64: S.US.MAR | H64: 64 | I64: S.US.MDLZ
C65: S.US.MAT | D65: =IFERROR(RTD("cqg.rtd", ,"ContractData",C65, "PerCentNetLastTrade",, "T")/100,"") -> 0.007773027594 | E65: 35 | F65: 35 | G65: S.US.MAT | H65: 65 | I65: =IFERROR(VLOOKUP(H65,$F$1:$G$107,2,FALSE),"") -> S.US.NCLH
C66: S.US.MCHP | D66: =IFERROR(RTD("cqg.rtd", ,"ContractData",C66, "PerCentNetLastTrade",, "T")/100,"") -> -0.003102961918 | E66: 80 | F66: =IFERROR(E66,"") -> 80 | G66: S.US.MCHP | H66: 66 | I66: S.US.PCLN
C67: S.US.MDLZ | D67: =IFERROR(RTD("cqg.rtd", ,"ContractData",C67, "PerCentNetLastTrade",, "T")/100,"") -> 0.002444987775 | E67: 64 | F67: 64 | G67: =C67 -> S.US.MDLZ | H67: =H66+1 -> 67 | I67: S.US.WBA
C68: S.US.MNST | D68: =IFERROR(RTD("cqg.rtd", ,"ContractData",C68, "PerCentNetLastTrade",, "T")/100,"") -> -0.01272438082 | E68: 97 | F68: 97 | G68: S.US.MNST | H68: 68 | I68: S.US.BIDU
C69: S.US.MSFT | D69: =IFERROR(RTD("cqg.rtd", ,"ContractData",C69, "PerCentNetLastTrade",, "T")/100,"") -> 0.01 | E69: 28 | F69: 28 | G69: S.US.MSFT | H69: 69 | I69: S.US.SYMC
C70: S.US.MU | D70: =IFERROR(RTD("cqg.rtd", ,"ContractData",C70, "PerCentNetLastTrade",, "T")/100,"") -> -0.004573804574 | E70: 87 | F70: 87 | G70: S.US.MU | H70: 70 | I70: S.US.EA
C71: S.US.MXIM | D71: =IFERROR(RTD("cqg.rtd", ,"ContractData",C71, "PerCentNetLastTrade",, "T")/100,"") -> -0.0011093854 | E71: 76 | F71: 76 | G71: S.US.MXIM | H71: 71 | I71: S.US.JBHT
C72: S.US.MYL | D72: =IFERROR(RTD("cqg.rtd", ,"ContractData",C72, "PerCentNetLastTrade",, "T")/100,"") -> 0.01119308064 | E72: 25 | F72: 25 | G72: S.US.MYL | H72: 72 | I72: S.US.HOLX
C73: S.US.NCLH | D73: =IFERROR(RTD("cqg.rtd", ,"ContractData",C73, "PerCentNetLastTrade",, "T")/100,"") -> 0.00230125523 | E73: 65 | F73: 65 | G73: S.US.NCLH | H73: 73 | I73: S.US.COST
C74: S.US.NFLX | D74: =IFERROR(RTD("cqg.rtd", ,"ContractData",C74, "PerCentNetLastTrade",, "T")/100,"") -> -0.01056483911 | E74: 95 | F74: 95 | G74: S.US.NFLX | H74: 74 | I74: S.US.VOD
C75: S.US.NTES | D75: =IFERROR(RTD("cqg.rtd", ,"ContractData",C75, "PerCentNetLastTrade",, "T")/100,"") -> 0.01355761013 | E75: 19 | F75: 19 | G75: S.US.NTES | H75: 75 | I75: S.US.HSIC
C76: S.US.NVDA | D76: =IFERROR(RTD("cqg.rtd", ,"ContractData",C76, "PerCentNetLastTrade",, "T")/100,"") -> -0.04444640028 | E76: 107 | F76: 107 | G76: S.US.NVDA | H76: 76 | I76: S.US.MXIM
C77: S.US.ORLY | D77: =IFERROR(RTD("cqg.rtd", ,"ContractData",C77, "PerCentNetLastTrade",, "T")/100,"") -> -0.01269315673 | E77: 98 | F77: 98 | G77: S.US.ORLY | H77: 77 | I77: S.US.AMGN
C78: S.US.PAYX | D78: =IFERROR(RTD("cqg.rtd", ,"ContractData",C78, "PerCentNetLastTrade",, "T")/100,"") -> 0.01009237085 | E78: 30 | F78: 30 | G78: S.US.PAYX | H78: 78 | I78: S.US.FB
C79: S.US.PCAR | D79: =IFERROR(RTD("cqg.rtd", ,"ContractData",C79, "PerCentNetLastTrade",, "T")/100,"") -> 0.01673214026 | E79: 12 | F79: 12 | G79: S.US.PCAR | H79: 79 | I79: S.US.SBUX
C80: S.US.PCLN | D80: =IFERROR(RTD("cqg.rtd", ,"ContractData",C80, "PerCentNetLastTrade",, "T")/100,"") -> 0.001864549866 | E80: 66 | F80: 66 | G80: S.US.PCLN | H80: 80 | I80: S.US.MCHP
C81: S.US.PYPL | D81: =IFERROR(RTD("cqg.rtd", ,"ContractData",C81, "PerCentNetLastTrade",, "T")/100,"") -> 0.01577131592 | E81: 13 | F81: 13 | G81: S.US.PYPL | H81: 81 | I81: S.US.FAST
C82: S.US.QCOM | D82: =IFERROR(RTD("cqg.rtd", ,"ContractData",C82, "PerCentNetLastTrade",, "T")/100,"") -> 0.01814814815 | E82: 11 | F82: 11 | G82: S.US.QCOM | H82: 82 | I82: S.US.VIAB
C83: S.US.QVCA | D83: =IFERROR(RTD("cqg.rtd", ,"ContractData",C83, "PerCentNetLastTrade",, "T")/100,"") -> -0.01604554865 | E83: 101 | F83: 101 | G83: S.US.QVCA | H83: 83 | I83: S.US.CHKP
C84: S.US.REGN | D84: =IFERROR(RTD("cqg.rtd", ,"ContractData",C84, "PerCentNetLastTrade",, "T")/100,"") -> 0.04318226026 | E84: 1 | F84: 1 | G84: S.US.REGN | H84: 84 | I84: S.US.VRTX
C85: S.US.ROST | D85: =IFERROR(RTD("cqg.rtd", ,"ContractData",C85, "PerCentNetLastTrade",, "T")/100,"") -> -0.01003052769 | E85: 94 | F85: 94 | G85: S.US.ROST | H85: 85 | I85: S.US.INCY
C86: S.US.SBAC | D86: =IFERROR(RTD("cqg.rtd", ,"ContractData",C86, "PerCentNetLastTrade",, "T")/100,"") -> 0.02346671653 | E86: 5 | F86: 5 | G86: S.US.SBAC | H86: 86 | I86: S.US.DLTR
C87: S.US.SBUX | D87: =IFERROR(RTD("cqg.rtd", ,"ContractData",C87, "PerCentNetLastTrade",, "T")/100,"") -> -0.002134471718 | E87: 79 | F87: 79 | G87: S.US.SBUX | H87: 87 | I87: S.US.MU
C88: S.US.SHPG | D88: =IFERROR(RTD("cqg.rtd", ,"ContractData",C88, "PerCentNetLastTrade",, "T")/100,"") -> -0.005302103362 | E88: 89 | F88: 89 | G88: S.US.SHPG | H88: 88 | I88: S.US.CHTR
C89: S.US.SIRI | D89: =IFERROR(RTD("cqg.rtd", ,"ContractData",C89, "PerCentNetLastTrade",, "T")/100,"") -> 0.00422832981 | E89: 53 | F89: 53 | G89: S.US.SIRI | H89: 89 | I89: S.US.SHPG
C90: S.US.STX | D90: =IFERROR(RTD("cqg.rtd", ,"ContractData",C90, "PerCentNetLastTrade",, "T")/100,"") -> 0.02841153681 | E90: 3 | F90: 3 | G90: S.US.STX | H90: 90 | I90: S.US.FOXA
C91: S.US.SWKS | D91: =IFERROR(RTD("cqg.rtd", ,"ContractData",C91, "PerCentNetLastTrade",, "T")/100,"") -> 0.005747749702 | E91: 45 | F91: 45 | G91: S.US.SWKS | H91: 91 | I91: S.US.FOX
C92: S.US.SYMC | D92: =IFERROR(RTD("cqg.rtd", ,"ContractData",C92, "PerCentNetLastTrade",, "T")/100,"") -> 0.00172294969 | E92: 69 | F92: 69 | G92: S.US.SYMC | H92: 92 | I92: S.US.ULTA
C93: S.US.TMUS | D93: =IFERROR(RTD("cqg.rtd", ,"ContractData",C93, "PerCentNetLastTrade",, "T")/100,"") -> -0.02628626382 | E93: 105 | F93: 105 | G93: S.US.TMUS | H93: 93 | I93: S.US.AKAM
C94: S.US.TRIP | D94: =IFERROR(RTD("cqg.rtd", ,"ContractData",C94, "PerCentNetLastTrade",, "T")/100,"") -> -0.01096153846 | E94: 96 | F94: 96 | G94: S.US.TRIP | H94: 94 | I94: S.US.ROST
C95: S.US.TSCO | D95: =IFERROR(RTD("cqg.rtd", ,"ContractData",C95, "PerCentNetLastTrade",, "T")/100,"") -> -0.01481481481 | E95: 100 | F95: 100 | G95: S.US.TSCO | H95: 95 | I95: S.US.NFLX
C96: S.US.TSLA | D96: =IFERROR(RTD("cqg.rtd", ,"ContractData",C96, "PerCentNetLastTrade",, "T")/100,"") -> 0.04208297738 | E96: 2 | F96: 2 | G96: S.US.TSLA | H96: 96 | I96: S.US.TRIP
C97: S.US.TXN | D97: =IFERROR(RTD("cqg.rtd", ,"ContractData",C97, "PerCentNetLastTrade",, "T")/100,"") -> 0.004922831293 | E97: 51 | F97: 51 | G97: S.US.TXN | H97: 97 | I97: =IFERROR(VLOOKUP(H97,$F$1:$G$107,2,FALSE),"") -> S.US.MNST
C98: S.US.ULTA | D98: =IFERROR(RTD("cqg.rtd", ,"ContractData",C98, "PerCentNetLastTrade",, "T")/100,"") -> -0.006114734658 | E98: 92 | F98: 92 | G98: S.US.ULTA | H98: 98 | I98: S.US.ORLY
C99: S.US.VIAB | D99: =IFERROR(RTD("cqg.rtd", ,"ContractData",C99, "PerCentNetLastTrade",, "T")/100,"") -> -0.00412371134 | E99: 82 | F99: 82 | G99: S.US.VIAB | H99: 99 | I99: S.US.LVNTA
C100: S.US.VOD | D100: =IFERROR(RTD("cqg.rtd", ,"ContractData",C100, "PerCentNetLastTrade",, "T")/100,"") -> -0.0004 | E100: 74 | F100: 74 | G100: S.US.VOD | H100: 100 | I100: S.US.TSCO
C101: S.US.VRSK | D101: =IFERROR(RTD("cqg.rtd", ,"ContractData",C101, "PerCentNetLastTrade",, "T")/100,"") -> 0.005560814009 | E101: 48 | F101: 48 | G101: S.US.VRSK | H101: 101 | I101: S.US.QVCA
C102: S.US.VRTX | D102: =IFERROR(RTD("cqg.rtd", ,"ContractData",C102, "PerCentNetLastTrade",, "T")/100,"") -> -0.003970504821 | E102: 84 | F102: 84 | G102: S.US.VRTX | H102: 102 | I102: S.US.LILAK
C103: S.US.WBA | D103: =IFERROR(RTD("cqg.rtd", ,"ContractData",C103, "PerCentNetLastTrade",, "T")/100,"") -> 0.001680470532 | E103: 67 | F103: 67 | G103: S.US.WBA | H103: 103 | I103: S.US.LILA
C104: S.US.WDC | D104: =IFERROR(RTD("cqg.rtd", ,"ContractData",C104, "PerCentNetLastTrade",, "T")/100,"") -> 0.01473629783 | E104: 18 | F104: 18 | G104: S.US.WDC | H104: 104 | I104: S.US.EXPE
C105: S.US.XLNX | D105: =IFERROR(RTD("cqg.rtd", ,"ContractData",C105, "PerCentNetLastTrade",, "T")/100,"") -> 0.02671953112 | E105: 4 | F105: 4 | G105: S.US.XLNX | H105: 105 | I105: S.US.TMUS
C106: S.US.XRAY | D106: =IFERROR(RTD("cqg.rtd", ,"ContractData",C106, "PerCentNetLastTrade",, "T")/100,"") -> 0.008049323514 | E106: 33 | F106: 33 | G106: S.US.XRAY | H106: 106 | I106: S.US.ATVI
C107: S.US.YHOO | D107: =IFERROR(RTD("cqg.rtd", ,"ContractData",C107, "PerCentNetLastTrade",, "T")/100,"") -> 0.009327115256 | E107: 31 | F107: =IFERROR(E107,"") -> 31 | G107: =C107 -> S.US.YHOO | H107: 107

Sheet S&P500 (hidden)
C1: S.US.A | D1: =IFERROR(RTD("cqg.rtd", ,"ContractData",C1, "PerCentNetLastTrade",, "T")/100,"") -> 0.003971405878 | E1: 265 | F1: =IFERROR(E1,"") -> 265 | G1: =C1 -> S.US.A | H1: 1 | I1: =IFERROR(VLOOKUP(H1,$F$1:$G$506,2,FALSE),"") -> S.US.GT | J1: =IFERROR(RTD("cqg.rtd", ,"ContractData",I1, "PerCentNetLastTrade",, "T")/100,"") -> 0.05753262159 | L1: =MIN(D1:D506) -> -0.04444640028 | M1: =VLOOKUP(L1,D1:G506,3,FALSE) -> 506 | N1: =VLOOKUP(M1,$H$1:$I$506,2,FALSE) -> S.US.NVDA | O1: =IFERROR(RTD("cqg.rtd", ,"ContractData",N1, "PerCentNetLastTrade",, "T")/100,"") -> -0.04444640028
C2: S.US.AAL | D2: =IFERROR(RTD("cqg.rtd", ,"ContractData",C2, "PerCentNetLastTrade",, "T")/100,"") -> 0.02325080732 | E2: 13 | F2: =IFERROR(E2,"") -> 13 | G2: =C2 -> S.US.AAL | H2: =H1+1 -> 2 | I2: S.US.NUE | J2: =IFERROR(RTD("cqg.rtd", ,"ContractData",I2, "PerCentNetLastTrade",, "T")/100,"") -> 0.04558124283 | M2: =M1-1 -> 505 | N2: S.US.ATVI | O2: =IFERROR(RTD("cqg.rtd", ,"ContractData",N2, "PerCentNetLastTrade",, "T")/100,"") -> -0.03154774508
C3: S.US.AAP | D3: =IFERROR(RTD("cqg.rtd", ,"ContractData",C3, "PerCentNetLastTrade",, "T")/100,"") -> -0.009814081073 | E3: 465 | F3: 465 | G3: S.US.AAP | H3: =H2+1 -> 3 | I3: S.US.REGN | J3: =IFERROR(RTD("cqg.rtd", ,"ContractData",I3, "PerCentNetLastTrade",, "T")/100,"") -> 0.04318226026 | M3: =M2-1 -> 504 | N3: S.US.EQT | O3: =IFERROR(RTD("cqg.rtd", ,"ContractData",N3, "PerCentNetLastTrade",, "T")/100,"") -> -0.02735042735
C4: S.US.AAPL | D4: =IFERROR(RTD("cqg.rtd", ,"ContractData",C4, "PerCentNetLastTrade",, "T")/100,"") -> 0.009990917348 | E4: 119 | F4: 119 | G4: S.US.AAPL | H4: 4 | I4: S.US.CCI | J4: =IFERROR(RTD("cqg.rtd", ,"ContractData",I4, "PerCentNetLastTrade",, "T")/100,"") -> 0.02992233897 | M4: 503 | N4: S.US.GPS | O4: =IFERROR(RTD("cqg.rtd", ,"ContractData",N4, "PerCentNetLastTrade",, "T")/100,"") -> -0.02750410509
C5: S.US.ABBV | D5: =IFERROR(RTD("cqg.rtd", ,"ContractData",C5, "PerCentNetLastTrade",, "T")/100,"") -> 0.001158556769 | E5: 345 | F5: 345 | G5: S.US.ABBV | H5: 5 | I5: S.US.STX | J5: =IFERROR(RTD("cqg.rtd", ,"ContractData",I5, "PerCentNetLastTrade",, "T")/100,"") -> 0.02841153681 | M5: 502 | N5: S.US.EXPE | O5: =IFERROR(RTD("cqg.rtd", ,"ContractData",N5, "PerCentNetLastTrade",, "T")/100,"") -> -0.02609050143
C6: S.US.ABC | D6: =IFERROR(RTD("cqg.rtd", ,"ContractData",C6, "PerCentNetLastTrade",, "T")/100,"") -> -0.007787649446 | E6: 458 | F6: 458 | G6: S.US.ABC | H6: 6 | I6: S.US.XLNX | J6: =IFERROR(RTD("cqg.rtd", ,"ContractData",I6, "PerCentNetLastTrade",, "T")/100,"") -> 0.02671953112 | M6: 501 | N6: S.US.UA | O6: =IFERROR(RTD("cqg.rtd", ,"ContractData",N6, "PerCentNetLastTrade",, "T")/100,"") -> -0.02153361345
C7: S.US.ABT | D7: =IFERROR(RTD("cqg.rtd", ,"ContractData",C7, "PerCentNetLastTrade",, "T")/100,"") -> 0.01006083294 | E7: 125 | F7: 125 | G7: S.US.ABT | H7: 7 | I7: S.US.MOS | J7: =IFERROR(RTD("cqg.rtd", ,"ContractData",I7, "PerCentNetLastTrade",, "T")/100,"") -> 0.02586731589 | M7: 500 | N7: S.US.SWN | O7: =IFERROR(RTD("cqg.rtd", ,"ContractData",N7, "PerCentNetLastTrade",, "T")/100,"") -> -0.01886792453
C8: S.US.ACN | D8: =IFERROR(RTD("cqg.rtd", ,"ContractData",C8, "PerCentNetLastTrade",, "T")/100,"") -> 0.008588435374 | E8: 152 | F8: 152 | G8: S.US.ACN | H8: 8 | I8: S.US.CF | J8: =IFERROR(RTD("cqg.rtd", ,"ContractData",I8, "PerCentNetLastTrade",, "T")/100,"") -> 0.025390625 | M8: 499 | N8: S.US.HBI | O8: =IFERROR(RTD("cqg.rtd", ,"ContractData",N8, "PerCentNetLastTrade",, "T")/100,"") -> -0.01870503597
C9: S.US.ADBE | D9: =IFERROR(RTD("cqg.rtd", ,"ContractData",C9, "PerCentNetLastTrade",, "T")/100,"") -> 0.006675224647 | E9: 186 | F9: 186 | G9: S.US.ADBE | H9: 9 | I9: S.US.ICE | J9: =IFERROR(RTD("cqg.rtd", ,"ContractData",I9, "PerCentNetLastTrade",, "T")/100,"") -> 0.02463139636 | M9: 498 | N9: S.US.T | O9: =IFERROR(RTD("cqg.rtd", ,"ContractData",N9, "PerCentNetLastTrade",, "T")/100,"") -> -0.01884968584
C10: S.US.ADI | D10: =IFERROR(RTD("cqg.rtd", ,"ContractData",C10, "PerCentNetLastTrade",, "T")/100,"") -> 0.01881615053 | E10: 28 | F10: 28 | G10: S.US.ADI | H10: 10 | I10: S.US.C | J10: =IFERROR(RTD("cqg.rtd", ,"ContractData",I10, "PerCentNetLastTrade",, "T")/100,"") -> 0.02481346521 | M10: 497 | N10: S.US.KORS | O10: =IFERROR(RTD("cqg.rtd", ,"ContractData",N10, "PerCentNetLastTrade",, "T")/100,"") -> -0.01745700886
C11: S.US.ADM | D11: =IFERROR(RTD("cqg.rtd", ,"ContractData",C11, "PerCentNetLastTrade",, "T")/100,"") -> -0.002966005019 | E11: 411 | F11: 411 | G11: S.US.ADM | H11: 11 | I11: S.US.CAT
C12: S.US.ADP | D12: =IFERROR(RTD("cqg.rtd", ,"ContractData",C12, "PerCentNetLastTrade",, "T")/100,"") -> 0.007053772235 | E12: 184 | F12: 184 | G12: S.US.ADP | H12: 12 | I12: S.US.DLPH
C13: S.US.ADS | D13: =IFERROR(RTD("cqg.rtd", ,"ContractData",C13, "PerCentNetLastTrade",, "T")/100,"") -> 0.003920186759 | E13: 270 | F13: 270 | G13: S.US.ADS | H13: 13 | I13: S.US.AAL
C14: S.US.ADSK | D14: =IFERROR(RTD("cqg.rtd", ,"ContractData",C14, "PerCentNetLastTrade",, "T")/100,"") -> 0.01609996396 | E14: 49 | F14: 49 | G14: S.US.ADSK | H14: 14 | I14: S.US.SWK
C15: S.US.AEE | D15: =IFERROR(RTD("cqg.rtd", ,"ContractData",C15, "PerCentNetLastTrade",, "T")/100,"") -> 0.001322501417 | E15: 342 | F15: 342 | G15: S.US.AEE | H15: 15 | I15: S.US.HPQ
C16: S.US.AEP | D16: =IFERROR(RTD("cqg.rtd", ,"ContractData",C16, "PerCentNetLastTrade",, "T")/100,"") -> -0.002345582486 | E16: 407 | F16: 407 | G16: S.US.AEP | H16: 16 | I16: S.US.CME
C17: S.US.AES | D17: =IFERROR(RTD("cqg.rtd", ,"ContractData",C17, "PerCentNetLastTrade",, "T")/100,"") -> 0.004306632214 | E17: 260 | F17: 260 | G17: S.US.AES | H17: 17 | I17: S.US.SCHW
C18: S.US.AET | D18: =IFERROR(RTD("cqg.rtd", ,"ContractData",C18, "PerCentNetLastTrade",, "T")/100,"") -> 0.003862272989 | E18: 274 | F18: 274 | G18: S.US.AET | H18: 18 | I18: S.US.PFG
C19: S.US.AFL | D19: =IFERROR(RTD("cqg.rtd", ,"ContractData",C19, "PerCentNetLastTrade",, "T")/100,"") -> 0.01443269506 | E19: 67 | F19: 67 | G19: S.US.AFL | H19: 19 | I19: S.US.IPG
C20: S.US.AGN | D20: =IFERROR(RTD("cqg.rtd", ,"ContractData",C20, "PerCentNetLastTrade",, "T")/100,"") -> 0.002232505277 | E20: 305 | F20: 305 | G20: S.US.AGN | H20: 20 | I20: S.US.LUV
C21: S.US.AIG | D21: =IFERROR(RTD("cqg.rtd", ,"ContractData",C21, "PerCentNetLastTrade",, "T")/100,"") -> 0.008230452675 | E21: 157 | F21: 157 | G21: S.US.AIG | H21: 21 | I21: S.US.DISCA
C22: S.US.AIV | D22: =IFERROR(RTD("cqg.rtd", ,"ContractData",C22, "PerCentNetLastTrade",, "T")/100,"") -> -0.004374453193 | E22: 430 | F22: 430 | G22: S.US.AIV | H22: 22 | I22: S.US.AMT
C23: S.US.AIZ | D23: =IFERROR(RTD("cqg.rtd", ,"ContractData",C23, "PerCentNetLastTrade",, "T")/100,"") -> 0.01549553427 | E23: 54 | F23: 54 | G23: S.US.AIZ | H23: 23 | I23: S.US.ETFC
C24: S.US.AJG | D24: =IFERROR(RTD("cqg.rtd", ,"ContractData",C24, "PerCentNetLastTrade",, "T")/100,"") -> 0.008156606852 | E24: 163 | F24: 163 | G24: S.US.AJG | H24: 24 | I24: S.US.SRCL
C25: S.US.AKAM | D25: =IFERROR(RTD("cqg.rtd", ,"ContractData",C25, "PerCentNetLastTrade",, "T")/100,"") -> -0.006567630962 | E25: 449 | F25: 449 | G25: S.US.AKAM | H25: 25 | I25: S.US.UAL
C26: S.US.ALB | D26: =IFERROR(RTD("cqg.rtd", ,"ContractData",C26, "PerCentNetLastTrade",, "T")/100,"") -> 0.01205976521 | E26: 94 | F26: 94 | G26: S.US.ALB | H26: 26 | I26: S.US.GILD
C27: S.US.ALK | D27: =IFERROR(RTD("cqg.rtd", ,"ContractData",C27, "PerCentNetLastTrade",, "T")/100,"") -> 0.008012326656 | E27: 164 | F27: 164 | G27: S.US.ALK | H27: 27 | I27: S.US.CERN
C28: S.US.ALL | D28: =IFERROR(RTD("cqg.rtd", ,"ContractData",C28, "PerCentNetLastTrade",, "T")/100,"") -> 0.009381338742 | E28: 135 | F28: 135 | G28: S.US.ALL | H28: 28 | I28: S.US.ADI
C29: S.US.ALLE | D29: =IFERROR(RTD("cqg.rtd", ,"ContractData",C29, "PerCentNetLastTrade",, "T")/100,"") -> -0.005839822024 | E29: 437 | F29: 437 | G29: S.US.ALLE | H29: 29 | I29: S.US.M
C30: S.US.ALXN | D30: =IFERROR(RTD("cqg.rtd", ,"ContractData",C30, "PerCentNetLastTrade",, "T")/100,"") -> 0.009011145364 | E30: 144 | F30: 144 | G30: S.US.ALXN | H30: 30 | I30: S.US.QCOM
C31: S.US.AMAT | D31: =IFERROR(RTD("cqg.rtd", ,"ContractData",C31, "PerCentNetLastTrade",, "T")/100,"") -> 0.003680634202 | E31: 280 | F31: 280 | G31: S.US.AMAT | H31: 31 | I31: S.US.FMC
C32: S.US.AME | D32: =IFERROR(RTD("cqg.rtd", ,"ContractData",C32, "PerCentNetLastTrade",, "T")/100,"") -> 0.003550074738 | E32: 293 | F32: 293 | G32: S.US.AME | H32: 32 | I32: S.US.UNM
C33: S.US.AMG | D33: =IFERROR(RTD("cqg.rtd", ,"ContractData",C33, "PerCentNetLastTrade",, "T")/100,"") -> -0.0008352225271 | E33: 375 | F33: 375 | G33: S.US.AMG | H33: 33 | I33: S.US.WMB
C34: S.US.AMGN | D34: =IFERROR(RTD("cqg.rtd", ,"ContractData",C34, "PerCentNetLastTrade",, "T")/100,"") -> -0.0008934421347 | E34: 379 | F34: 379 | G34: S.US.AMGN | H34: 34 | I34: S.US.WY
C35: S.US.AMP | D35: =IFERROR(RTD("cqg.rtd", ,"ContractData",C35, "PerCentNetLastTrade",, "T")/100,"") -> 0.01641058644 | E35: 44 | F35: 44 | G35: S.US.AMP | H35: 35 | I35: S.US.ETN
C36: S.US.AMT | D36: =IFERROR(RTD("cqg.rtd", ,"ContractData",C36, "PerCentNetLastTrade",, "T")/100,"") -> 0.02028628306 | E36: 22 | F36: 22 | G36: S.US.AMT | H36: 36 | I36: S.US.FLR
C37: S.US.AMZN | D37: =IFERROR(RTD("cqg.rtd", ,"ContractData",C37, "PerCentNetLastTrade",, "T")/100,"") -> 0.0118434728 | E37: 98 | F37: 98 | G37: S.US.AMZN | H37: 37 | I37: S.US.IFF
C38: S.US.AN | D38: =IFERROR(RTD("cqg.rtd", ,"ContractData",C38, "PerCentNetLastTrade",, "T")/100,"") -> -0.0142021721 | E38: 487 | F38: 487 | G38: S.US.AN | H38: 38 | I38: S.US.STT
C39: S.US.ANTM | D39: =IFERROR(RTD("cqg.rtd", ,"ContractData",C39, "PerCentNetLastTrade",, "T")/100,"") -> 0.008501724988 | E39: 156 | F39: 156 | G39: S.US.ANTM | H39: 39 | I39: S.US.GS
C40: S.US.AON | D40: =IFERROR(RTD("cqg.rtd", ,"ContractData",C40, "PerCentNetLastTrade",, "T")/100,"") -> 0.002681892897 | E40: 306 | F40: 306 | G40: S.US.AON | H40: 40 | I40: S.US.BEN
C41: S.US.APA | D41: =IFERROR(RTD("cqg.rtd", ,"ContractData",C41, "PerCentNetLastTrade",, "T")/100,"") -> -0.001742767515 | E41: 390 | F41: 390 | G41: S.US.APA | H41: 41 | I41: S.US.DAL
C42: S.US.APC | D42: =IFERROR(RTD("cqg.rtd", ,"ContractData",C42, "PerCentNetLastTrade",, "T")/100,"") -> -0.01571964234 | E42: 491 | F42: 491 | G42: S.US.APC | H42: 42 | I42: S.US.PCAR
C43: S.US.APD | D43: =IFERROR(RTD("cqg.rtd", ,"ContractData",C43, "PerCentNetLastTrade",, "T")/100,"") -> 0.00299721687 | E43: 301 | F43: 301 | G43: S.US.APD | H43: 43 | I43: S.US.PYPL
C44: S.US.APH | D44: =IFERROR(RTD("cqg.rtd", ,"ContractData",C44, "PerCentNetLastTrade",, "T")/100,"") -> 0.003780718336 | E44: 275 | F44: 275 | G44: S.US.APH | H44: 44 | I44: S.US.AMP
C45: S.US.ARNC | D45: =IFERROR(RTD("cqg.rtd", ,"ContractData",C45, "PerCentNetLastTrade",, "T")/100,"") -> 0.001012829169 | E45: 331 | F45: 331 | G45: S.US.ARNC | H45: 45 | I45: S.US.BIIB
C46: S.US.ATVI | D46: =IFERROR(RTD("cqg.rtd", ,"ContractData",C46, "PerCentNetLastTrade",, "T")/100,"") -> -0.03154774508 | E46: 505 | F46: 505 | G46: S.US.ATVI | H46: 46 | I46: S.US.DISCK
C47: S.US.AVB | D47: =IFERROR(RTD("cqg.rtd", ,"ContractData",C47, "PerCentNetLastTrade",, "T")/100,"") -> -0.006782676377 | E47: 452 | F47: 452 | G47: S.US.AVB | H47: 47 | I47: S.US.HBAN
C48: S.US.AVGO | D48: =IFERROR(RTD("cqg.rtd", ,"ContractData",C48, "PerCentNetLastTrade",, "T")/100,"") -> 0.004914363566 | E48: 239 | F48: 239 | G48: S.US.AVGO | H48: 48 | I48: S.US.MS
C49: S.US.AVY | D49: =IFERROR(RTD("cqg.rtd", ,"ContractData",C49, "PerCentNetLastTrade",, "T")/100,"") -> 0.002018418065 | E49: 322 | F49: 322 | G49: S.US.AVY | H49: 49 | I49: S.US.ADSK
C50: S.US.AWK | D50: =IFERROR(RTD("cqg.rtd", ,"ContractData",C50, "PerCentNetLastTrade",, "T")/100,"") -> -0.003811598149 | E50: 422 | F50: 422 | G50: S.US.AWK | H50: 50 | I50: S.US.BAC
C51: S.US.AXP | D51: =IFERROR(RTD("cqg.rtd", ,"ContractData",C51, "PerCentNetLastTrade",, "T")/100,"") -> 0.00624362895 | E51: 205 | F51: 205 | G51: S.US.AXP | H51: 51 | I51: S.US.PH
C52: S.US.AYI | D52: =IFERROR(RTD("cqg.rtd", ,"ContractData",C52, "PerCentNetLastTrade",, "T")/100,"") -> 0.01126508296 | E52: 104 | F52: 104 | G52: S.US.AYI | H52: 52 | I52: S.US.DNB
C53: S.US.AZO | D53: =IFERROR(RTD("cqg.rtd", ,"ContractData",C53, "PerCentNetLastTrade",, "T")/100,"") -> -0.005859717815 | E53: 441 | F53: 441 | G53: S.US.AZO | H53: 53 | I53: S.US.FSLR
C54: S.US.BA | D54: =IFERROR(RTD("cqg.rtd", ,"ContractData",C54, "PerCentNetLastTrade",, "T")/100,"") -> 0.01112915839 | E54: 108 | F54: 108 | G54: S.US.BA | H54: 54 | I54: S.US.AIZ
C55: S.US.BAC | D55: =IFERROR(RTD("cqg.rtd", ,"ContractData",C55, "PerCentNetLastTrade",, "T")/100,"") -> 0.01603119584 | E55: 50 | F55: 50 | G55: S.US.BAC | H55: 55 | I55: S.US.VTR
C56: S.US.BAX | D56: =IFERROR(RTD("cqg.rtd", ,"ContractData",C56, "PerCentNetLastTrade",, "T")/100,"") -> 0.004897959184 | E56: 247 | F56: 247 | G56: S.US.BAX | H56: 56 | I56: S.US.LOGM
C57: S.US.BBBY | D57: =IFERROR(RTD("cqg.rtd", ,"ContractData",C57, "PerCentNetLastTrade",, "T")/100,"") -> -0.001242236025 | E57: 394 | F57: 394 | G57: S.US.BBBY | H57: 57 | I57: S.US.CSCO
C58: S.US.BBT | D58: =IFERROR(RTD("cqg.rtd", ,"ContractData",C58, "PerCentNetLastTrade",, "T")/100,"") -> 0.009435985417 | E58: 138 | F58: 138 | G58: S.US.BBT | H58: 58 | I58: S.US.CMI
C59: S.US.BBY | D59: =IFERROR(RTD("cqg.rtd", ,"ContractData",C59, "PerCentNetLastTrade",, "T")/100,"") -> -0.01320501343 | E59: 485 | F59: 485 | G59: S.US.BBY | H59: 59 | I59: S.US.CFG
C60: S.US.BCR | D60: =IFERROR(RTD("cqg.rtd", ,"ContractData",C60, "PerCentNetLastTrade",, "T")/100,"") -> 0.0009571767448 | E60: 346 | F60: 346 | G60: S.US.BCR | H60: 60 | I60: S.US.HON
C61: S.US.BDX | D61: =IFERROR(RTD("cqg.rtd", ,"ContractData",C61, "PerCentNetLastTrade",, "T")/100,"") -> 0.003089366961 | E61: 295 | F61: 295 | G61: S.US.BDX | H61: 61 | I61: S.US.WDC
C62: S.US.BEN | D62: =IFERROR(RTD("cqg.rtd", ,"ContractData",C62, "PerCentNetLastTrade",, "T")/100,"") -> 0.01687866928 | E62: 40 | F62: 40 | G62: S.US.BEN | H62: 62 | I62: S.US.NDAQ
C63: S.US.BFB | D63: =IFERROR(RTD("cqg.rtd", ,"ContractData",C63, "PerCentNetLastTrade",, "T")/100,"") -> -0.003407155026 | E63: 418 | F63: 418 | G63: S.US.BFB | H63: 63 | I63: S.US.NLSN
C64: S.US.BHI | D64: =IFERROR(RTD("cqg.rtd", ,"ContractData",C64, "PerCentNetLastTrade",, "T")/100,"") -> -0.002452984464 | E64: 406 | F64: 406 | G64: S.US.BHI | H64: 64 | I64: S.US.SYF
C65: S.US.BIIB | D65: =IFERROR(RTD("cqg.rtd", ,"ContractData",C65, "PerCentNetLastTrade",, "T")/100,"") -> 0.01612316203 | E65: 45 | F65: 45 | G65: S.US.BIIB | H65: 65 | I65: =IFERROR(VLOOKUP(H65,$F$1:$G$506,2,FALSE),"") -> S.US.CMA
C66: S.US.BK | D66: =IFERROR(RTD("cqg.rtd", ,"ContractData",C66, "PerCentNetLastTrade",, "T")/100,"") -> 0.01426690079 | E66: 66 | F66: =IFERROR(E66,"") -> 66 | G66: =C66 -> S.US.BK | H66: 66 | I66: S.US.BK
C67: S.US.BLK | D67: =IFERROR(RTD("cqg.rtd", ,"ContractData",C67, "PerCentNetLastTrade",, "T")/100,"") -> 0.009349943848 | E67: 142 | F67: 142 | G67: S.US.BLK | H67: =H66+1 -> 67 | I67: S.US.AFL
C68: S.US.BLL | D68: =IFERROR(RTD("cqg.rtd", ,"ContractData",C68, "PerCentNetLastTrade",, "T")/100,"") -> -0.0056504776 | E68: 438 | F68: 438 | G68: S.US.BLL | H68: 68 | I68: S.US.ZION
C69: S.US.BMY | D69: =IFERROR(RTD("cqg.rtd", ,"ContractData",C69, "PerCentNetLastTrade",, "T")/100,"") -> 0.007744433688 | E69: 168 | F69: 168 | G69: S.US.BMY | H69: 69 | I69: S.US.CBG
C70: S.US.BRKB | D70: =IFERROR(RTD("cqg.rtd", ,"ContractData",C70, "PerCentNetLastTrade",, "T")/100,"") -> 0.0121334065 | E70: 92 | F70: 92 | G70: S.US.BRKB | H70: 70 | I70: S.US.EMR
C71: S.US.BSX | D71: =IFERROR(RTD("cqg.rtd", ,"ContractData",C71, "PerCentNetLastTrade",, "T")/100,"") -> 0.003968253968 | E71: 273 | F71: 273 | G71: S.US.BSX | H71: 71 | I71: S.US.RF
C72: S.US.BWA | D72: =IFERROR(RTD("cqg.rtd", ,"ContractData",C72, "PerCentNetLastTrade",, "T")/100,"") -> 0.00240211386 | E72: 317 | F72: 317 | G72: S.US.BWA | H72: 72 | I72: S.US.PXD
C73: S.US.BXP | D73: =IFERROR(RTD("cqg.rtd", ,"ContractData",C73, "PerCentNetLastTrade",, "T")/100,"") -> 0.005074626866 | E73: 234 | F73: 234 | G73: S.US.BXP | H73: 73 | I73: S.US.LLL
C74: S.US.C | D74: =IFERROR(RTD("cqg.rtd", ,"ContractData",C74, "PerCentNetLastTrade",, "T")/100,"") -> 0.02481346521 | E74: 10 | F74: 10 | G74: S.US.C | H74: 74 | I74: S.US.JPM
C75: S.US.CA | D75: =IFERROR(RTD("cqg.rtd", ,"ContractData",C75, "PerCentNetLastTrade",, "T")/100,"") -> 0.00283286119 | E75: 307 | F75: 307 | G75: S.US.CA | H75: 75 | I75: S.US.TMK
C76: S.US.CAG | D76: =IFERROR(RTD("cqg.rtd", ,"ContractData",C76, "PerCentNetLastTrade",, "T")/100,"") -> -0.001506024096 | E76: 395 | F76: 395 | G76: S.US.CAG | H76: 76 | I76: S.US.DFS
C77: S.US.CAH | D77: =IFERROR(RTD("cqg.rtd", ,"ContractData",C77, "PerCentNetLastTrade",, "T")/100,"") -> 0.008785529716 | E77: 149 | F77: 149 | G77: S.US.CAH | H77: 77 | I77: S.US.MET
C78: S.US.CAT | D78: =IFERROR(RTD("cqg.rtd", ,"ContractData",C78, "PerCentNetLastTrade",, "T")/100,"") -> 0.02346589139 | E78: 11 | F78: 11 | G78: S.US.CAT | H78: 78 | I78: S.US.CBS
C79: S.US.CB | D79: =IFERROR(RTD("cqg.rtd", ,"ContractData",C79, "PerCentNetLastTrade",, "T")/100,"") -> 0.008586923772 | E79: 154 | F79: 154 | G79: S.US.CB | H79: 79 | I79: S.US.KEY
C80: S.US.CBG | D80: =IFERROR(RTD("cqg.rtd", ,"ContractData",C80, "PerCentNetLastTrade",, "T")/100,"") -> 0.01411764706 | E80: 69 | F80: 69 | G80: S.US.CBG | H80: 80 | I80: S.US.PNR
C81: S.US.CBS | D81: =IFERROR(RTD("cqg.rtd", ,"ContractData",C81, "PerCentNetLastTrade",, "T")/100,"") -> 0.01304347826 | E81: 78 | F81: 78 | G81: S.US.CBS | H81: 81 | I81: S.US.RTN
C82: S.US.CCI | D82: =IFERROR(RTD("cqg.rtd", ,"ContractData",C82, "PerCentNetLastTrade",, "T")/100,"") -> 0.02992233897 | E82: 4 | F82: 4 | G82: S.US.CCI | H82: 82 | I82: S.US.LUK
C83: S.US.CCL | D83: =IFERROR(RTD("cqg.rtd", ,"ContractData",C83, "PerCentNetLastTrade",, "T")/100,"") -> 0.005688888889 | E83: 215 | F83: 215 | G83: S.US.CCL | H83: 83 | I83: S.US.NOC
C84: S.US.CELG | D84: =IFERROR(RTD("cqg.rtd", ,"ContractData",C84, "PerCentNetLastTrade",, "T")/100,"") -> 0.007179309748 | E84: 187 | F84: 187 | G84: S.US.CELG | H84: 84 | I84: S.US.NTRS
C85: S.US.CERN | D85: =IFERROR(RTD("cqg.rtd", ,"ContractData",C85, "PerCentNetLastTrade",, "T")/100,"") -> 0.0186407767 | E85: 27 | F85: 27 | G85: S.US.CERN | H85: 85 | I85: S.US.JNPR
C86: S.US.CF | D86: =IFERROR(RTD("cqg.rtd", ,"ContractData",C86, "PerCentNetLastTrade",, "T")/100,"") -> 0.025390625 | E86: 8 | F86: 8 | G86: S.US.CF | H86: 86 | I86: S.US.HST
C87: S.US.CFG | D87: =IFERROR(RTD("cqg.rtd", ,"ContractData",C87, "PerCentNetLastTrade",, "T")/100,"") -> 0.01482701812 | E87: 59 | F87: 59 | G87: S.US.CFG | H87: 87 | I87: S.US.GD
C88: S.US.CHD | D88: =IFERROR(RTD("cqg.rtd", ,"ContractData",C88, "PerCentNetLastTrade",, "T")/100,"") -> 0.003731343284 | E88: 290 | F88: 290 | G88: S.US.CHD | H88: 88 | I88: S.US.SNA
C89: S.US.CHK | D89: =IFERROR(RTD("cqg.rtd", ,"ContractData",C89, "PerCentNetLastTrade",, "T")/100,"") -> -0.006269592476 | E89: 447 | F89: 447 | G89: S.US.CHK | H89: 89 | I89: S.US.GRMN
C90: S.US.CHRW | D90: =IFERROR(RTD("cqg.rtd", ,"ContractData",C90, "PerCentNetLastTrade",, "T")/100,"") -> 0.007967607106 | E90: 171 | F90: 171 | G90: S.US.CHRW | H90: 90 | I90: S.US.UHS
C91: S.US.CHTR | D91: =IFERROR(RTD("cqg.rtd", ,"ContractData",C91, "PerCentNetLastTrade",, "T")/100,"") -> -0.005207049544 | E91: 435 | F91: 435 | G91: S.US.CHTR | H91: 91 | I91: S.US.INTC
C92: S.US.CI | D92: =IFERROR(RTD("cqg.rtd", ,"ContractData",C92, "PerCentNetLastTrade",, "T")/100,"") -> 0.002610786671 | E92: 320 | F92: 320 | G92: S.US.CI | H92: 92 | I92: S.US.BRKB
C93: S.US.CINF | D93: =IFERROR(RTD("cqg.rtd", ,"ContractData",C93, "PerCentNetLastTrade",, "T")/100,"") -> 0.01055446102 | E93: 113 | F93: 113 | G93: S.US.CINF | H93: 93 | I93: S.US.HRS
C94: S.US.CL | D94: =IFERROR(RTD("cqg.rtd", ,"ContractData",C94, "PerCentNetLastTrade",, "T")/100,"") -> 0.001033668045 | E94: 353 | F94: 353 | G94: S.US.CL | H94: 94 | I94: S.US.ALB
C95: S.US.CLX | D95: =IFERROR(RTD("cqg.rtd", ,"ContractData",C95, "PerCentNetLastTrade",, "T")/100,"") -> 0.001495709675 | E95: 334 | F95: 334 | G95: S.US.CLX | H95: 95 | I95: S.US.FCX
C96: S.US.CMA | D96: =IFERROR(RTD("cqg.rtd", ,"ContractData",C96, "PerCentNetLastTrade",, "T")/100,"") -> 0.01463980287 | E96: 65 | F96: 65 | G96: S.US.CMA | H96: 96 | I96: S.US.PNC
C97: S.US.CMCSA | D97: =IFERROR(RTD("cqg.rtd", ,"ContractData",C97, "PerCentNetLastTrade",, "T")/100,"") -> 0.006786427146 | E97: 192 | F97: 192 | G97: S.US.CMCSA | H97: 97 | I97: S.US.LNC
C98: S.US.CME | D98: =IFERROR(RTD("cqg.rtd", ,"ContractData",C98, "PerCentNetLastTrade",, "T")/100,"") -> 0.02151622121 | E98: 16 | F98: 16 | G98: S.US.CME | H98: 98 | I98: S.US.AMZN
C99: S.US.CMG | D99: =IFERROR(RTD("cqg.rtd", ,"ContractData",C99, "PerCentNetLastTrade",, "T")/100,"") -> 0.001330559319 | E99: 335 | F99: 335 | G99: S.US.CMG | H99: 99 | I99: S.US.PRU
C100: S.US.CMI | D100: =IFERROR(RTD("cqg.rtd", ,"ContractData",C100, "PerCentNetLastTrade",, "T")/100,"") -> 0.01527630181 | E100: 58 | F100: 58 | G100: S.US.CMI | H100: 100 | I100: S.US.FLS
C101: S.US.CMS | D101: =IFERROR(RTD("cqg.rtd", ,"ContractData",C101, "PerCentNetLastTrade",, "T")/100,"") -> 0.003261122758 | E101: 291 | F101: 291 | G101: S.US.CMS | H101: 101 | I101: S.US.ITW
C102: S.US.CNC | D102: =IFERROR(RTD("cqg.rtd", ,"ContractData",C102, "PerCentNetLastTrade",, "T")/100,"") -> 0.008933717579 | E102: 148 | F102: 148 | G102: S.US.CNC | H102: 102 | I102: S.US.ESRX
C103: S.US.CNP | D103: =IFERROR(RTD("cqg.rtd", ,"ContractData",C103, "PerCentNetLastTrade",, "T")/100,"") -> 0.005285013213 | E103: 229 | F103: 229 | G103: S.US.CNP | H103: 103 | I103: S.US.MMM
C104: S.US.COF | D104: =IFERROR(RTD("cqg.rtd", ,"ContractData",C104, "PerCentNetLastTrade",, "T")/100,"") -> 0.009389140271 | E104: 131 | F104: 131 | G104: S.US.COF | H104: 104 | I104: S.US.AYI
C105: S.US.COG | D105: =IFERROR(RTD("cqg.rtd", ,"ContractData",C105, "PerCentNetLastTrade",, "T")/100,"") -> -0.00664727877 | E105: 451 | F105: 451 | G105: S.US.COG | H105: 105 | I105: S.US.MYL
C106: S.US.COH | D106: =IFERROR(RTD("cqg.rtd", ,"ContractData",C106, "PerCentNetLastTrade",, "T")/100,"") -> 0.002101392172 | E106: 310 | F106: 310 | G106: S.US.COH | H106: 106 | I106: S.US.USB
C107: S.US.COL | D107: =IFERROR(RTD("cqg.rtd", ,"ContractData",C107, "PerCentNetLastTrade",, "T")/100,"") -> 0.008774816277 | E107: 153 | F107: 153 | G107: S.US.COL | H107: 107 | I107: S.US.MTB
C108: S.US.COO | D108: =IFERROR(RTD("cqg.rtd", ,"ContractData",C108, "PerCentNetLastTrade",, "T")/100,"") -> 0.00109947644 | E108: 350 | F108: 350 | G108: S.US.COO | H108: 108 | I108: S.US.BA
C109: S.US.COP | D109: =IFERROR(RTD("cqg.rtd", ,"ContractData",C109, "PerCentNetLastTrade",, "T")/100,"") -> -0.008775428799 | E109: 460 | F109: 460 | G109: S.US.COP | H109: 109 | I109: S.US.KSU
C110: S.US.COST | D110: =IFERROR(RTD("cqg.rtd", ,"ContractData",C110, "PerCentNetLastTrade",, "T")/100,"") -> -0.0004069767442 | E110: 374 | F110: 374 | G110: S.US.COST | H110: 110 | I110: S.US.MAR
C111: S.US.COTY | D111: =IFERROR(RTD("cqg.rtd", ,"ContractData",C111, "PerCentNetLastTrade",, "T")/100,"") -> 0.00601750547 | E111: 209 | F111: 209 | G111: S.US.COTY | H111: 111 | I111: S.US.NSC
C112: S.US.CPB | D112: =IFERROR(RTD("cqg.rtd", ,"ContractData",C112, "PerCentNetLastTrade",, "T")/100,"") -> 0.001738580686 | E112: 328 | F112: 328 | G112: S.US.CPB | H112: 112 | I112: S.US.PX
C113: S.US.CRM | D113: =IFERROR(RTD("cqg.rtd", ,"ContractData",C113, "PerCentNetLastTrade",, "T")/100,"") -> 0.003720238095 | E113: 279 | F113: 279 | G113: S.US.CRM | H113: 113 | I113: S.US.CINF
C114: S.US.CSCO | D114: =IFERROR(RTD("cqg.rtd", ,"ContractData",C114, "PerCentNetLastTrade",, "T")/100,"") -> 0.01491589971 | E114: 57 | F114: 57 | G114: S.US.CSCO | H114: 114 | I114: S.US.UPS
C115: S.US.CSRA | D115: =IFERROR(RTD("cqg.rtd", ,"ContractData",C115, "PerCentNetLastTrade",, "T")/100,"") -> -0.01096067054 | E115: 472 | F115: 472 | G115: S.US.CSRA | H115: 115 | I115: S.US.R
C116: S.US.CSX | D116: =IFERROR(RTD("cqg.rtd", ,"ContractData",C116, "PerCentNetLastTrade",, "T")/100,"") -> 0.003768055265 | E116: 272 | F116: 272 | G116: S.US.CSX | H116: 116 | I116: S.US.XEC
C117: S.US.CTAS | D117: =IFERROR(RTD("cqg.rtd", ,"ContractData",C117, "PerCentNetLastTrade",, "T")/100,"") -> 0.002741603838 | E117: 304 | F117: 304 | G117: S.US.CTAS | H117: 117 | I117: S.US.SHW
C118: S.US.CTL | D118: =IFERROR(RTD("cqg.rtd", ,"ContractData",C118, "PerCentNetLastTrade",, "T")/100,"") -> 0.004899959167 | E118: 246 | F118: 246 | G118: S.US.CTL | H118: 118 | I118: S.US.GM
C119: S.US.CTSH | D119: =IFERROR(RTD("cqg.rtd", ,"ContractData",C119, "PerCentNetLastTrade",, "T")/100,"") -> 0.005400696864 | E119: 221 | F119: 221 | G119: S.US.CTSH | H119: 119 | I119: S.US.AAPL
C120: S.US.CTXS | D120: =IFERROR(RTD("cqg.rtd", ,"ContractData",C120, "PerCentNetLastTrade",, "T")/100,"") -> 0.00254614895 | E120: 308 | F120: 308 | G120: S.US.CTXS | H120: 120 | I120: S.US.MCO
C121: S.US.CVS | D121: =IFERROR(RTD("cqg.rtd", ,"ContractData",C121, "PerCentNetLastTrade",, "T")/100,"") -> 0.002546797402 | E121: 312 | F121: 312 | G121: S.US.CVS | H121: 121 | I121: S.US.FITB
C122: S.US.CVX | D122: =IFERROR(RTD("cqg.rtd", ,"ContractData",C122, "PerCentNetLastTrade",, "T")/100,"") -> 0.007607253428 | E122: 173 | F122: 173 | G122: S.US.CVX | H122: 122 | I122: S.US.MSFT
C123: S.US.CXO | D123: =IFERROR(RTD("cqg.rtd", ,"ContractData",C123, "PerCentNetLastTrade",, "T")/100,"") -> -0.004611837048 | E123: 426 | F123: 426 | G123: S.US.CXO | H123: 123 | I123: S.US.MNK
C124: S.US.D | D124: =IFERROR(RTD("cqg.rtd", ,"ContractData",C124, "PerCentNetLastTrade",, "T")/100,"") -> 0.005315524056 | E124: 236 | F124: 236 | G124: S.US.D | H124: 124 | I124: S.US.FISV
C125: S.US.DAL | D125: =IFERROR(RTD("cqg.rtd", ,"ContractData",C125, "PerCentNetLastTrade",, "T")/100,"") -> 0.01684937069 | E125: 41 | F125: 41 | G125: S.US.DAL | H125: 125 | I125: S.US.ABT
C126: S.US.DD | D126: =IFERROR(RTD("cqg.rtd", ,"ContractData",C126, "PerCentNetLastTrade",, "T")/100,"") -> 0.006864395804 | E126: 182 | F126: 182 | G126: S.US.DD | H126: 126 | I126: S.US.PAYX
C127: S.US.DE | D127: =IFERROR(RTD("cqg.rtd", ,"ContractData",C127, "PerCentNetLastTrade",, "T")/100,"") -> 0.004626269956 | E127: 249 | F127: 249 | G127: S.US.DE | H127: 127 | I127: S.US.IR
C128: S.US.DFS | D128: =IFERROR(RTD("cqg.rtd", ,"ContractData",C128, "PerCentNetLastTrade",, "T")/100,"") -> 0.01322290032 | E128: 76 | F128: 76 | G128: S.US.DFS | H128: 128 | I128: S.US.IVZ
C129: S.US.DG | D129: =IFERROR(RTD("cqg.rtd", ,"ContractData",C129, "PerCentNetLastTrade",, "T")/100,"") -> -0.009636671442 | E129: 469 | F129: 469 | G129: S.US.DG | H129: 129 | I129: =IFERROR(VLOOKUP(H129,$F$1:$G$506,2,FALSE),"") -> S.US.STI
C130: S.US.DGX | D130: =IFERROR(RTD("cqg.rtd", ,"ContractData",C130, "PerCentNetLastTrade",, "T")/100,"") -> 0.004489097905 | E130: 255 | F130: =IFERROR(E130,"") -> 255 | G130: =C130 -> S.US.DGX | H130: 130 | I130: S.US.MRK
C131: S.US.DHI | D131: =IFERROR(RTD("cqg.rtd", ,"ContractData",C131, "PerCentNetLastTrade",, "T")/100,"") -> -0.01232965607 | E131: 480 | F131: 480 | G131: S.US.DHI | H131: =H130+1 -> 131 | I131: S.US.COF
C132: S.US.DHR | D132: =IFERROR(RTD("cqg.rtd", ,"ContractData",C132, "PerCentNetLastTrade",, "T")/100,"") -> 0.00261967135 | E132: 314 | F132: 314 | G132: S.US.DHR | H132: 132 | I132: S.US.MDT
C133: S.US.DIS | D133: =IFERROR(RTD("cqg.rtd", ,"ContractData",C133, "PerCentNetLastTrade",, "T")/100,"") -> 0.003569467326 | E133: 283 | F133: 283 | G133: S.US.DIS | H133: 133 | I133: S.US.TMO
C134: S.US.DISCA | D134: =IFERROR(RTD("cqg.rtd", ,"ContractData",C134, "PerCentNetLastTrade",, "T")/100,"") -> 0.02036516854 | E134: 21 | F134: 21 | G134: S.US.DISCA | H134: 134 | I134: S.US.SCG
C135: S.US.DISCK | D135: =IFERROR(RTD("cqg.rtd", ,"ContractData",C135, "PerCentNetLastTrade",, "T")/100,"") -> 0.01627486438 | E135: 46 | F135: 46 | G135: S.US.DISCK | H135: 135 | I135: S.US.ALL
C136: S.US.DLPH | D136: =IFERROR(RTD("cqg.rtd", ,"ContractData",C136, "PerCentNetLastTrade",, "T")/100,"") -> 0.02354682454 | E136: 12 | F136: 12 | G136: S.US.DLPH | H136: 136 | I136: S.US.RSG
C137: S.US.DLR | D137: =IFERROR(RTD("cqg.rtd", ,"ContractData",C137, "PerCentNetLastTrade",, "T")/100,"") -> 0.001399253731 | E137: 332 | F137: 332 | G137: S.US.DLR | H137: 137 | I137: S.US.PRGO
C138: S.US.DLTR | D138: =IFERROR(RTD("cqg.rtd", ,"ContractData",C138, "PerCentNetLastTrade",, "T")/100,"") -> -0.004870546014 | E138: 431 | F138: 431 | G138: S.US.DLTR | H138: 138 | I138: S.US.BBT
C139: S.US.DNB | D139: =IFERROR(RTD("cqg.rtd", ,"ContractData",C139, "PerCentNetLastTrade",, "T")/100,"") -> 0.0152853598 | E139: 52 | F139: 52 | G139: S.US.DNB | H139: 139 | I139: S.US.GE
C140: S.US.DOV | D140: =IFERROR(RTD("cqg.rtd", ,"ContractData",C140, "PerCentNetLastTrade",, "T")/100,"") -> 0.005423814329 | E140: 233 | F140: 233 | G140: S.US.DOV | H140: 140 | I140: S.US.YHOO
C141: S.US.DOW | D141: =IFERROR(RTD("cqg.rtd", ,"ContractData",C141, "PerCentNetLastTrade",, "T")/100,"") -> 0.006537015852 | E141: 193 | F141: 193 | G141: S.US.DOW | H141: 141 | I141: S.US.EMN
C142: S.US.DPS | D142: =IFERROR(RTD("cqg.rtd", ,"ContractData",C142, "PerCentNetLastTrade",, "T")/100,"") -> -0.001710132535 | E142: 400 | F142: 400 | G142: S.US.DPS | H142: 142 | I142: S.US.BLK
C143: S.US.DRI | D143: =IFERROR(RTD("cqg.rtd", ,"ContractData",C143, "PerCentNetLastTrade",, "T")/100,"") -> -0.001573151547 | E143: 398 | F143: 398 | G143: S.US.DRI | H143: 143 | I143: S.US.MA
C144: S.US.DTE | D144: =IFERROR(RTD("cqg.rtd", ,"ContractData",C144, "PerCentNetLastTrade",, "T")/100,"") -> 0.006573541495 | E144: 207 | F144: 207 | G144: S.US.DTE | H144: 144 | I144: S.US.ALXN
C145: S.US.DUK | D145: =IFERROR(RTD("cqg.rtd", ,"ContractData",C145, "PerCentNetLastTrade",, "T")/100,"") -> 0.006530089629 | E145: 197 | F145: 197 | G145: S.US.DUK | H145: 145 | I145: S.US.FDX
C146: S.US.DVA | D146: =IFERROR(RTD("cqg.rtd", ,"ContractData",C146, "PerCentNetLastTrade",, "T")/100,"") -> 0.00138996139 | E146: 341 | F146: 341 | G146: S.US.DVA | H146: 146 | I146: S.US.XYL
C147: S.US.DVN | D147: =IFERROR(RTD("cqg.rtd", ,"ContractData",C147, "PerCentNetLastTrade",, "T")/100,"") -> -0.001321294869 | E147: 384 | F147: 384 | G147: S.US.DVN | H147: 147 | I147: S.US.UTX
C148: S.US.EA | D148: =IFERROR(RTD("cqg.rtd", ,"ContractData",C148, "PerCentNetLastTrade",, "T")/100,"") -> 0.0008123476848 | E148: 344 | F148: 344 | G148: S.US.EA | H148: 148 | I148: S.US.CNC
C149: S.US.EBAY | D149: =IFERROR(RTD("cqg.rtd", ,"ContractData",C149, "PerCentNetLastTrade",, "T")/100,"") -> 0.005947071067 | E149: 212 | F149: 212 | G149: S.US.EBAY | H149: 149 | I149: S.US.CAH
C150: S.US.ECL | D150: =IFERROR(RTD("cqg.rtd", ,"ContractData",C150, "PerCentNetLastTrade",, "T")/100,"") -> 0.005775577558 | E150: 216 | F150: 216 | G150: S.US.ECL | H150: 150 | I150: S.US.MCK
C151: S.US.ED | D151: =IFERROR(RTD("cqg.rtd", ,"ContractData",C151, "PerCentNetLastTrade",, "T")/100,"") -> -0.005886287625 | E151: 442 | F151: 442 | G151: S.US.ED | H151: 151 | I151: S.US.WLTW
C152: S.US.EFX | D152: =IFERROR(RTD("cqg.rtd", ,"ContractData",C152, "PerCentNetLastTrade",, "T")/100,"") -> -0.001378676471 | E152: 391 | F152: 391 | G152: S.US.EFX | H152: 152 | I152: S.US.ACN
C153: S.US.EIX | D153: =IFERROR(RTD("cqg.rtd", ,"ContractData",C153, "PerCentNetLastTrade",, "T")/100,"") -> 0.0043877144 | E153: 258 | F153: 258 | G153: S.US.EIX | H153: 153 | I153: S.US.COL
C154: S.US.EL | D154: =IFERROR(RTD("cqg.rtd", ,"ContractData",C154, "PerCentNetLastTrade",, "T")/100,"") -> 0.001695120475 | E154: 326 | F154: 326 | G154: S.US.EL | H154: 154 | I154: S.US.CB
C155: S.US.EMN | D155: =IFERROR(RTD("cqg.rtd", ,"ContractData",C155, "PerCentNetLastTrade",, "T")/100,"") -> 0.00919858871 | E155: 141 | F155: 141 | G155: S.US.EMN | H155: 155 | I155: S.US.MMC
C156: S.US.EMR | D156: =IFERROR(RTD("cqg.rtd", ,"ContractData",C156, "PerCentNetLastTrade",, "T")/100,"") -> 0.01406892191 | E156: 70 | F156: 70 | G156: S.US.EMR | H156: 156 | I156: S.US.ANTM
C157: S.US.ENDP | D157: =IFERROR(RTD("cqg.rtd", ,"ContractData",C157, "PerCentNetLastTrade",, "T")/100,"") -> 0.004975124378 | E157: 267 | F157: 267 | G157: S.US.ENDP | H157: 157 | I157: S.US.AIG
C158: S.US.EOG | D158: =IFERROR(RTD("cqg.rtd", ,"ContractData",C158, "PerCentNetLastTrade",, "T")/100,"") -> -0.009956624606 | E158: 467 | F158: 467 | G158: S.US.EOG | H158: 158 | I158: S.US.SYK
C159: S.US.EQIX | D159: =IFERROR(RTD("cqg.rtd", ,"ContractData",C159, "PerCentNetLastTrade",, "T")/100,"") -> 0.0009315564756 | E159: 348 | F159: 348 | G159: S.US.EQIX | H159: 159 | I159: S.US.XRAY
C160: S.US.EQR | D160: =IFERROR(RTD("cqg.rtd", ,"ContractData",C160, "PerCentNetLastTrade",, "T")/100,"") -> 0.003067979977 | E160: 299 | F160: 299 | G160: S.US.EQR | H160: 160 | I160: S.US.TSS
C161: S.US.EQT | D161: =IFERROR(RTD("cqg.rtd", ,"ContractData",C161, "PerCentNetLastTrade",, "T")/100,"") -> -0.02735042735 | E161: 504 | F161: 504 | G161: S.US.EQT | H161: 161 | I161: S.US.OMC
C162: S.US.ES | D162: =IFERROR(RTD("cqg.rtd", ,"ContractData",C162, "PerCentNetLastTrade",, "T")/100,"") -> 0.0008862105636 | E162: 347 | F162: 347 | G162: S.US.ES | H162: 162 | I162: S.US.PDCO
C163: S.US.ESRX | D163: =IFERROR(RTD("cqg.rtd", ,"ContractData",C163, "PerCentNetLastTrade",, "T")/100,"") -> 0.0115480193 | E163: 102 | F163: 102 | G163: S.US.ESRX | H163: 163 | I163: S.US.AJG
C164: S.US.ESS | D164: =IFERROR(RTD("cqg.rtd", ,"ContractData",C164, "PerCentNetLastTrade",, "T")/100,"") -> -0.007487520799 | E164: 453 | F164: 453 | G164: S.US.ESS | H164: 164 | I164: S.US.ALK
C165: S.US.ETFC | D165: =IFERROR(RTD("cqg.rtd", ,"ContractData",C165, "PerCentNetLastTrade",, "T")/100,"") -> 0.01968503937 | E165: 23 | F165: 23 | G165: S.US.ETFC | H165: 165 | I165: S.US.PFE
C166: S.US.ETN | D166: =IFERROR(RTD("cqg.rtd", ,"ContractData",C166, "PerCentNetLastTrade",, "T")/100,"") -> 0.01746478873 | E166: 35 | F166: 35 | G166: S.US.ETN | H166: 166 | I166: S.US.TGNA
C167: S.US.ETR | D167: =IFERROR(RTD("cqg.rtd", ,"ContractData",C167, "PerCentNetLastTrade",, "T")/100,"") -> 0.003908976686 | E167: 276 | F167: 276 | G167: S.US.ETR | H167: 167 | I167: S.US.PKI
C168: S.US.EVHC | D168: =IFERROR(RTD("cqg.rtd", ,"ContractData",C168, "PerCentNetLastTrade",, "T")/100,"") -> -0.01022793688 | E168: 474 | F168: 474 | G168: S.US.EVHC | H168: 168 | I168: S.US.BMY
C169: S.US.EW | D169: =IFERROR(RTD("cqg.rtd", ,"ContractData",C169, "PerCentNetLastTrade",, "T")/100,"") -> -0.004427717512 | E169: 428 | F169: 428 | G169: S.US.EW | H169: 169 | I169: S.US.RCL
C170: S.US.EXC | D170: =IFERROR(RTD("cqg.rtd", ,"ContractData",C170, "PerCentNetLastTrade",, "T")/100,"") -> 0.0002855511136 | E170: 361 | F170: 361 | G170: S.US.EXC | H170: 170 | I170: S.US.ORCL
C171: S.US.EXPD | D171: =IFERROR(RTD("cqg.rtd", ,"ContractData",C171, "PerCentNetLastTrade",, "T")/100,"") -> 0.006760460442 | E171: 201 | F171: 201 | G171: S.US.EXPD | H171: 171 | I171: S.US.CHRW
C172: S.US.EXPE | D172: =IFERROR(RTD("cqg.rtd", ,"ContractData",C172, "PerCentNetLastTrade",, "T")/100,"") -> -0.02609050143 | E172: 502 | F172: 502 | G172: S.US.EXPE | H172: 172 | I172: S.US.NAVI
C173: S.US.EXR | D173: =IFERROR(RTD("cqg.rtd", ,"ContractData",C173, "PerCentNetLastTrade",, "T")/100,"") -> -0.001333333333 | E173: 392 | F173: 392 | G173: S.US.EXR | H173: 173 | I173: S.US.CVX
C174: S.US.F | D174: =IFERROR(RTD("cqg.rtd", ,"ContractData",C174, "PerCentNetLastTrade",, "T")/100,"") -> 0.00479616307 | E174: 271 | F174: 271 | G174: S.US.F | H174: 174 | I174: S.US.TROW
C175: S.US.FAST | D175: =IFERROR(RTD("cqg.rtd", ,"ContractData",C175, "PerCentNetLastTrade",, "T")/100,"") -> -0.003377036154 | E175: 417 | F175: 417 | G175: S.US.FAST | H175: 175 | I175: S.US.PEG
C176: S.US.FB | D176: =IFERROR(RTD("cqg.rtd", ,"ContractData",C176, "PerCentNetLastTrade",, "T")/100,"") -> -0.001266860422 | E176: 386 | F176: 386 | G176: S.US.FB | H176: 176 | I176: S.US.LMT
C177: S.US.FBHS | D177: =IFERROR(RTD("cqg.rtd", ,"ContractData",C177, "PerCentNetLastTrade",, "T")/100,"") -> 0 | E177: 363 | F177: 363 | G177: S.US.FBHS | H177: 177 | I177: S.US.UNH
C178: S.US.FCX | D178: =IFERROR(RTD("cqg.rtd", ,"ContractData",C178, "PerCentNetLastTrade",, "T")/100,"") -> 0.01139240506 | E178: 95 | F178: 95 | G178: S.US.FCX | H178: 178 | I178: S.US.L
C179: S.US.FDX | D179: =IFERROR(RTD("cqg.rtd", ,"ContractData",C179, "PerCentNetLastTrade",, "T")/100,"") -> 0.009116629991 | E179: 145 | F179: 145 | G179: S.US.FDX | H179: 179 | I179: S.US.MAT
C180: S.US.FE | D180: =IFERROR(RTD("cqg.rtd", ,"ContractData",C180, "PerCentNetLastTrade",, "T")/100,"") -> 0.002298850575 | E180: 318 | F180: 318 | G180: S.US.FE | H180: 180 | I180: S.US.FTV
C181: S.US.FFIV | D181: =IFERROR(RTD("cqg.rtd", ,"ContractData",C181, "PerCentNetLastTrade",, "T")/100,"") -> 0.006657598969 | E181: 190 | F181: 190 | G181: S.US.FFIV | H181: 181 | I181: S.US.FLIR
C182: S.US.FIS | D182: =IFERROR(RTD("cqg.rtd", ,"ContractData",C182, "PerCentNetLastTrade",, "T")/100,"") -> 0.006835694755 | E182: 189 | F182: 189 | G182: S.US.FIS | H182: 182 | I182: S.US.DD
C183: S.US.FISV | D183: =IFERROR(RTD("cqg.rtd", ,"ContractData",C183, "PerCentNetLastTrade",, "T")/100,"") -> 0.009993582103 | E183: 124 | F183: 124 | G183: S.US.FISV | H183: 183 | I183: S.US.V
C184: S.US.FITB | D184: =IFERROR(RTD("cqg.rtd", ,"ContractData",C184, "PerCentNetLastTrade",, "T")/100,"") -> 0.01018483591 | E184: 121 | F184: 121 | G184: S.US.FITB | H184: 184 | I184: S.US.ADP
C185: S.US.FL | D185: =IFERROR(RTD("cqg.rtd", ,"ContractData",C185, "PerCentNetLastTrade",, "T")/100,"") -> -0.009547879809 | E185: 464 | F185: 464 | G185: S.US.FL | H185: 185 | I185: S.US.XL
C186: S.US.FLIR | D186: =IFERROR(RTD("cqg.rtd", ,"ContractData",C186, "PerCentNetLastTrade",, "T")/100,"") -> 0.007745504841 | E186: 181 | F186: 181 | G186: S.US.FLIR | H186: 186 | I186: S.US.ADBE
C187: S.US.FLR | D187: =IFERROR(RTD("cqg.rtd", ,"ContractData",C187, "PerCentNetLastTrade",, "T")/100,"") -> 0.01730906495 | E187: 36 | F187: 36 | G187: S.US.FLR | H187: 187 | I187: S.US.CELG
C188: S.US.FLS | D188: =IFERROR(RTD("cqg.rtd", ,"ContractData",C188, "PerCentNetLastTrade",, "T")/100,"") -> 0.01177394035 | E188: 100 | F188: 100 | G188: S.US.FLS | H188: 188 | I188: S.US.SRE
C189: S.US.FMC | D189: =IFERROR(RTD("cqg.rtd", ,"ContractData",C189, "PerCentNetLastTrade",, "T")/100,"") -> 0.01815352697 | E189: 31 | F189: 31 | G189: S.US.FMC | H189: 189 | I189: S.US.FIS
C190: S.US.FOX | D190: =IFERROR(RTD("cqg.rtd", ,"ContractData",C190, "PerCentNetLastTrade",, "T")/100,"") -> -0.006408094435 | E190: 444 | F190: 444 | G190: S.US.FOX | H190: 190 | I190: S.US.FFIV
C191: S.US.FOXA | D191: =IFERROR(RTD("cqg.rtd", ,"ContractData",C191, "PerCentNetLastTrade",, "T")/100,"") -> -0.006352390505 | E191: 443 | F191: 443 | G191: S.US.FOXA | H191: 191 | I191: S.US.PBCT
C192: S.US.FRT | D192: =IFERROR(RTD("cqg.rtd", ,"ContractData",C192, "PerCentNetLastTrade",, "T")/100,"") -> -0.00223838836 | E192: 397 | F192: 397 | G192: S.US.FRT | H192: 192 | I192: S.US.CMCSA
C193: S.US.FSLR | D193: =IFERROR(RTD("cqg.rtd", ,"ContractData",C193, "PerCentNetLastTrade",, "T")/100,"") -> 0.01552511416 | E193: 53 | F193: 53 | G193: S.US.FSLR | H193: 193 | I193: =IFERROR(VLOOKUP(H193,$F$1:$G$506,2,FALSE),"") -> S.US.DOW
C194: S.US.FTI | D194: =IFERROR(RTD("cqg.rtd", ,"ContractData",C194, "PerCentNetLastTrade",, "T")/100,"") -> 0.002518891688 | E194: 313 | F194: =IFERROR(E194,"") -> 313 | G194: =C194 -> S.US.FTI | H194: 194 | I194: S.US.ISRG
C195: S.US.FTR | D195: =IFERROR(RTD("cqg.rtd", ,"ContractData",C195, "PerCentNetLastTrade",, "T")/100,"") -> -0.009063444109 | E195: 462 | F195: 462 | G195: S.US.FTR | H195: =H194+1 -> 195 | I195: S.US.RHT
C196: S.US.FTV | D196: =IFERROR(RTD("cqg.rtd", ,"ContractData",C196, "PerCentNetLastTrade",, "T")/100,"") -> 0.007524059493 | E196: 180 | F196: 180 | G196: S.US.FTV | H196: 196 | I196: S.US.KLAC
C197: S.US.GD | D197: =IFERROR(RTD("cqg.rtd", ,"ContractData",C197, "PerCentNetLastTrade",, "T")/100,"") -> 0.01247288503 | E197: 87 | F197: 87 | G197: S.US.GD | H197: 197 | I197: S.US.DUK
C198: S.US.GE | D198: =IFERROR(RTD("cqg.rtd", ,"ContractData",C198, "PerCentNetLastTrade",, "T")/100,"") -> 0.009421265141 | E198: 139 | F198: 139 | G198: S.US.GE | H198: 198 | I198: S.US.URI
C199: S.US.GGP | D199: =IFERROR(RTD("cqg.rtd", ,"ContractData",C199, "PerCentNetLastTrade",, "T")/100,"") -> -0.006671899529 | E199: 448 | F199: 448 | G199: S.US.GGP | H199: 199 | I199: S.US.HPE
C200: S.US.GILD | D200: =IFERROR(RTD("cqg.rtd", ,"ContractData",C200, "PerCentNetLastTrade",, "T")/100,"") -> 0.01883664858 | E200: 26 | F200: 26 | G200: S.US.GILD | H200: 200 | I200: S.US.ROP
... 331 more rows
